NUMERO_MANDATO;RIGA_MANDATO;QUIET;IMPORTO_RIGA;IMPORTO_MANDATO;BENEFICIARIO;CIG;TITOLO_PAGAMENTO;DATA_MANDATO;CAPITOLO;ARTICOLO;NUMERO_IMPEGNO;TITOLO;DESCR_TITOLO;LIVELLO_II;DESCR_LIVELLO_II;LIVELLO_III;DESCR_LIVELLO_III;LIVELLO_IV;DESCR_LIVELLO_IV;LIVELLO_V;DESCR_LIVELLO_V;DATA_PAG_EFF
1;1;0;976,11;976,11;PERSONALE DIVERSO; ;STIPENDI MESE DI GENNAIO 17;19/01/2017;55;10;1;1;Spese correnti;3;Acquisto di beni e servizi;2;Acquisto di servizi;1;Organi e incarichi istituzionali dell'amministrazione;1;Organi istituzionali dell'amministrazione - Indennit�;19/01/2017
14;1;0;647,74;647,74;PERSONALE DIVERSO; ;STIPENDI MESE DI GENNAIO 17;19/01/2017;400;0;0;1;Spese correnti;3;Acquisto di beni e servizi;2;Acquisto di servizi;12;Lavoro flessibile, quota LSU e acquisto di servizi da agenzie di lavoro interinale;2;Quota LSU in carico all'ente;19/01/2017
42;1;0;43,92;43,92;DECART S.R.L.;Z051C37715;SALDO Fatt.n. 630/PA  del 30/11/2016 RIF. DDT. N. 4349/00 DEL 25.11.2016 ACQ. BLOCCHI RACCOLTA DATI PER REFERENDUM COSTITUZIONALE 4 DIC. 2016 - CIG Z051C37715;25/01/2017;940;1;255;1;Spese correnti;3;Acquisto di beni e servizi;1;Acquisto di beni;2;Altri beni di consumo;10;Beni per consultazioni elettorali;25/01/2017
43;1;0;700;700;MEDORO ANNA DOMENICA; ;RISARCIMENTO DANNI PER SINISTRO DEL 27_01_2014;25/01/2017;561;0;283;1;Spese correnti;10;Altre spese correnti;5;Spese dovute a sanzioni, risarcimenti e indennizzi;2;Spese per risarcimento danni;1;Spese per risarcimento danni;25/01/2017
44;1;0;48,8;48,8;EL.CO. ELETTRONICA S.R.L.;Z831B96DE6;SALDO Fatt.n. 800145  del 31/10/2016 ACQ. BATTERIA RIC. PB 12V 7.2 AH ENERGYTEAM  ET 12-7,2  CIG Z831B96DE6;25/01/2017;2160;10;218;1;Spese correnti;3;Acquisto di beni e servizi;1;Acquisto di beni;2;Altri beni di consumo;6;Materiale informatico;25/01/2017
45;1;0;463,36;463,36;SARTORIA CIVILE E MILITARE RECCHIA S.A.S.;Z0A1C29205;SALDO Fatt.n. 107E  del 23/11/2016 FORNITURA VESTIARIO POLIZIA LOCALE.  - ORD. N. 3321907 DEL 23.11.2016  -CIG Z0A1C29205;25/01/2017;2159;0;252;1;Spese correnti;3;Acquisto di beni e servizi;1;Acquisto di beni;2;Altri beni di consumo;4;Vestiario;25/01/2017
46;1;0;1.711,50;1.711,50;PELLEGRINI EMILIO; ;DIVERSI, L.R. 78_78 - INTERVENTI PER IL DIRITTO ALLO STUDIO DEGLI STUDENTI DIVERSAMENTE ABILI FREQUENTANTI GLI ISTITUTI SCOLASTICI SUPERIORI DI SECONDO GRADO;25/01/2017;7108;0;279;1;Spese correnti;4;Trasferimenti correnti;2;Trasferimenti correnti a Famiglie;2;Interventi assistenziali;999;Altri assegni e sussidi assistenziali;25/01/2017
47;1;0;798;798;HOFMAJER TATJANA NICOLA; ;L.R. 78_78 - INTERVENTI PER IL DIRITTO ALLO STUDIO DEGLI STUDENTI DIVERSAMENTE ABILI FREQUENTANTI GLI ISTITUTI SCOLASTICI SUPERIORI DI SECONDO GRADO;25/01/2017;7108;0;279;1;Spese correnti;4;Trasferimenti correnti;2;Trasferimenti correnti a Famiglie;2;Interventi assistenziali;999;Altri assegni e sussidi assistenziali;25/01/2017
48;1;0;1.778,49;1.778,49;STRIZZI VINCENZINA; ;RISARCIMENTO DANNI SINISTRO DEL 25_06_2014;25/01/2017;561;0;329;1;Spese correnti;10;Altre spese correnti;5;Spese dovute a sanzioni, risarcimenti e indennizzi;2;Spese per risarcimento danni;1;Spese per risarcimento danni;25/01/2017
49;1;0;130;546;CECCAROSSI SARA; ;COMPONENTI SEGGI ELETTORALI, REFERENDUM COSTITUZIONALE DEL 4 DICEMBRE 2016;25/01/2017;940;40;270;1;Spese correnti;3;Acquisto di beni e servizi;2;Acquisto di servizi;99;Altri servizi;4;Altre spese per consultazioni elettorali dell'ente;25/01/2017
49;2;0;104;546;DI DIEGO GABRIELLA; ;COMPONENTI SEGGI ELETTORALI, REFERENDUM COSTITUZIONALE DEL 4 DICEMBRE 2016;25/01/2017;940;40;270;1;Spese correnti;3;Acquisto di beni e servizi;2;Acquisto di servizi;99;Altri servizi;4;Altre spese per consultazioni elettorali dell'ente;25/01/2017
49;3;0;104;546;DI VIRGILIO ALESSANDRO; ;COMPONENTI SEGGI ELETTORALI, REFERENDUM COSTITUZIONALE DEL 4 DICEMBRE 2016;25/01/2017;940;40;270;1;Spese correnti;3;Acquisto di beni e servizi;2;Acquisto di servizi;99;Altri servizi;4;Altre spese per consultazioni elettorali dell'ente;25/01/2017
49;4;0;104;546;NAPOLIONE CLAUDIA; ;COMPONENTI SEGGI ELETTORALI, REFERENDUM COSTITUZIONALE DEL 4 DICEMBRE 2016;25/01/2017;940;40;270;1;Spese correnti;3;Acquisto di beni e servizi;2;Acquisto di servizi;99;Altri servizi;4;Altre spese per consultazioni elettorali dell'ente;25/01/2017
49;5;0;104;546;SACRAMONE ADRIANA; ;COMPONENTI SEGGI ELETTORALI, REFERENDUM COSTITUZIONALE DEL 4 DICEMBRE 2016;25/01/2017;940;40;270;1;Spese correnti;3;Acquisto di beni e servizi;2;Acquisto di servizi;99;Altri servizi;4;Altre spese per consultazioni elettorali dell'ente;25/01/2017
50;1;0;104;546;AURITI NADIA; ;COMPONENTI SEGGI ELETTORALI, REFERENDUM COSTITUZIONALE DEL 4 DICEMBRE 2016;25/01/2017;940;40;270;1;Spese correnti;3;Acquisto di beni e servizi;2;Acquisto di servizi;99;Altri servizi;4;Altre spese per consultazioni elettorali dell'ente;25/01/2017
50;2;0;104;546;BUCCI NICOLA; ;COMPONENTI SEGGI ELETTORALI, REFERENDUM COSTITUZIONALE DEL 4 DICEMBRE 2016;25/01/2017;940;40;270;1;Spese correnti;3;Acquisto di beni e servizi;2;Acquisto di servizi;99;Altri servizi;4;Altre spese per consultazioni elettorali dell'ente;25/01/2017
50;3;0;130;546;CIPOLLONE MARIO; ;COMPONENTI SEGGI ELETTORALI, REFERENDUM COSTITUZIONALE DEL 4 DICEMBRE 2016;25/01/2017;940;40;270;1;Spese correnti;3;Acquisto di beni e servizi;2;Acquisto di servizi;99;Altri servizi;4;Altre spese per consultazioni elettorali dell'ente;25/01/2017
50;4;0;104;546;DE CAMILLIS ARIANNA; ;COMPONENTI SEGGI ELETTORALI, REFERENDUM COSTITUZIONALE DEL 4 DICEMBRE 2016;25/01/2017;940;40;270;1;Spese correnti;3;Acquisto di beni e servizi;2;Acquisto di servizi;99;Altri servizi;4;Altre spese per consultazioni elettorali dell'ente;25/01/2017
50;5;0;104;546;MICOLUCCI SILVIA; ;COMPONENTI SEGGI ELETTORALI, REFERENDUM COSTITUZIONALE DEL 4 DICEMBRE 2016;25/01/2017;940;40;270;1;Spese correnti;3;Acquisto di beni e servizi;2;Acquisto di servizi;99;Altri servizi;4;Altre spese per consultazioni elettorali dell'ente;25/01/2017
51;1;0;104;546;D'ALESSIO MARIADELE; ;COMPONENTI SEGGI ELETTORALI, REFERENDUM COSTITUZIONALE DEL 4 DICEMBRE 2016;25/01/2017;940;40;270;1;Spese correnti;3;Acquisto di beni e servizi;2;Acquisto di servizi;99;Altri servizi;4;Altre spese per consultazioni elettorali dell'ente;25/01/2017
51;2;0;104;546;DI DOMENICA SAMUEL; ;COMPONENTI SEGGI ELETTORALI, REFERENDUM COSTITUZIONALE DEL 4 DICEMBRE 2016;25/01/2017;940;40;270;1;Spese correnti;3;Acquisto di beni e servizi;2;Acquisto di servizi;99;Altri servizi;4;Altre spese per consultazioni elettorali dell'ente;25/01/2017
51;3;0;104;546;LA CIOPPA ANTONIO; ;COMPONENTI SEGGI ELETTORALI, REFERENDUM COSTITUZIONALE DEL 4 DICEMBRE 2016;25/01/2017;940;40;270;1;Spese correnti;3;Acquisto di beni e servizi;2;Acquisto di servizi;99;Altri servizi;4;Altre spese per consultazioni elettorali dell'ente;25/01/2017
51;4;0;104;546;MONTEFUSCO MARIELLA; ;COMPONENTI SEGGI ELETTORALI, REFERENDUM COSTITUZIONALE DEL 4 DICEMBRE 2016;25/01/2017;940;40;270;1;Spese correnti;3;Acquisto di beni e servizi;2;Acquisto di servizi;99;Altri servizi;4;Altre spese per consultazioni elettorali dell'ente;25/01/2017
51;5;0;130;546;MONTEFUSCO TIZIANA; ;COMPONENTI SEGGI ELETTORALI, REFERENDUM COSTITUZIONALE DEL 4 DICEMBRE 2016;25/01/2017;940;40;270;1;Spese correnti;3;Acquisto di beni e servizi;2;Acquisto di servizi;99;Altri servizi;4;Altre spese per consultazioni elettorali dell'ente;25/01/2017
52;1;0;130;546;ADORANTE MARIA; ;COMPONENTI SEGGI ELETTORALI, REFERENDUM COSTITUZIONALE DEL 4 DICEMBRE 2016;25/01/2017;940;40;270;1;Spese correnti;3;Acquisto di beni e servizi;2;Acquisto di servizi;99;Altri servizi;4;Altre spese per consultazioni elettorali dell'ente;25/01/2017
52;2;0;104;546;CIANCIO EMANUELA; ;COMPONENTI SEGGI ELETTORALI, REFERENDUM COSTITUZIONALE DEL 4 DICEMBRE 2016;25/01/2017;940;40;270;1;Spese correnti;3;Acquisto di beni e servizi;2;Acquisto di servizi;99;Altri servizi;4;Altre spese per consultazioni elettorali dell'ente;25/01/2017
52;3;0;104;546;DI SCIPIO PAOLO; ;COMPONENTI SEGGI ELETTORALI, REFERENDUM COSTITUZIONALE DEL 4 DICEMBRE 2016;25/01/2017;940;40;270;1;Spese correnti;3;Acquisto di beni e servizi;2;Acquisto di servizi;99;Altri servizi;4;Altre spese per consultazioni elettorali dell'ente;25/01/2017
52;4;0;104;546;LA BARBA FEDERICA; ;COMPONENTI SEGGI ELETTORALI, REFERENDUM COSTITUZIONALE DEL 4 DICEMBRE 2016;25/01/2017;940;40;270;1;Spese correnti;3;Acquisto di beni e servizi;2;Acquisto di servizi;99;Altri servizi;4;Altre spese per consultazioni elettorali dell'ente;25/01/2017
52;5;0;104;546;SACRAMONE MARIO; ;COMPONENTI SEGGI ELETTORALI, REFERENDUM COSTITUZIONALE DEL 4 DICEMBRE 2016;25/01/2017;940;40;270;1;Spese correnti;3;Acquisto di beni e servizi;2;Acquisto di servizi;99;Altri servizi;4;Altre spese per consultazioni elettorali dell'ente;25/01/2017
53;1;0;671;671;MYO SPA;ZBE1C1AA1F;SALDO Fatt.n. 2040_160036026  del 31_12_2016 SERVIZIO INVENTARIO BENI MOBILI ED IMMOBILI;04/02/2017;9031;0;232;1;Spese correnti;3;Acquisto di beni e servizi;2;Acquisto di servizi;99;Altri servizi;999;Altri servizi diversi n.a.c.;04/02/2017
54;1;0;209,84;209,84;A.I.C.C.R.E.; ;QUOTA ASSOCIATIVA ANNO 2016;04/02/2017;560;0;274;1;Spese correnti;4;Trasferimenti correnti;3;Trasferimenti correnti a Imprese;99;Trasferimenti correnti a altre imprese;999;Trasferimenti correnti a altre imprese;04/02/2017
55;1;0;1.069,70;1.069,70;ASSOCIAZIONE NAZIONALE CITTA DEL VINO; ;QUOTA ASSOCIATIVA CITTA DEL VINO ANNO 2016;04/02/2017;560;0;275;1;Spese correnti;4;Trasferimenti correnti;3;Trasferimenti correnti a Imprese;99;Trasferimenti correnti a altre imprese;999;Trasferimenti correnti a altre imprese;04/02/2017
56;1;0;100;100;ASSOCIAZIONE LIBERI DI ESSERE; ;QUOTA ASSOCIATIVA LIBERI DI ESSERE ANNUALITA 2016;04/02/2017;560;0;280;1;Spese correnti;4;Trasferimenti correnti;3;Trasferimenti correnti a Imprese;99;Trasferimenti correnti a altre imprese;999;Trasferimenti correnti a altre imprese;04/02/2017
57;1;0;186,1;186,1;VERNA ANDREA;Z7918782B7;ACCONTO Fatt.n. 27 PA  del 30_11_2016 GASOLIO PER AUTOTRAZIONE E BENZINA SUPER SPB;04/02/2017;530;0;14;1;Spese correnti;3;Acquisto di beni e servizi;1;Acquisto di beni;2;Altri beni di consumo;2;Carburanti, combustibili e lubrificanti;04/02/2017
58;1;0;656,15;656,15;VERNA ANDREA;Z7918782B7;SALDO Fatt.n. 27 PA_2016;04/02/2017;7325;0;13;1;Spese correnti;3;Acquisto di beni e servizi;1;Acquisto di beni;2;Altri beni di consumo;2;Carburanti, combustibili e lubrificanti;04/02/2017
59;1;0;428,22;428,22;OREM SPA;ZE11910CA9;SALDO Fatt.n. 1841_2016;04/02/2017;1275;1;39;1;Spese correnti;3;Acquisto di beni e servizi;2;Acquisto di servizi;9;Manutenzione ordinaria e riparazioni;8;Manutenzione ordinaria e riparazioni di beni immobili;04/02/2017
60;1;0;1.860,38;2.193,82;ADECCO ITALIA SPA (FILIALE ORTONA);Z351592B58;SALDO FATT. 2016.0531.00201_2016 RIF CONTRATTO N.2612446_8196 STIPENDIO MESE NOVEMBRE DIP. BUZZELLI SILVIA;04/02/2017;320;56;6;1;Spese correnti;3;Acquisto di beni e servizi;2;Acquisto di servizi;12;Lavoro flessibile, quota LSU e acquisto di servizi da agenzie di lavoro interinale;1;Acquisto di servizi da agenzie di lavoro interinale;04/02/2017
60;2;0;333,44;2.193,82;ADECCO ITALIA SPA (FILIALE ORTONA);Z351592B58;ACCONTO FATT. 2016.0531.00201_2016 RIF CONTRATTO N.2612446_8196 STIPENDIO MESE NOVEMBRE DIP. BUZZELLI SILVIA;04/02/2017;320;56;6;1;Spese correnti;3;Acquisto di beni e servizi;2;Acquisto di servizi;12;Lavoro flessibile, quota LSU e acquisto di servizi da agenzie di lavoro interinale;1;Acquisto di servizi da agenzie di lavoro interinale;04/02/2017
61;1;0;299,16;299,16;INGROSCART SRL;Z561BB85DA;SALDO FATT 1211_01_2016;04/02/2017;320;20;266;1;Spese correnti;3;Acquisto di beni e servizi;1;Acquisto di beni;2;Altri beni di consumo;999;Altri beni e materiali di consumo n.a.c.;04/02/2017
62;1;0;592,92;592,92;PRIMO PIANO DI STEFANO COPPOLA;ZB617313B0;SALDO FATT. 000254_2016 CANONE DI NOLEGGIO STAMPANTI  DAL 01.12.2016  AL 28.02.2016;04/02/2017;550;0;270;1;Spese correnti;3;Acquisto di beni e servizi;2;Acquisto di servizi;7;Utilizzo di beni di terzi;6;Licenze d'uso per software;04/02/2017
63;1;0;175,68;175,68;PRIMO PIANO DI STEFANO COPPOLA;ZB617313B0;SALDO FATT. 252PA_2016 CANONE NOLEGGIO STAMPANTI DAL 01.12.2016  AL 28.02.2017;04/02/2017;550;0;271;1;Spese correnti;3;Acquisto di beni e servizi;2;Acquisto di servizi;7;Utilizzo di beni di terzi;6;Licenze d'uso per software;04/02/2017
64;1;0;595,86;595,86;PRIMO PIANO DI STEFANO COPPOLA;ZB617313B0;ACCONTO FATT.  000253_2016 CANONE NOLEGGIO STAMPANTI;04/02/2017;785;0;269;1;Spese correnti;3;Acquisto di beni e servizi;2;Acquisto di servizi;7;Utilizzo di beni di terzi;8;Noleggi di impianti e macchinari;04/02/2017
65;1;0;197,64;197,64;PRIMO PIANO DI STEFANO COPPOLA;ZB617313B0;SALDO FATT. 000253_2016 CANONE NOLEGGIO STAMPANTI  DAL 01.12.2016  AL 28.02.2017;04/02/2017;550;0;270;1;Spese correnti;3;Acquisto di beni e servizi;2;Acquisto di servizi;7;Utilizzo di beni di terzi;6;Licenze d'uso per software;04/02/2017
66;1;0;22,67;22,67;PRIMO PIANO DI STEFANO COPPOLA;ZB617313B0;SALDO FATT. 000253_2016 CANONE NOLEGGIO STAMPANTI  DAL 01.12.2016  AL 28.02.2017;04/02/2017;550;0;271;1;Spese correnti;3;Acquisto di beni e servizi;2;Acquisto di servizi;7;Utilizzo di beni di terzi;6;Licenze d'uso per software;04/02/2017
67;1;0;2.000,00;2.000,00;AURITI DOMENICO;Z1315BF8B5;SALDO FATT. 3_16  09/12/2016 2 SERVIZIO DI NOLO MEZZI, COMPRESO OPERATORE, PER LA MANUTENZIONE  STRAORDINARIA DELLE STRADE ED AREE COMUNALI;04/02/2017;9710;2;177;2;Spese in conto capitale;2;Investimenti fissi lordi e acquisto di terreni;1;Beni materiali;9;Beni immobili;12;Infrastrutture stradali;04/02/2017
68;1;0;2.997,50;2.997,50;AURITI DOMENICO;Z1315BF8B5;SALDO FATT. FATTPA 1_17  27_01_2017 SERVIZIO DI NOLO MEZZI COMPRESO OPERATORE, PER LA MANUTENZIONE STRAORDINARIA DELLE STRADE ED AREE COMUNALI;04/02/2017;5366;1;126;1;Spese correnti;3;Acquisto di beni e servizi;2;Acquisto di servizi;9;Manutenzione ordinaria e riparazioni;8;Manutenzione ordinaria e riparazioni di beni immobili;04/02/2017
69;1;0;2.580,69;2.580,69;DI CARLO SPA;518879269C;SALDO FATT. 17_2014 I SAL LAVORI DI COSTRUZIONE ASILO NIDO;04/02/2017;9590;1;295;2;Spese in conto capitale;2;Investimenti fissi lordi e acquisto di terreni;1;Beni materiali;9;Beni immobili;3;Fabbricati ad uso scolastico;04/02/2017
70;1;0;9.930,09;9.930,09;DI CARLO SPA;518879269C;SALDO FATT. 44_2014 II SAL LAVORI COSTRUZIONE ASILO NIDO;04/02/2017;9590;1;295;2;Spese in conto capitale;2;Investimenti fissi lordi e acquisto di terreni;1;Beni materiali;9;Beni immobili;17;Fabbricati destinati ad asili nido;04/02/2017
71;1;0;129.989,22;129.989,22;DI CARLO SPA;518879269C;ACCONTO FATT. 3_16  REALIZZAZIONE NUOVA STRUTTURA DA ADIBIRE AD ASILO NIDO;04/02/2017;9590;1;295;2;Spese in conto capitale;2;Investimenti fissi lordi e acquisto di terreni;1;Beni materiali;9;Beni immobili;17;Fabbricati destinati ad asili nido;04/02/2017
72;1;0;863,32;863,32;VERNA ANDREA;Z7918782B7;SALDO FATT. 30_2016 GASOLIO AUTOTRAZIONE E BENZINA SPB  CONTRATTO;04/02/2017;7325;0;13;1;Spese correnti;3;Acquisto di beni e servizi;1;Acquisto di beni;2;Altri beni di consumo;2;Carburanti, combustibili e lubrificanti;04/02/2017
73;1;0;241,56;241,56;PRIMO PIANO DI STEFANO COPPOLA;Z051B55CFF;SALDO FATT. 000014_PA_2017 CANONE DI NOLEGGIO STAMPANTI DAL 04.01.2017  AL 03.04.2017;04/02/2017;550;0;204;1;Spese correnti;3;Acquisto di beni e servizi;2;Acquisto di servizi;7;Utilizzo di beni di terzi;6;Licenze d'uso per software;04/02/2017
74;1;0;503,76;503,76;KONE SPA;Z83188C9F2;SALDO FATT. 0093510442_2016;04/02/2017;4006;30;23;1;Spese correnti;3;Acquisto di beni e servizi;2;Acquisto di servizi;9;Manutenzione ordinaria e riparazioni;5;Manutenzione ordinaria e riparazioni di attrezzature;04/02/2017
75;1;0;225,68;225,68;KONE SPA;Z451BF50D6;SALDO FATT. 0093523664_2017;04/02/2017;1275;1;227;1;Spese correnti;3;Acquisto di beni e servizi;2;Acquisto di servizi;9;Manutenzione ordinaria e riparazioni;8;Manutenzione ordinaria e riparazioni di beni immobili;04/02/2017
76;1;0;6.369,00;6.369,00;L'AUTONOLEGGIO DI LUCIANO CIANCIO;6373869B15;SALDO FATT. 42_16  SERVIZIO TRASPORTO SCOLASTICO ALUNNI DELLA SCUOLA MATERNA, ELEMENTARE E MEDIA MESE DI DICEMBRE 2016;04/02/2017;3415;1;311;1;Spese correnti;3;Acquisto di beni e servizi;2;Acquisto di servizi;15;Contratti di servizio pubblico;2;Contratti di servizio di trasporto scolastico;04/02/2017
77;1;0;1.320,00;1.320,00;SOC. COOP. A.R.L. FRAMMENTI;Z4A16072FE;SALDO FATTPA 43_16 SERVIZIO ASSISTENZA SCUOLABUS DICEMBRE 2016;04/02/2017;3415;10;310;1;Spese correnti;3;Acquisto di beni e servizi;2;Acquisto di servizi;15;Contratti di servizio pubblico;2;Contratti di servizio di trasporto scolastico;04/02/2017
78;1;0;3.900,03;3.900,03;SOC. COOP. A.R.L. FRAMMENTI;6395299FAC;SALDO FATT. 44_16 SERVIZIO MENSA SCOLASTICA ALUNNI , MESE DICEMBRE 2016;04/02/2017;3400;12;312;1;Spese correnti;3;Acquisto di beni e servizi;2;Acquisto di servizi;15;Contratti di servizio pubblico;6;Contratti di servizio per le mense scolastiche;04/02/2017
79;1;0;7.274,09;7.274,09;SOC. COOP. A.R.L. FRAMMENTI;63282816AE;SALDO FATTPA 45_16 GESTIONE NIDO D INFANZIA MESE DICEMBRE 2016;04/02/2017;6120;10;309;1;Spese correnti;3;Acquisto di beni e servizi;2;Acquisto di servizi;15;Contratti di servizio pubblico;10;Contratti di servizio di asilo nido;04/02/2017
80;1;0;23.761,66;23.761,66;ECO.LAN. SPA;Z6218BCC86;SALDO FATT. 100587_2016 IGIENE URBANA CANONE MENSILE AFFIDAM. IN HOUSE SERVIZIO CICLO INTEGR. RIFIUTI URBANI  NOVEMBRE 2016;04/02/2017;5800;10;24;1;Spese correnti;3;Acquisto di beni e servizi;2;Acquisto di servizi;15;Contratti di servizio pubblico;4;Contratti di servizio per la raccolta rifiuti;04/02/2017
82;1;0;400;400;PIETROPAOLO NICOLETTA; ;PRATICA DI RISARCIMENTO DANNI SINISTRO 4 LUGLIO 2015;04/02/2017;561;0;326;1;Spese correnti;10;Altre spese correnti;5;Spese dovute a sanzioni, risarcimenti e indennizzi;2;Spese per risarcimento danni;1;Spese per risarcimento danni;04/02/2017
83;1;0;600;600;IACOVELLA ANTONIO; ;PRATICA DI RISARCIMENTO DANNI SINISTRO 04_02_2016;04/02/2017;561;0;327;1;Spese correnti;10;Altre spese correnti;5;Spese dovute a sanzioni, risarcimenti e indennizzi;2;Spese per risarcimento danni;1;Spese per risarcimento danni;04/02/2017
84;1;0;292,8;292,8;ART NOUVEAU STUDIO SAS;ZAD1BE0CE1;SALDO FATTPA 34_16;04/02/2017;781;0;221;1;Spese correnti;3;Acquisto di beni e servizi;1;Acquisto di beni;2;Altri beni di consumo;1;Carta, cancelleria e stampati;04/02/2017
85;1;0;219,6;219,6;ART NOUVEAU STUDIO SAS;ZA21C58F8E;SALDO FATTPA 36_16;04/02/2017;780;1;263;1;Spese correnti;3;Acquisto di beni e servizi;1;Acquisto di beni;2;Altri beni di consumo;1;Carta, cancelleria e stampati;04/02/2017
86;1;0;129,32;129,32;ART NOUVEAU STUDIO SAS;ZE51C8EDCC;SALDO FATTPA 37_16;04/02/2017;780;1;284;1;Spese correnti;3;Acquisto di beni e servizi;1;Acquisto di beni;2;Altri beni di consumo;1;Carta, cancelleria e stampati;04/02/2017
87;1;0;0,01;2.816,39;CONSORZIO SERVIZI ECOLOGICI DEL FRENTANO;ZDF18BCBE6;SALDO FATT. 560 FE_2016;04/02/2017;5800;10;25;1;Spese correnti;3;Acquisto di beni e servizi;2;Acquisto di servizi;15;Contratti di servizio pubblico;4;Contratti di servizio per la raccolta rifiuti;04/02/2017
87;2;0;1.238,33;2.816,39;CONSORZIO SERVIZI ECOLOGICI DEL FRENTANO;ZDF18BCBE6;ACCONTO FATT. 560 FE_2016;04/02/2017;5800;10;25;1;Spese correnti;3;Acquisto di beni e servizi;2;Acquisto di servizi;15;Contratti di servizio pubblico;4;Contratti di servizio per la raccolta rifiuti;04/02/2017
87;3;0;1.578,05;2.816,39;CONSORZIO SERVIZI ECOLOGICI DEL FRENTANO;ZDF18BCBE6;SALDO FATT. 614 FE_2016;04/02/2017;5800;10;25;1;Spese correnti;3;Acquisto di beni e servizi;2;Acquisto di servizi;15;Contratti di servizio pubblico;4;Contratti di servizio per la raccolta rifiuti;04/02/2017
88;1;0;150,79;150,79;PROIETTI TECH E C. SNC;Z751C47BAE;SALDO FATT. 1991_2016;04/02/2017;780;10;264;1;Spese correnti;3;Acquisto di beni e servizi;2;Acquisto di servizi;9;Manutenzione ordinaria e riparazioni;6;Manutenzione ordinaria e riparazioni di macchine per ufficio;04/02/2017
89;1;0;2.708,40;2.708,40;URBANIA SRL;ZF81B2E270;SALDO FATT. 98_A_2016 FORNITURA BANCHI E SEDIE PER SCUOLA SECONDARIA DI PRIMO GRADO;04/02/2017;9342;0;237;2;Spese in conto capitale;2;Investimenti fissi lordi e acquisto di terreni;1;Beni materiali;3;Mobili e arredi;999;Mobili e arredi n.a.c.;04/02/2017
90;1;0;1.335,90;1.335,90;BARBIERI SRL;ZA71B7518F;SALDO FATT. 2016906129_2016 SMIRT JUNI SEGGIOLINA JUNI;04/02/2017;9542;2;236;2;Spese in conto capitale;2;Investimenti fissi lordi e acquisto di terreni;1;Beni materiali;3;Mobili e arredi;999;Mobili e arredi n.a.c.;04/02/2017
91;1;0;80,37;210,42;FAGIS SRL;Z3218D924A;SALDO FATT. 22_16;04/02/2017;6350;0;26;1;Spese correnti;3;Acquisto di beni e servizi;1;Acquisto di beni;2;Altri beni di consumo;999;Altri beni e materiali di consumo n.a.c.;04/02/2017
91;2;0;130,05;210,42;FAGIS SRL;Z3218D924A;SALDO FATT. 29_16;04/02/2017;6350;0;26;1;Spese correnti;3;Acquisto di beni e servizi;1;Acquisto di beni;2;Altri beni di consumo;999;Altri beni e materiali di consumo n.a.c.;04/02/2017
92;1;0;200;200;DIRITTOITALIA SRL;Z441C5A352;"SALDO Fatt.n. FATTPA 684_16  del 21/12/2016 Seminario""Gli appalti sottosoglia ed il MEPA""";04/02/2017;307;0;257;1;Spese correnti;3;Acquisto di beni e servizi;2;Acquisto di servizi;4;Acquisto di servizi per formazione e addestramento del personale dell'ente;4;Acquisto di servizi per formazione obbligatoria;04/02/2017
93;1;0;4.347,20;4.347,20;CHIAVARI PAOLA; ;SALDO FATT. 3_16 COMP. ANNO 2016;04/02/2017;496;0;258;1;Spese correnti;3;Acquisto di beni e servizi;2;Acquisto di servizi;1;Organi e incarichi istituzionali dell'amministrazione;8;Compensi agli organi istituzionali di revisione, di controllo ed altri incarichi istituzionali dell'amministrazione;04/02/2017
96;1;0;366;366;ASFALTI TOTARO S.R.L.;Z320CDE5C0;SALDO FATT. 92_04  DEL 31_12_2016 ACQ. ASFALTO A FREDDO;08/02/2017;7330;10;273;1;Spese correnti;3;Acquisto di beni e servizi;1;Acquisto di beni;2;Altri beni di consumo;999;Altri beni e materiali di consumo n.a.c.;08/02/2017
97;1;0;1.244,40;1.244,40;DI MARTINO VITTORIO;ZB51B900D1;SALDO FATT. 12_E_2016  DEL 14_12_2016 RIPARAZIONE STRAORDINARIA IMPIANTI TERMICI COMUNALI;08/02/2017;1275;0;216;1;Spese correnti;3;Acquisto di beni e servizi;2;Acquisto di servizi;9;Manutenzione ordinaria e riparazioni;6;Manutenzione ordinaria e riparazioni di macchine per ufficio;08/02/2017
98;1;0;149;149;MEDIASS GPA SPA;ZBD1D39577;ATTIVAZIONE POLIZZA INFORTUNI PER IL PERSONALE ESTERNO;08/02/2017;320;61;10;1;Spese correnti;10;Altre spese correnti;4;Premi di assicurazione;1;Premi di assicurazione contro i danni;3;Premi di assicurazione per responsabilit� civile verso terzi;08/02/2017
99;1;0;240;240;MYO SPA;ZCB1B88A3A;SALDO FATT. 2030_160000965  DEL 30_11_2016 GIORNATA DI STUDIO AREA SEGRETERIA E LEGALE;08/02/2017;306;0;207;1;Spese correnti;3;Acquisto di beni e servizi;2;Acquisto di servizi;4;Acquisto di servizi per formazione e addestramento del personale dell'ente;4;Acquisto di servizi per formazione obbligatoria;08/02/2017
100;1;0;200;200;DIRITTOITALIA SRL;Z4E1C5AED7;SALDO FATT. 685_16  DEL 21_12_2016 MEPA SEMINARIO GLI APPALTI SOTTOSOGLIA ED IL MEPA;08/02/2017;306;0;256;1;Spese correnti;3;Acquisto di beni e servizi;2;Acquisto di servizi;4;Acquisto di servizi per formazione e addestramento del personale dell'ente;4;Acquisto di servizi per formazione obbligatoria;08/02/2017
101;1;0;2.141,98;2.141,98;ADECCO ITALIA SPA (FILIALE ORTONA);Z351592B58;SALDO FATT. 2016.0531.00220  DEL 31_12_2016;08/02/2017;320;56;6;1;Spese correnti;3;Acquisto di beni e servizi;2;Acquisto di servizi;12;Lavoro flessibile, quota LSU e acquisto di servizi da agenzie di lavoro interinale;1;Acquisto di servizi da agenzie di lavoro interinale;08/02/2017
102;1;0;300;300;PETALI D'ORO di Sciorilli Patrizia;Z871C6CADA;SALDO FATT. 2_E_2016  DEL 15_12_2016 ACQ. CORONE DI ALLORO PER FESTIVITA ISTITUZIONALI;08/02/2017;490;0;272;1;Spese correnti;3;Acquisto di beni e servizi;1;Acquisto di beni;2;Altri beni di consumo;9;Beni per attivit� di rappresentanza;08/02/2017
103;1;0;53,68;53,68;ART NOUVEAU STUDIO SAS;Z871C6CADA;SALDO FATT. 35_16  DEL 27_12_2016 STAMPA MANIFESTI;08/02/2017;490;0;271;1;Spese correnti;3;Acquisto di beni e servizi;1;Acquisto di beni;2;Altri beni di consumo;9;Beni per attivit� di rappresentanza;08/02/2017
104;1;0;159,09;159,09;FAGGIONATO ROBERTO;ZC51CB51CF;SALDO FATT. 6_2017  DEL 09_01_2017 ACQ. BANDIERE;08/02/2017;320;40;332;1;Spese correnti;3;Acquisto di beni e servizi;1;Acquisto di beni;2;Altri beni di consumo;1;Carta, cancelleria e stampati;08/02/2017
105;1;0;250;250;"RISTORANTE ""LA TORRE""";ZAB1AE2765;SALDO FATT. 1_2017 FORNITURA N. 10 PRANZI AL SACCO PER I GIURATI;08/02/2017;3774;10;165;1;Spese correnti;3;Acquisto di beni e servizi;1;Acquisto di beni;2;Altri beni di consumo;11;Generi alimentari;08/02/2017
106;1;0;2.199,73;2.199,73;PIERANTONI ORSOLA;ZD116E34F2;SALDO FATT. 02_2016 PA  DEL 21_12_2016 COMPETENZE PER CONVENZIONE;08/02/2017;540;11;263;1;Spese correnti;3;Acquisto di beni e servizi;2;Acquisto di servizi;11;Prestazioni professionali e specialistiche;6;Patrocinio legale;08/02/2017
107;1;0;78,57;4.687,34;ADECCO ITALIA SPA (FILIALE ORTONA);Z2E1C0F91;ACCONTO FATT. 2016.0531.00203  DEL 30_11_2016 RIF CNTRATTO N. 2814249;08/02/2017;1276;0;233;1;Spese correnti;3;Acquisto di beni e servizi;2;Acquisto di servizi;12;Lavoro flessibile, quota LSU e acquisto di servizi da agenzie di lavoro interinale;1;Acquisto di servizi da agenzie di lavoro interinale;08/02/2017
107;2;0;96,5;4.687,34;ADECCO ITALIA SPA (FILIALE ORTONA);Z2E1C0F91;ACCONTO FATT. 2016.0531.00202_2016;08/02/2017;1276;0;233;1;Spese correnti;3;Acquisto di beni e servizi;2;Acquisto di servizi;12;Lavoro flessibile, quota LSU e acquisto di servizi da agenzie di lavoro interinale;1;Acquisto di servizi da agenzie di lavoro interinale;08/02/2017
107;3;0;532,25;4.687,34;ADECCO ITALIA SPA (FILIALE ORTONA);Z2E1C0F91;SALDO FATT. 2016.0531.00202_2016;08/02/2017;1276;0;233;1;Spese correnti;3;Acquisto di beni e servizi;2;Acquisto di servizi;12;Lavoro flessibile, quota LSU e acquisto di servizi da agenzie di lavoro interinale;1;Acquisto di servizi da agenzie di lavoro interinale;08/02/2017
107;4;0;566,2;4.687,34;ADECCO ITALIA SPA (FILIALE ORTONA);Z2E1C0F91;SALDO FATT. 2016.0531.00203_2016;08/02/2017;1276;0;233;1;Spese correnti;3;Acquisto di beni e servizi;2;Acquisto di servizi;12;Lavoro flessibile, quota LSU e acquisto di servizi da agenzie di lavoro interinale;1;Acquisto di servizi da agenzie di lavoro interinale;08/02/2017
107;5;0;1.592,87;4.687,34;ADECCO ITALIA SPA (FILIALE ORTONA);Z2E1C0F91;SALDO FATT. 2016.0531.00223_2016;08/02/2017;1276;0;233;1;Spese correnti;3;Acquisto di beni e servizi;2;Acquisto di servizi;12;Lavoro flessibile, quota LSU e acquisto di servizi da agenzie di lavoro interinale;1;Acquisto di servizi da agenzie di lavoro interinale;08/02/2017
107;6;0;1.820,95;4.687,34;ADECCO ITALIA SPA (FILIALE ORTONA);Z2E1C0F91;SALDO FATT. 2016.0531.00222_2016;08/02/2017;1276;0;233;1;Spese correnti;3;Acquisto di beni e servizi;2;Acquisto di servizi;12;Lavoro flessibile, quota LSU e acquisto di servizi da agenzie di lavoro interinale;1;Acquisto di servizi da agenzie di lavoro interinale;08/02/2017
108;1;0;13.872,33;13.872,33;A.S.L.A. SRL;Z7E1507ABA;SALDO Fatt.n. FATTPA 1_17  del 10/01/2017 QUOTA FISSA PER IL PERIODO 1 LUGLIO 2016 AL 31 DICEMBRE 2016 , RIF DETERMINA N.255 DEL 17.06.2015, E  QUOTA VARIABILE ANNO 2016 RIF DET. 255 DEL 17.06.2015  - CIG Z7E1507ABA -;08/02/2017;9320;0;138;1;Spese correnti;3;Acquisto di beni e servizi;2;Acquisto di servizi;9;Manutenzione ordinaria e riparazioni;4;Manutenzione ordinaria e riparazioni di impianti e macchinari;08/02/2017
109;1;0;4.649,81;4.649,81;CARTOLANDIA DI D'ALESSANDRO MARIANGELA; ;SALDO FATT. 1_2016;08/02/2017;3000;0;330;1;Spese correnti;4;Trasferimenti correnti;2;Trasferimenti correnti a Famiglie;5;Altri trasferimenti a famiglie;999;Altri trasferimenti a famiglie n.a.c.;08/02/2017
110;1;0;22;22;CARTOLIBRERIA CENTRALE DI CALDARELLI MARCO; ;SALDOFATT. 14_16;08/02/2017;3000;0;330;1;Spese correnti;4;Trasferimenti correnti;2;Trasferimenti correnti a Famiglie;5;Altri trasferimenti a famiglie;999;Altri trasferimenti a famiglie n.a.c.;08/02/2017
111;1;0;1.256,03;1.256,03;CARTOTECNICA CIANCIO MARIA PIA; ;SALDO FATT. 1_2017;08/02/2017;3000;0;330;1;Spese correnti;4;Trasferimenti correnti;2;Trasferimenti correnti a Famiglie;5;Altri trasferimenti a famiglie;999;Altri trasferimenti a famiglie n.a.c.;08/02/2017
126;1;0;1.918,76;1.918,76;PERSONALE DIVERSO;6870397EF2;INCENTIVO EX ART. 113 D.LGS 50_2016 AMPL. CIMITERO COM.LE REVERSALE N. 56_2017;11/02/2017;9600;0;226;2;Spese in conto capitale;2;Investimenti fissi lordi e acquisto di terreni;1;Beni materiali;9;Beni immobili;15;Cimiteri;11/02/2017
127;1;0;827,34;827,34;PERSONALE DIVERSO;683561933F;INCENTIVO EX ART. 113 D.LGS 50/2016 VEDI REVERSALE 57_2017;11/02/2017;9590;5;244;2;Spese in conto capitale;2;Investimenti fissi lordi e acquisto di terreni;1;Beni materiali;9;Beni immobili;17;Fabbricati destinati ad asili nido;11/02/2017
128;1;0;604,69;1.846,85;ENEL ENERGIA SPA;ZCD1A29B9F;SALDO FATT. 004701519661_2016;11/02/2017;9321;1;104;1;Spese correnti;3;Acquisto di beni e servizi;2;Acquisto di servizi;5;Utenze e canoni;4;Energia elettrica;11/02/2017
128;2;0;613,55;1.846,85;ENEL ENERGIA SPA;ZCD1A29B9F;SALDO FATT. 004701661713_2016;11/02/2017;9321;1;104;1;Spese correnti;3;Acquisto di beni e servizi;2;Acquisto di servizi;5;Utenze e canoni;4;Energia elettrica;11/02/2017
128;3;0;628,61;1.846,85;ENEL ENERGIA SPA;ZCD1A29B9F;SALDO FATT. 004800035679_2016;11/02/2017;9321;1;104;1;Spese correnti;3;Acquisto di beni e servizi;2;Acquisto di servizi;5;Utenze e canoni;4;Energia elettrica;11/02/2017
129;1;0;2.800,00;2.800,00;ASSOCIAZIONE PRO LOCO ORSOGNA; ;CONTRIBUTO MANIFESTAZIONI NATALIZIE 2016;11/02/2017;3774;40;346;1;Spese correnti;4;Trasferimenti correnti;4;Trasferimenti correnti a Istituzioni Sociali Private;1;Trasferimenti correnti a Istituzioni Sociali Private;1;Trasferimenti correnti a Istituzioni Sociali Private;11/02/2017
130;1;0;11.480,10;11.480,10;DI CIERO ROCCO;Z4E1A7615F;SALDO FATT. FATTPA 8_16  DEL 18_12_2016 AMPLIAMENTO CIMITERO COMUNALE;11/02/2017;9600;0;226;2;Spese in conto capitale;2;Investimenti fissi lordi e acquisto di terreni;1;Beni materiali;9;Beni immobili;15;Cimiteri;11/02/2017
131;1;0;29,51;327,23;HERA COMM SRL;9999999999;ACCONTO FATT. 411605922534_2016;11/02/2017;320;60;48;1;Spese correnti;3;Acquisto di beni e servizi;2;Acquisto di servizi;5;Utenze e canoni;6;Gas;11/02/2017
131;2;0;49,62;327,23;HERA COMM SRL;9999999999;SALDO FATT. 411605922535_2016;11/02/2017;320;60;48;1;Spese correnti;3;Acquisto di beni e servizi;2;Acquisto di servizi;5;Utenze e canoni;6;Gas;11/02/2017
131;3;0;49,62;327,23;HERA COMM SRL;ZEE189539E;SALDO FATT. 411606674479_2016;11/02/2017;320;60;48;1;Spese correnti;3;Acquisto di beni e servizi;2;Acquisto di servizi;5;Utenze e canoni;6;Gas;11/02/2017
131;4;0;49,62;327,23;HERA COMM SRL;ZEE189539E;SALDO FATT. 411607571738_2016;11/02/2017;320;60;48;1;Spese correnti;3;Acquisto di beni e servizi;2;Acquisto di servizi;5;Utenze e canoni;6;Gas;11/02/2017
131;5;0;49,62;327,23;HERA COMM SRL;ZEE189539E;SALDO FATT. 411608307891_2016;11/02/2017;320;60;48;1;Spese correnti;3;Acquisto di beni e servizi;2;Acquisto di servizi;5;Utenze e canoni;6;Gas;11/02/2017
131;6;0;49,62;327,23;HERA COMM SRL;ZEE189539E;SALDO FATT. 411609125235_2016;11/02/2017;320;60;48;1;Spese correnti;3;Acquisto di beni e servizi;2;Acquisto di servizi;5;Utenze e canoni;6;Gas;11/02/2017
131;7;0;49,62;327,23;HERA COMM SRL;ZEE189539E;SALDO FATT. 411700316468_2016;11/02/2017;320;60;48;1;Spese correnti;3;Acquisto di beni e servizi;2;Acquisto di servizi;5;Utenze e canoni;6;Gas;11/02/2017
132;1;0;18,88;18,88;HERA COMM SRL;9999999999;ACCONTO FATT. 411605922534_2016;11/02/2017;6350;10;67;1;Spese correnti;3;Acquisto di beni e servizi;2;Acquisto di servizi;5;Utenze e canoni;4;Energia elettrica;11/02/2017
133;1;0;5,67;5,67;HERA COMM SRL;9999999999;ACCONTO FATT. 411605922534_2016;11/02/2017;4007;10;63;1;Spese correnti;3;Acquisto di beni e servizi;2;Acquisto di servizi;5;Utenze e canoni;4;Energia elettrica;11/02/2017
134;1;0;57,17;57,17;HERA COMM SRL;9999999999;SALDO FATT. 411606505127_2016;11/02/2017;6370;13;53;1;Spese correnti;3;Acquisto di beni e servizi;2;Acquisto di servizi;5;Utenze e canoni;6;Gas;11/02/2017
135;1;0;17,91;17,91;HERA COMM SRL;9999999999;ACCONTO FATT. 411605922534_2016;11/02/2017;5470;30;65;1;Spese correnti;3;Acquisto di beni e servizi;2;Acquisto di servizi;5;Utenze e canoni;4;Energia elettrica;11/02/2017
136;1;0;151,22;151,22;HERA COMM SRL;9999999999;ACCONTO FATT. 411605922534_2016;11/02/2017;320;58;57;1;Spese correnti;3;Acquisto di beni e servizi;2;Acquisto di servizi;5;Utenze e canoni;4;Energia elettrica;11/02/2017
137;1;0;9,58;9,58;HERA COMM SRL;9999999999;ACCONTO FATT. 411605922534_2016;11/02/2017;2165;0;60;1;Spese correnti;3;Acquisto di beni e servizi;2;Acquisto di servizi;5;Utenze e canoni;4;Energia elettrica;11/02/2017
138;1;0;17,87;360,41;HERA COMM SRL;9999999999;ACCONTO FATT. 411605922534_2016;11/02/2017;7400;10;70;1;Spese correnti;3;Acquisto di beni e servizi;2;Acquisto di servizi;5;Utenze e canoni;4;Energia elettrica;11/02/2017
138;2;0;342,54;360,41;HERA COMM SRL;Z43189539C;SALDO Fatt.n. 411606674478  del 09/09/2016 FORNITURA SERVIZIO ENERGIA ELETTRICA IN CONTRADA RITIRO -ORSOGNA-;11/02/2017;7400;10;70;1;Spese correnti;3;Acquisto di beni e servizi;2;Acquisto di servizi;5;Utenze e canoni;4;Energia elettrica;11/02/2017
139;1;0;58,89;58,89;HERA COMM SRL;9999999999;SALDO FATT. 411605922534_2016;11/02/2017;7400;10;69;1;Spese correnti;3;Acquisto di beni e servizi;2;Acquisto di servizi;5;Utenze e canoni;4;Energia elettrica;11/02/2017
148;1;0;647,74;647,74;PERSONALE DIVERSO; ;STIPENDI MESE DI FEBBRAIO 17;16/02/2017;400;0;0;1;Spese correnti;3;Acquisto di beni e servizi;2;Acquisto di servizi;12;Lavoro flessibile, quota LSU e acquisto di servizi da agenzie di lavoro interinale;2;Quota LSU in carico all'ente;16/02/2017
182;1;0;976,11;976,11;PERSONALE DIVERSO; ;STIPENDI MESE DI FEBBRAIO 17;16/02/2017;55;10;1;1;Spese correnti;3;Acquisto di beni e servizi;2;Acquisto di servizi;1;Organi e incarichi istituzionali dell'amministrazione;1;Organi istituzionali dell'amministrazione - Indennit�;16/02/2017
187;1;0;372,34;372,34;D'OTTAVIO G. & DI FABIO D. S.N.C.;ZF5194C434;SALDO FATT. 10_16  DEL 28_12_2016;17/02/2017;6350;0;45;1;Spese correnti;3;Acquisto di beni e servizi;1;Acquisto di beni;2;Altri beni di consumo;999;Altri beni e materiali di consumo n.a.c.;17/02/2017
188;1;0;31,24;31,24;D'OTTAVIO  NICOLO';ZF5194C434;ACCONTO FATT. FATTPA 8_16  DEL  21_12_2016;17/02/2017;6350;30;221;1;Spese correnti;3;Acquisto di beni e servizi;2;Acquisto di servizi;9;Manutenzione ordinaria e riparazioni;8;Manutenzione ordinaria e riparazioni di beni immobili;17/02/2017
189;1;0;967,62;967,62;D'OTTAVIO  NICOLO';ZF5194C434;SALDO FATT. FATTPA 8_16  DEL 21_/12_2016 ACQ. MATERIALE VARIO PER MANUTENZIONE EDIFICI ED ATTREZZATURE COMUNALI;17/02/2017;6350;30;46;1;Spese correnti;3;Acquisto di beni e servizi;2;Acquisto di servizi;9;Manutenzione ordinaria e riparazioni;5;Manutenzione ordinaria e riparazioni di attrezzature;17/02/2017
190;1;0;2.032,66;2.032,66;D'OTTAVIO  NICOLO';ZF5194C434;ACCONTO FATT. FATTPA 9_16  del 21_12_2016 ACQUISTO MATERIALE VARIO PER MANUTENZIONE EDIFICI ED ATTREZZATURE COMUNALI;17/02/2017;6350;30;46;1;Spese correnti;3;Acquisto di beni e servizi;2;Acquisto di servizi;9;Manutenzione ordinaria e riparazioni;5;Manutenzione ordinaria e riparazioni di attrezzature;17/02/2017
191;1;0;256,51;256,51;D'OTTAVIO  NICOLO';ZF5194C434;SALDO FATT. FATTPA 9_16  DEL 21_12_2016 ACQUISTO MATERIALE VARIO PER MANUTENZIONE EDIFICI ED ATTREZZATURE COMUNALI;17/02/2017;6350;0;222;1;Spese correnti;3;Acquisto di beni e servizi;1;Acquisto di beni;2;Altri beni di consumo;999;Altri beni e materiali di consumo n.a.c.;17/02/2017
192;1;0;170,8;341,6;HALLEY INFORMATICA S.R.L.;Z5D1C196D7;SALDO FATT.  12759_8_10  DEL  29_11_2016 ADDESTRAMENTO;17/02/2017;308;0;234;1;Spese correnti;3;Acquisto di beni e servizi;2;Acquisto di servizi;4;Acquisto di servizi per formazione e addestramento del personale dell'ente;4;Acquisto di servizi per formazione obbligatoria;17/02/2017
192;2;0;170,8;341,6;HALLEY INFORMATICA S.R.L.;Z5D1C196D7;SALDO FATT. 13384/8_10  del 20_12_2016 ADDESTRAMENTO RIFERIMENTO FOGLIO INTERVENTO;17/02/2017;308;0;234;1;Spese correnti;3;Acquisto di beni e servizi;2;Acquisto di servizi;4;Acquisto di servizi per formazione e addestramento del personale dell'ente;4;Acquisto di servizi per formazione obbligatoria;17/02/2017
193;1;0;170,8;170,8;HALLEY INFORMATICA S.R.L.;Z5D1C196D7;SALDO FATT. 13669_8_10  del 28_12_2016 ADDESTRAMENTO RIFERIMENTO FOGLIO INTERVENTO N.208465 DEL 20.12.16;17/02/2017;308;0;234;1;Spese correnti;3;Acquisto di beni e servizi;2;Acquisto di servizi;4;Acquisto di servizi per formazione e addestramento del personale dell'ente;4;Acquisto di servizi per formazione obbligatoria;17/02/2017
194;1;0;146,4;146,4;FEDERALPOL SRL - ISTITUTO DI VIGILANZA;Z5B1962BB5;SALDO FATT. 65_01  DEL 31_12_2016 SERVIZIO DI TELEALLARME PERIODO DICEMBRE 2016;17/02/2017;9320;0;73;1;Spese correnti;3;Acquisto di beni e servizi;2;Acquisto di servizi;9;Manutenzione ordinaria e riparazioni;4;Manutenzione ordinaria e riparazioni di impianti e macchinari;17/02/2017
195;1;0;2.318,00;2.318,00;TRAVAGLINI DOMENICO;Z9316E3FB0;SALDO FATT. 2PA  DEL 10_01_2017 MANUTENZ. PUBBLICA ILLUMINAZIONE IMP. ELETTRICI NOV. DIC. 2016;17/02/2017;7425;10;294;1;Spese correnti;3;Acquisto di beni e servizi;2;Acquisto di servizi;15;Contratti di servizio pubblico;15;Contratti di servizio per l'illuminazione pubblica;17/02/2017
196;1;0;0,02;407,21;BRILLANTE SRL;ZF51AF1115;SALDO FATT. 41_50  DEL 30_11_2016;17/02/2017;1270;0;157;1;Spese correnti;3;Acquisto di beni e servizi;1;Acquisto di beni;2;Altri beni di consumo;999;Altri beni e materiali di consumo n.a.c.;17/02/2017
196;2;0;0,04;407,21;BRILLANTE SRL;ZF51AF1115;SALDO FATT. 44_50  DEL 31_12_2016 ACQ. GHIAIA 010;17/02/2017;1270;0;157;1;Spese correnti;3;Acquisto di beni e servizi;1;Acquisto di beni;2;Altri beni di consumo;999;Altri beni e materiali di consumo n.a.c.;17/02/2017
196;3;0;46,97;407,21;BRILLANTE SRL;ZF51AF1115;ACCONTO FATT. 44_50  del 31_12_2016 ACQ. GHIAIA 010;17/02/2017;1270;0;157;1;Spese correnti;3;Acquisto di beni e servizi;1;Acquisto di beni;2;Altri beni di consumo;999;Altri beni e materiali di consumo n.a.c.;17/02/2017
196;4;0;79,18;407,21;BRILLANTE SRL;ZF51AF1115;ACCONTO FATT. 41_50  DEL  30_11_2016 ACQ. MATERIALI PER MANUTENZ. EDIFICI E ATTREZZATURE COMUNALI;17/02/2017;1270;0;157;1;Spese correnti;3;Acquisto di beni e servizi;1;Acquisto di beni;2;Altri beni di consumo;999;Altri beni e materiali di consumo n.a.c.;17/02/2017
196;5;0;281;407,21;BRILLANTE SRL;ZF51AF1115;SALDO FATT. 43_50 DEL 16_12_2016 ACQ. ASFALTO PRONTO;17/02/2017;1270;0;157;1;Spese correnti;3;Acquisto di beni e servizi;1;Acquisto di beni;2;Altri beni di consumo;999;Altri beni e materiali di consumo n.a.c.;17/02/2017
197;1;0;1.117,44;5.659,28;ENI SPA DIVISIONE GAS & POWER; ;SALDO FATT. M137449139  DEL 12_12_2013 FORNIT. E.E.;17/02/2017;9061;2;150;1;Spese correnti;10;Altre spese correnti;99;Altre spese correnti n.a.c.;99;Altre spese correnti n.a.c.;999;Altre spese correnti n.a.c.;17/02/2017
197;2;0;1.158,60;5.659,28;ENI SPA DIVISIONE GAS & POWER; ;SALDO FATT. N. M137101757 DEL 12_09_2013 FORNIT. E.E.;17/02/2017;9061;2;150;1;Spese correnti;10;Altre spese correnti;99;Altre spese correnti n.a.c.;99;Altre spese correnti n.a.c.;999;Altre spese correnti n.a.c.;17/02/2017
197;3;0;3.383,24;5.659,28;ENI SPA DIVISIONE GAS & POWER; ;SALDO FATT. N. 1442745850 DEL 28_11_2014 FORNIT. E.E.;17/02/2017;9061;2;150;1;Spese correnti;10;Altre spese correnti;99;Altre spese correnti n.a.c.;99;Altre spese correnti n.a.c.;999;Altre spese correnti n.a.c.;17/02/2017
198;1;0;1,22;1,22;ANDREANI TRIBUTI SRL;Z5811681EA;SALDO FATT. 130_PA  DEL 12_01_2017 AGGIO DEL 13,11 PERC. SU EURO 92,00 PER ICI _ACCERTAMENTO NEL QUARTO TRIMESTRE 2016;17/02/2017;1456;0;126;1;Spese correnti;3;Acquisto di beni e servizi;2;Acquisto di servizi;3;Aggi di riscossione;999;Altri aggi di riscossione n.a.c.;17/02/2017
199;1;0;14,71;14,71;ANDREANI TRIBUTI SRL;Z5811681EA;SALDO FAT.. 133_PA  DEL 12_01_2017 FATTURA IMMEDIATA A PUBBLICA AMM.NE PER  AGGIO DEL 13,11 PERC. SU EURO 92,00 PER ICI ACCERTAMENTO NEL QUARTO TRIMESTRE 2016;17/02/2017;1456;0;126;1;Spese correnti;3;Acquisto di beni e servizi;2;Acquisto di servizi;3;Aggi di riscossione;999;Altri aggi di riscossione n.a.c.;17/02/2017
200;1;0;12,2;1.112,27;ERREBIAN SPA;ZCB1CCA1C4;ACCONTO FATT. V2_503492 DEL 27_01_2017 ACQUISTO MATERIALE CANCELLERIA UFFICIO. RIF. ORDINE N.3433624 DEL 30.12.2016;17/02/2017;320;50;316;1;Spese correnti;3;Acquisto di beni e servizi;1;Acquisto di beni;2;Altri beni di consumo;1;Carta, cancelleria e stampati;17/02/2017
200;2;0;1.100,07;1.112,27;ERREBIAN SPA;ZCB1CCA1C4;SALDO FATT.  V2_503492 DEL 27_01_2017 ACQUISTO MATERIALE CANCELLERIA UFFICIO. RIF. ORDINE N.3433624 DEL 30.12.2016;17/02/2017;320;50;316;1;Spese correnti;3;Acquisto di beni e servizi;1;Acquisto di beni;2;Altri beni di consumo;1;Carta, cancelleria e stampati;17/02/2017
201;1;0;1.049,75;1.049,75;ADECCO ITALIA SPA (FILIALE ORTONA);Z0D1934414;SALDO FATT. 2017.0531.00013 DEL 31_01_2017 RIF. CONTRATTO N.2612460_8198 STIPENDIO GENNAIO 2017 DIP. TORRIERO LUCIANA;17/02/2017;1454;0;317;1;Spese correnti;3;Acquisto di beni e servizi;2;Acquisto di servizi;12;Lavoro flessibile, quota LSU e acquisto di servizi da agenzie di lavoro interinale;1;Acquisto di servizi da agenzie di lavoro interinale;17/02/2017
202;1;0;2.013,00;2.013,00;MYO SPA;ZBE1C1AA1F;SALDO FATT. 2040_170002078 DEL 31_01_2017 SERVIZIO INVENTARIO BENI MOBILI ED IMMOBILI;17/02/2017;9031;0;232;1;Spese correnti;3;Acquisto di beni e servizi;2;Acquisto di servizi;99;Altri servizi;999;Altri servizi diversi n.a.c.;17/02/2017
203;1;0;13.000,00;13.000,00;ANDREANI TRIBUTI SRL;Z5811681EA;SALDO FATT. 320_PA  DEL 09_02_2017 SALDO SU RUOLO ICI ACCERTAMENTO DI EURO 152.690,12;17/02/2017;1456;0;126;1;Spese correnti;3;Acquisto di beni e servizi;2;Acquisto di servizi;3;Aggi di riscossione;999;Altri aggi di riscossione n.a.c.;17/02/2017
204;1;0;2.280,58;2.280,58;ADECCO ITALIA SPA (FILIALE ORTONA);Z0D1934414;SALDO FATT. 2016.0531.00218  DEL 31_12_2016 RIF CONTRATTO 2612460/8198 COSTO STIPENDIO DICEMBRE 2016 DIP. TORRIERO LUCIANA;17/02/2017;1454;0;40;1;Spese correnti;3;Acquisto di beni e servizi;2;Acquisto di servizi;12;Lavoro flessibile, quota LSU e acquisto di servizi da agenzie di lavoro interinale;1;Acquisto di servizi da agenzie di lavoro interinale;17/02/2017
205;1;0;1.320,00;1.320,00;SOC. COOP. A.R.L. FRAMMENTI;Z4A16072FE;SALDO FATT. FATTPA 4_17  DEL 28_01_2017 SERVIZIO DI ASSISTENZA SU SCUOLABUS A MINORI PERIODO GENNAIO 2017;17/02/2017;3415;10;358;1;Spese correnti;3;Acquisto di beni e servizi;2;Acquisto di servizi;15;Contratti di servizio pubblico;2;Contratti di servizio di trasporto scolastico;17/02/2017
206;1;0;2.572,97;2.572,97;SOC. COOP. A.R.L. FRAMMENTI;6395299FAC;SALDO FATT. FATTPA 49_16  DEL 30_12_2016 SERVIZIO MENSA SCOLASTICA DOCENTE E PERSONALE SCOLASTICO PERIODO OTTOBRE DICEMBRE 2016;17/02/2017;3400;12;357;1;Spese correnti;3;Acquisto di beni e servizi;2;Acquisto di servizi;15;Contratti di servizio pubblico;6;Contratti di servizio per le mense scolastiche;17/02/2017
207;1;0;1.938,08;1.938,08;SOC. COOP. A.R.L. FRAMMENTI;6395299FAC;SALDO FATT. FATTPA 6_17  DEL 31_01_2017 SERVIZIO MENSA SCOLASTICA AD ALUNNI PERIODO GENNAIO 2017;17/02/2017;3400;12;357;1;Spese correnti;3;Acquisto di beni e servizi;2;Acquisto di servizi;15;Contratti di servizio pubblico;6;Contratti di servizio per le mense scolastiche;17/02/2017
208;1;0;7.030,09;7.030,09;SOC. COOP. A.R.L. FRAMMENTI;63282816AE;SALDO FATT. FATTPA 5_17  DEL 31_01_2017 GESTIONE NIDO D INFANZIA PERIODO GENNAIO 2017;17/02/2017;6120;10;356;1;Spese correnti;3;Acquisto di beni e servizi;2;Acquisto di servizi;15;Contratti di servizio pubblico;10;Contratti di servizio di asilo nido;17/02/2017
209;1;0;618,57;618,57;VODAFONE ITALIA SPA;Z16199B7A7;SALDO FATT. AH01783924 DEL 02_02_2017 FORNITURA SERVIZIO TELEFONIA, TRAFFICO, COSTI E BOLLI;17/02/2017;320;62;89;1;Spese correnti;3;Acquisto di beni e servizi;2;Acquisto di servizi;5;Utenze e canoni;1;Telefonia fissa;17/02/2017
210;1;0;1.450,00;1.450,00;CIANCIO FRANCO; ;PRATICA DI RISARCIMENTO DANNI SINISTRO DEL 6_6_2016;17/02/2017;561;0;325;1;Spese correnti;10;Altre spese correnti;5;Spese dovute a sanzioni, risarcimenti e indennizzi;2;Spese per risarcimento danni;1;Spese per risarcimento danni;17/02/2017
211;1;0;375;375;ANAC AUTORITA NAZIONALE ANTICORRUZIONE; ;ANAC, CODICE MAV 01030560630021303;17/02/2017;9541;10;317;2;Spese in conto capitale;2;Investimenti fissi lordi e acquisto di terreni;1;Beni materiali;9;Beni immobili;3;Fabbricati ad uso scolastico;17/02/2017
212;1;0;30;30;ANAC AUTORITA NAZIONALE ANTICORRUZIONE;59625579AF;ANAC, CODICE MAV 01030560630021303;17/02/2017;9602;40;322;2;Spese in conto capitale;2;Investimenti fissi lordi e acquisto di terreni;1;Beni materiali;9;Beni immobili;15;Cimiteri;17/02/2017
214;1;0;646,65;646,65;ADECCO ITALIA SPA (FILIALE ORTONA);Z351592B58;SALDO FATT. 2017.0531.00014  DEL 31_01_2017 RIF. CONTRATTO 2612446/8196 STIP. BUZZELLI SILVIA MESE GENNAIO 2017;22/02/2017;320;56;341;1;Spese correnti;3;Acquisto di beni e servizi;2;Acquisto di servizi;12;Lavoro flessibile, quota LSU e acquisto di servizi da agenzie di lavoro interinale;1;Acquisto di servizi da agenzie di lavoro interinale;22/02/2017
215;1;0;1.538,56;1.538,56;A.F.I.A. ASS. FAMIGLIE IPOACUSICI ABRUZZESI; ;VOUCHER SOCIALI OTTOBRE_DICEMBRE 2016;22/02/2017;7115;10;348;1;Spese correnti;4;Trasferimenti correnti;2;Trasferimenti correnti a Famiglie;2;Interventi assistenziali;999;Altri assegni e sussidi assistenziali;22/02/2017
216;1;0;450;1.650,00;SAMIDAD COOPERATIVA SOCIALE P.A. ONLUS; ;SALDO FATT. 583_PA  DEL 08_11_2016;22/02/2017;7115;10;348;1;Spese correnti;4;Trasferimenti correnti;2;Trasferimenti correnti a Famiglie;2;Interventi assistenziali;999;Altri assegni e sussidi assistenziali;22/02/2017
216;2;0;600;1.650,00;SAMIDAD COOPERATIVA SOCIALE P.A. ONLUS; ;SALDO FATT. 654_PA DEL 16_12_2016;22/02/2017;7115;10;348;1;Spese correnti;4;Trasferimenti correnti;2;Trasferimenti correnti a Famiglie;2;Interventi assistenziali;999;Altri assegni e sussidi assistenziali;22/02/2017
216;3;0;600;1.650,00;SAMIDAD COOPERATIVA SOCIALE P.A. ONLUS; ;SALDO FATT. 687_PA DEL 31_12_2016;22/02/2017;7115;10;348;1;Spese correnti;4;Trasferimenti correnti;2;Trasferimenti correnti a Famiglie;2;Interventi assistenziali;999;Altri assegni e sussidi assistenziali;22/02/2017
218;1;0;0,05;31,88;TESORERIA PROVINCIALE DELLO STATO; ;SPESE SOSTENUTE DALLO STATO PER LA MANUTENZIONE E L'ESERCIZIO DI FARI E FANALI E SEGNALAMENTI  MARITTIMI QUOTA A CARICO DEL COMUNE DI ORSOGNA ANNO 2015;24/02/2017;7690;0;240;1;Spese correnti;4;Trasferimenti correnti;1;Trasferimenti correnti a Amministrazioni Pubbliche;1;Trasferimenti correnti a Amministrazioni Centrali;1;Trasferimenti correnti a Ministeri;24/02/2017
218;2;0;31,83;31,88;TESORERIA PROVINCIALE DELLO STATO; ;SPESE SOSTENUTE DALLO STATO PER LA MANUTENZIONE E L'ESERCIZIO DI FARI E FANALI E SEGNALAMENTI  MARITTIMI QUOTA A CARICO DEL COMUNE DI ORSOGNA ANNO 2015;24/02/2017;7690;0;240;1;Spese correnti;4;Trasferimenti correnti;1;Trasferimenti correnti a Amministrazioni Pubbliche;1;Trasferimenti correnti a Amministrazioni Centrali;1;Trasferimenti correnti a Ministeri;24/02/2017
219;1;0;43,36;1.753,84;ENEGAN SPA;Z1B189539D;SALDO FATT. 447805  DEL 10_09_2016;27/02/2017;320;58;187;1;Spese correnti;3;Acquisto di beni e servizi;2;Acquisto di servizi;5;Utenze e canoni;4;Energia elettrica;27/02/2017
219;2;0;47,67;1.753,84;ENEGAN SPA;Z1B189539D;SALDO FATT. 449852  DEL 10_09_2016;27/02/2017;320;58;187;1;Spese correnti;3;Acquisto di beni e servizi;2;Acquisto di servizi;5;Utenze e canoni;4;Energia elettrica;27/02/2017
219;3;0;100,6;1.753,84;ENEGAN SPA;Z1B189539D;SALDO FATT. 448378  DEL 10_09_2016;27/02/2017;320;58;187;1;Spese correnti;3;Acquisto di beni e servizi;2;Acquisto di servizi;5;Utenze e canoni;4;Energia elettrica;27/02/2017
219;4;0;107,2;1.753,84;ENEGAN SPA;Z1B189539D;SALDO FATT. 452152  DEL 10_09_2016;27/02/2017;320;58;187;1;Spese correnti;3;Acquisto di beni e servizi;2;Acquisto di servizi;5;Utenze e canoni;4;Energia elettrica;27/02/2017
219;5;0;113,39;1.753,84;ENEGAN SPA;Z1B189539D;SALDO FATT. 551574 DEL 10_10_2016;27/02/2017;320;58;187;1;Spese correnti;3;Acquisto di beni e servizi;2;Acquisto di servizi;5;Utenze e canoni;4;Energia elettrica;27/02/2017
219;6;0;124,82;1.753,84;ENEGAN SPA;Z1B189539D;SALDO FATT. 564894  DEL 10_10_2016;27/02/2017;320;58;187;1;Spese correnti;3;Acquisto di beni e servizi;2;Acquisto di servizi;5;Utenze e canoni;4;Energia elettrica;27/02/2017
219;7;0;140,82;1.753,84;ENEGAN SPA;Z1B189539D;SALDO FATT. 457834 DEL 10_09_2016;27/02/2017;320;58;187;1;Spese correnti;3;Acquisto di beni e servizi;2;Acquisto di servizi;5;Utenze e canoni;4;Energia elettrica;27/02/2017
219;8;0;160,81;1.753,84;ENEGAN SPA;Z1B189539D;SALDO FATT. 539008  DEL 10_10_2016;27/02/2017;320;58;187;1;Spese correnti;3;Acquisto di beni e servizi;2;Acquisto di servizi;5;Utenze e canoni;4;Energia elettrica;27/02/2017
219;9;0;193,19;1.753,84;ENEGAN SPA;Z1B189539D;SALDO FATT. 494915 DEL 10_09_2016;27/02/2017;320;58;187;1;Spese correnti;3;Acquisto di beni e servizi;2;Acquisto di servizi;5;Utenze e canoni;4;Energia elettrica;27/02/2017
219;10;0;347,98;1.753,84;ENEGAN SPA;Z1B189539D;SALDO FATT. 478549 DEL 10_09_2016;27/02/2017;320;58;187;1;Spese correnti;3;Acquisto di beni e servizi;2;Acquisto di servizi;5;Utenze e canoni;4;Energia elettrica;27/02/2017
219;11;0;374;1.753,84;ENEGAN SPA;Z1B189539D;SALDO FATT. 457611 DEL 10_09_2016;27/02/2017;320;58;187;1;Spese correnti;3;Acquisto di beni e servizi;2;Acquisto di servizi;5;Utenze e canoni;4;Energia elettrica;27/02/2017
220;1;0;44,24;2.611,67;ENEGAN SPA;Z1B189539D;SALDO FATT. 642210 DEL 10_11_2016;27/02/2017;320;58;187;1;Spese correnti;3;Acquisto di beni e servizi;2;Acquisto di servizi;5;Utenze e canoni;4;Energia elettrica;27/02/2017
220;2;0;46,84;2.611,67;ENEGAN SPA;Z1B189539D;SALDO FATT. 587511 DEL 10_10_2016;27/02/2017;320;58;187;1;Spese correnti;3;Acquisto di beni e servizi;2;Acquisto di servizi;5;Utenze e canoni;4;Energia elettrica;27/02/2017
220;3;0;47,67;2.611,67;ENEGAN SPA;Z1B189539D;SALDO FATT. 593472 DEL 10_11_2016;27/02/2017;320;58;187;1;Spese correnti;3;Acquisto di beni e servizi;2;Acquisto di servizi;5;Utenze e canoni;4;Energia elettrica;27/02/2017
220;4;0;51,56;2.611,67;ENEGAN SPA;Z1B189539D;SALDO FATT. 570209 DEL 10_10_2016;27/02/2017;320;58;187;1;Spese correnti;3;Acquisto di beni e servizi;2;Acquisto di servizi;5;Utenze e canoni;4;Energia elettrica;27/02/2017
220;5;0;66,99;2.611,67;ENEGAN SPA;Z1B189539D;SALDO FATT. 616364 DEL 10_11_2016;27/02/2017;320;58;187;1;Spese correnti;3;Acquisto di beni e servizi;2;Acquisto di servizi;5;Utenze e canoni;4;Energia elettrica;27/02/2017
220;6;0;108,38;2.611,67;ENEGAN SPA;Z1B189539D;SALDO FATT. 587923 DEL 10_10_2016;27/02/2017;320;58;187;1;Spese correnti;3;Acquisto di beni e servizi;2;Acquisto di servizi;5;Utenze e canoni;4;Energia elettrica;27/02/2017
220;7;0;112,36;2.611,67;ENEGAN SPA;Z1B189539D;SALDO FATT. 616355 DEL 10_11_2016;27/02/2017;320;58;187;1;Spese correnti;3;Acquisto di beni e servizi;2;Acquisto di servizi;5;Utenze e canoni;4;Energia elettrica;27/02/2017
220;8;0;144,31;2.611,67;ENEGAN SPA;Z1B189539D;SALDO FATT. 656538 DEL 10_11_2016;27/02/2017;320;58;187;1;Spese correnti;3;Acquisto di beni e servizi;2;Acquisto di servizi;5;Utenze e canoni;4;Energia elettrica;27/02/2017
220;9;0;153,24;2.611,67;ENEGAN SPA;Z1B189539D;SALDO FATT. 646735 DEL 10_11_2016;27/02/2017;320;58;187;1;Spese correnti;3;Acquisto di beni e servizi;2;Acquisto di servizi;5;Utenze e canoni;4;Energia elettrica;27/02/2017
220;10;0;181,17;2.611,67;ENEGAN SPA;Z1B189539D;SALDO FATT. 661861 DEL 10_11_2016;27/02/2017;320;58;187;1;Spese correnti;3;Acquisto di beni e servizi;2;Acquisto di servizi;5;Utenze e canoni;4;Energia elettrica;27/02/2017
220;11;0;345,7;2.611,67;ENEGAN SPA;Z1B189539D;SALDO FATT. 546248 DEL 10_10_2016;27/02/2017;320;58;187;1;Spese correnti;3;Acquisto di beni e servizi;2;Acquisto di servizi;5;Utenze e canoni;4;Energia elettrica;27/02/2017
220;12;0;365,7;2.611,67;ENEGAN SPA;Z1B189539D;SALDO FATT. 581538 DEL 10_10_2016;27/02/2017;320;58;187;1;Spese correnti;3;Acquisto di beni e servizi;2;Acquisto di servizi;5;Utenze e canoni;4;Energia elettrica;27/02/2017
220;13;0;435,15;2.611,67;ENEGAN SPA;Z1B189539D;SALDO FATT. 663249 DEL 10_11_2016;27/02/2017;320;58;187;1;Spese correnti;3;Acquisto di beni e servizi;2;Acquisto di servizi;5;Utenze e canoni;4;Energia elettrica;27/02/2017
220;14;0;508,36;2.611,67;ENEGAN SPA;Z1B189539D;SALDO FATT. 616478 DEL 10_11_2016;27/02/2017;320;58;187;1;Spese correnti;3;Acquisto di beni e servizi;2;Acquisto di servizi;5;Utenze e canoni;4;Energia elettrica;27/02/2017
221;1;0;23,3;962,1;ENEGAN SPA;Z1B189539D;SALDO FATT. 193176 DEL 10_10_2016;27/02/2017;2970;20;188;1;Spese correnti;3;Acquisto di beni e servizi;2;Acquisto di servizi;5;Utenze e canoni;4;Energia elettrica;27/02/2017
221;2;0;144,62;962,1;ENEGAN SPA;Z1B189539D;SALDO FATT. 492042 DEL 10 09 2016;27/02/2017;2970;20;188;1;Spese correnti;3;Acquisto di beni e servizi;2;Acquisto di servizi;5;Utenze e canoni;4;Energia elettrica;27/02/2017
221;3;0;284,74;962,1;ENEGAN SPA;Z1B189539D;SALDO FATT. 569770 DEL 10 10 2016;27/02/2017;2970;20;188;1;Spese correnti;3;Acquisto di beni e servizi;2;Acquisto di servizi;5;Utenze e canoni;4;Energia elettrica;27/02/2017
221;4;0;509,44;962,1;ENEGAN SPA;Z1B189539D;SALDO FAT. 604516 DEL 10 11 2016;27/02/2017;2970;20;188;1;Spese correnti;3;Acquisto di beni e servizi;2;Acquisto di servizi;5;Utenze e canoni;4;Energia elettrica;27/02/2017
222;1;0;114,63;566,42;ENEGAN SPA;Z1B189539D;SALDO FATT. 506718 DEL 10 09 2016;27/02/2017;3210;0;189;1;Spese correnti;3;Acquisto di beni e servizi;2;Acquisto di servizi;5;Utenze e canoni;4;Energia elettrica;27/02/2017
222;2;0;181,93;566,42;ENEGAN SPA;Z1B189539D;SALDO 517773 DEL 10 10 2016;27/02/2017;3210;0;189;1;Spese correnti;3;Acquisto di beni e servizi;2;Acquisto di servizi;5;Utenze e canoni;4;Energia elettrica;27/02/2017
222;3;0;269,86;566,42;ENEGAN SPA;Z1B189539D;SALDO FATT. 612732 DEL 10_11_2016;27/02/2017;3210;0;189;1;Spese correnti;3;Acquisto di beni e servizi;2;Acquisto di servizi;5;Utenze e canoni;4;Energia elettrica;27/02/2017
223;1;0;49,35;99,1;ENEGAN SPA;Z1B189539D;SALDO FATT. 478957 DEL 10 09 2016;27/02/2017;4007;10;191;1;Spese correnti;3;Acquisto di beni e servizi;2;Acquisto di servizi;5;Utenze e canoni;4;Energia elettrica;27/02/2017
223;2;0;49,75;99,1;ENEGAN SPA;Z1B189539D;SALDO FATT. 600024  DEL 10 11 2016;27/02/2017;4007;10;191;1;Spese correnti;3;Acquisto di beni e servizi;2;Acquisto di servizi;5;Utenze e canoni;4;Energia elettrica;27/02/2017
224;1;0;28,61;28,61;ENEGAN SPA;Z1B189539D;SALDO FATT. 507502 DEL 10 09 2016;27/02/2017;4005;10;241;1;Spese correnti;3;Acquisto di beni e servizi;2;Acquisto di servizi;5;Utenze e canoni;4;Energia elettrica;27/02/2017
225;1;0;30,65;128,16;ENEGAN SPA;Z1B189539D;SALDO FATT. 658431 DEL 10 11 2016;27/02/2017;6350;10;194;1;Spese correnti;3;Acquisto di beni e servizi;2;Acquisto di servizi;5;Utenze e canoni;4;Energia elettrica;27/02/2017
225;2;0;47,67;128,16;ENEGAN SPA;Z1B189539D;SALDO FATT. 523171 DEL 10 10 2016;27/02/2017;6350;10;194;1;Spese correnti;3;Acquisto di beni e servizi;2;Acquisto di servizi;5;Utenze e canoni;4;Energia elettrica;27/02/2017
225;3;0;49,84;128,16;ENEGAN SPA;Z1B189539D;SALDO FATT. 534469 DEL 10 10 2016;27/02/2017;6350;10;194;1;Spese correnti;3;Acquisto di beni e servizi;2;Acquisto di servizi;5;Utenze e canoni;4;Energia elettrica;27/02/2017
226;1;0;101,96;101,96;ENEGAN SPA;Z43189539C;SALDO FATT. 558100 DEL 10 10 2016;27/02/2017;7400;10;196;1;Spese correnti;3;Acquisto di beni e servizi;2;Acquisto di servizi;5;Utenze e canoni;4;Energia elettrica;27/02/2017
227;1;0;47,67;302,6;ENEGAN SPA;Z1B189539D;SALDO FATT. 451197 DEL 10 09 2016;27/02/2017;5470;30;193;1;Spese correnti;3;Acquisto di beni e servizi;2;Acquisto di servizi;5;Utenze e canoni;4;Energia elettrica;27/02/2017
227;2;0;47,67;302,6;ENEGAN SPA;Z1B189539D;SALDO FATT. 549345 DEL  10 10 2016;27/02/2017;5470;30;193;1;Spese correnti;3;Acquisto di beni e servizi;2;Acquisto di servizi;5;Utenze e canoni;4;Energia elettrica;27/02/2017
227;3;0;47,67;302,6;ENEGAN SPA;Z1B189539D;SALDO FATT. 592927 DEL 10 11 2016;27/02/2017;5470;30;193;1;Spese correnti;3;Acquisto di beni e servizi;2;Acquisto di servizi;5;Utenze e canoni;4;Energia elettrica;27/02/2017
227;4;0;49,32;302,6;ENEGAN SPA;Z1B189539D;SALDO FATT. 616551 DEL 10 11 2016;27/02/2017;5470;30;193;1;Spese correnti;3;Acquisto di beni e servizi;2;Acquisto di servizi;5;Utenze e canoni;4;Energia elettrica;27/02/2017
227;5;0;50,15;302,6;ENEGAN SPA;Z1B189539D;SALDO FATT. 571599 DEL 10 10 2016;27/02/2017;5470;30;193;1;Spese correnti;3;Acquisto di beni e servizi;2;Acquisto di servizi;5;Utenze e canoni;4;Energia elettrica;27/02/2017
227;6;0;60,12;302,6;ENEGAN SPA;Z1B189539D;SALDO FATT. 472752 DEL 10 09 2016;27/02/2017;5470;30;193;1;Spese correnti;3;Acquisto di beni e servizi;2;Acquisto di servizi;5;Utenze e canoni;4;Energia elettrica;27/02/2017
228;1;0;1.000,00;1.000,00;INCURVATI AGATA; ;COMPENSO AL COMMISSARIO AD ACTA PER GLI ADEMPIMENTI PREVISTI NEL DECRETO DI PAGAMENTO DEL T.A.R. ABRUZZO, SEZIONE STACCATA DI PESCARA, N. 00046_2016 REG.PROV.COLL, N.00046_2015 REG.RIC..;04/03/2017;9032;0;143;1;Spese correnti;3;Acquisto di beni e servizi;2;Acquisto di servizi;99;Altri servizi;999;Altri servizi diversi n.a.c.;04/03/2017
230;1;0;15;15;REGIONE ABRUZZO - SERVIZIO TESORERIA -; ;PUBBLICAZIONE SU BURA APPROVAZIONE VARIANTE PUNTUALE AL VIGENTE PRG;04/03/2017;780;10;18;1;Spese correnti;3;Acquisto di beni e servizi;2;Acquisto di servizi;9;Manutenzione ordinaria e riparazioni;6;Manutenzione ordinaria e riparazioni di macchine per ufficio;04/03/2017
231;1;0;225;225;ANAC AUTORITA NAZIONALE ANTICORRUZIONE; ;MAV 01030577865631037 LAVORI SCUOLA MEDIA R. PAOLUCCI CODICE GARA 6044219;04/03/2017;9343;1;355;2;Spese in conto capitale;2;Investimenti fissi lordi e acquisto di terreni;1;Beni materiali;9;Beni immobili;3;Fabbricati ad uso scolastico;04/03/2017
232;1;0;23.418,93;23.418,93;ECO.LAN. SPA;Z6218BCC86;ACCONTO FATT. 100603_2016 SERVIZIO IGIENE URBANA DICEMBRE 2016;04/03/2017;5800;10;24;1;Spese correnti;3;Acquisto di beni e servizi;2;Acquisto di servizi;15;Contratti di servizio pubblico;4;Contratti di servizio per la raccolta rifiuti;04/03/2017
233;1;0;3,02;3,02;ECO.LAN. SPA;Z6218BCC86;SALDO FATT. 100603_2016 IGIENE URBANA DICEMBRE 2016;04/03/2017;5800;10;19;1;Spese correnti;3;Acquisto di beni e servizi;2;Acquisto di servizi;15;Contratti di servizio pubblico;4;Contratti di servizio per la raccolta rifiuti;04/03/2017
234;1;0;700;700;COMUNE DI TOLLO; ;PROGETTO ABRUZZO OPEN DAY 2016;04/03/2017;3774;40;355;1;Spese correnti;4;Trasferimenti correnti;4;Trasferimenti correnti a Istituzioni Sociali Private;1;Trasferimenti correnti a Istituzioni Sociali Private;1;Trasferimenti correnti a Istituzioni Sociali Private;04/03/2017
235;1;0;732;732;ASFALTI TOTARO S.R.L.;Z320CDE5C0;SALDO FATT. 3_04  DEL 31_01_2017 ACQUISTO ASFALTO A FREDDO;04/03/2017;7330;10;273;1;Spese correnti;3;Acquisto di beni e servizi;1;Acquisto di beni;2;Altri beni di consumo;999;Altri beni e materiali di consumo n.a.c.;04/03/2017
236;1;0;146,4;146,4;FEDERALPOL SRL - ISTITUTO DI VIGILANZA;Z5B1962BB5;SALDO FATT. 5_2017 SERVIZIO DI TELEALLARME PERIODO GENNAIO 2017;04/03/2017;9320;0;73;1;Spese correnti;3;Acquisto di beni e servizi;2;Acquisto di servizi;9;Manutenzione ordinaria e riparazioni;4;Manutenzione ordinaria e riparazioni di impianti e macchinari;04/03/2017
237;1;0;206;206;D'OTTAVIO G. & DI FABIO D. S.N.C.;ZF5194C434;SLADO FATT. 1_17;04/03/2017;6350;0;222;1;Spese correnti;3;Acquisto di beni e servizi;1;Acquisto di beni;2;Altri beni di consumo;999;Altri beni e materiali di consumo n.a.c.;04/03/2017
238;1;0;132,27;132,27;D'OTTAVIO G. & DI FABIO D. S.N.C.;ZF5194C434;SALDO FATT. 1_17;04/03/2017;6350;0;45;1;Spese correnti;3;Acquisto di beni e servizi;1;Acquisto di beni;2;Altri beni di consumo;999;Altri beni e materiali di consumo n.a.c.;04/03/2017
239;1;0;1.972,74;1.972,74;ITALKALI SPA;Z4A16CE584;SALDO FATT. V3_199_2017;04/03/2017;7330;10;314;1;Spese correnti;3;Acquisto di beni e servizi;1;Acquisto di beni;2;Altri beni di consumo;999;Altri beni e materiali di consumo n.a.c.;04/03/2017
240;1;0;6.001,16;6.001,16;TRAVAGLINI DOMENICO;Z4F1C393DA;SALDO Fatt.n. 18_PA_2017 INTERVENTI URGENTI MANUTENZIONE ORDINARIA IMPIANTI;04/03/2017;7425;10;249;1;Spese correnti;3;Acquisto di beni e servizi;2;Acquisto di servizi;15;Contratti di servizio pubblico;15;Contratti di servizio per l'illuminazione pubblica;04/03/2017
241;1;0;3.782,00;3.782,00;TRAVAGLINI DOMENICO;ZE81C393E9;SALDO FATT. 17_PA_2017;04/03/2017;5260;10;250;1;Spese correnti;3;Acquisto di beni e servizi;2;Acquisto di servizi;9;Manutenzione ordinaria e riparazioni;4;Manutenzione ordinaria e riparazioni di impianti e macchinari;04/03/2017
242;1;0;0,01;49,7;BRILLANTE SRL;ZF51AF1115;SALDO FATT. 1_50_2017;04/03/2017;1270;0;157;1;Spese correnti;3;Acquisto di beni e servizi;1;Acquisto di beni;2;Altri beni di consumo;999;Altri beni e materiali di consumo n.a.c.;04/03/2017
242;2;0;49,69;49,7;BRILLANTE SRL;ZF51AF1115;ACCONTO FAT. 1_50_2017;04/03/2017;1270;0;157;1;Spese correnti;3;Acquisto di beni e servizi;1;Acquisto di beni;2;Altri beni di consumo;999;Altri beni e materiali di consumo n.a.c.;04/03/2017
243;1;0;732;732;D'ANGELO VINCENZO TRASPORTO RIFIUTI SPECIALI;ZA51B67179;SALDO FATT. 5_2017 BONIFICA IGIENICO SANITARIA SU SPOGLIATOIO CAMPO SPORTIVO IN ORSOGNA;04/03/2017;1275;0;203;1;Spese correnti;3;Acquisto di beni e servizi;2;Acquisto di servizi;9;Manutenzione ordinaria e riparazioni;6;Manutenzione ordinaria e riparazioni di macchine per ufficio;04/03/2017
244;1;0;659,78;659,78;DI CIERO ROCCO;FATT.;SALDO FATT.  FATTPA 3_17_2017 INCARICO PROFESSIONALE VARIANTE PUNTUALE AL PRG;08/03/2017;770;0;262;1;Spese correnti;3;Acquisto di beni e servizi;2;Acquisto di servizi;10;Consulenze;1;Incarichi libero professionali di studi, ricerca e consulenza;08/03/2017
245;1;0;3.199,91;3.199,91;CHIARINI GIOVANNI;ZF71C71C06;SALDO FATT. 1_17 INCARICO PROFESSIONALE ACCATASTAMENTO ASILO NIDO IN ORSOGNA;08/03/2017;1300;0;278;1;Spese correnti;3;Acquisto di beni e servizi;2;Acquisto di servizi;11;Prestazioni professionali e specialistiche;999;Altre prestazioni professionali e specialistiche n.a.c.;08/03/2017
246;1;0;65,68;65,68;CONSORZIO ARTIGIANO RIPARATORI E CARROZZIERI;Z5D1A6122C;SALDO FATT. 3_2017 REVISIONE PERIODICA AUTOMEZZO COMUNALE FIAT SCUDO TARGA CL481DF;08/03/2017;7395;0;118;1;Spese correnti;3;Acquisto di beni e servizi;2;Acquisto di servizi;9;Manutenzione ordinaria e riparazioni;1;Manutenzione ordinaria e riparazioni di mezzi di trasporto ad uso civile, di sicurezza e ordine pubblico;08/03/2017
247;1;0;200,64;200,64;CONSORZIO ARTIGIANO RIPARATORI E CARROZZIERI;ZA91B3E785;SALDO FATT. 4_2017 REVISIONE PERIODICA AUTOMEZZI COMUNALI;08/03/2017;7395;0;182;1;Spese correnti;3;Acquisto di beni e servizi;2;Acquisto di servizi;9;Manutenzione ordinaria e riparazioni;1;Manutenzione ordinaria e riparazioni di mezzi di trasporto ad uso civile, di sicurezza e ordine pubblico;08/03/2017
248;1;0;5.869,00;5.869,00;L'AUTONOLEGGIO DI LUCIANO CIANCIO;6373869B15;SALDO FATTPA 6_17  31_01_2017 SERVIZIO DI TRASPORTO SCOLASTICO GENNAIO 2017;08/03/2017;3415;1;15;1;Spese correnti;3;Acquisto di beni e servizi;2;Acquisto di servizi;15;Contratti di servizio pubblico;2;Contratti di servizio di trasporto scolastico;08/03/2017
249;1;0;2;1.494,62;POSTE ITALIANE S.P.A. ALT C_NORD INC. CONT. CRED.;Z2216E39BE;SALDO FATT. 8717033613_2017;08/03/2017;292;0;296;1;Spese correnti;3;Acquisto di beni e servizi;2;Acquisto di servizi;16;Servizi amministrativi;2;Spese postali;08/03/2017
249;2;0;2;1.494,62;POSTE ITALIANE S.P.A. ALT C_NORD INC. CONT. CRED.;Z2216E39BE;SALDO FATT. 8717033852_2017;08/03/2017;292;0;296;1;Spese correnti;3;Acquisto di beni e servizi;2;Acquisto di servizi;16;Servizi amministrativi;2;Spese postali;08/03/2017
249;3;0;598,99;1.494,62;POSTE ITALIANE S.P.A. ALT C_NORD INC. CONT. CRED.;Z2216E39BE;SALDO FATT. 8717033852_2017;08/03/2017;292;0;296;1;Spese correnti;3;Acquisto di beni e servizi;2;Acquisto di servizi;16;Servizi amministrativi;2;Spese postali;08/03/2017
249;4;0;891,63;1.494,62;POSTE ITALIANE S.P.A. ALT C_NORD INC. CONT. CRED.;Z2216E39BE;SALDO FATT. 8717033613_2017;08/03/2017;292;0;296;1;Spese correnti;3;Acquisto di beni e servizi;2;Acquisto di servizi;16;Servizi amministrativi;2;Spese postali;08/03/2017
250;1;0;6.369,00;6.369,00;L'AUTONOLEGGIO DI LUCIANO CIANCIO;6373869B15;SALDO FATT. 9_2017 TRASPORTO SCOLASTICO FEBBRAIO 2017;08/03/2017;3415;1;15;1;Spese correnti;3;Acquisto di beni e servizi;2;Acquisto di servizi;15;Contratti di servizio pubblico;2;Contratti di servizio di trasporto scolastico;08/03/2017
251;1;0;1.320,00;1.320,00;SOC. COOP. A.R.L. FRAMMENTI;Z4A16072FE;SALDO Fatt.n. FATTPA 13_17 SERVIZIO DI ASSISTENZA SU SCUOLABUS A MINORI, PERIODO MESE FEBBRAIO 2017;08/03/2017;3415;10;358;1;Spese correnti;3;Acquisto di beni e servizi;2;Acquisto di servizi;15;Contratti di servizio pubblico;2;Contratti di servizio di trasporto scolastico;08/03/2017
252;1;0;4.711,54;4.711,54;SOC. COOP. A.R.L. FRAMMENTI;6395299FAC;SALDO FATT. 15_17  SERVIZIO MENSA SCOLASTICA ALUNNI PERIODO MESE FEBBRAIO 2017;08/03/2017;3400;12;357;1;Spese correnti;3;Acquisto di beni e servizi;2;Acquisto di servizi;15;Contratti di servizio pubblico;6;Contratti di servizio per le mense scolastiche;08/03/2017
253;1;0;7.152,86;7.152,86;SOC. COOP. A.R.L. FRAMMENTI;63282816AE;SALDO FATTPA 14_17 GESTIONE NIDO D INFANZIA PERIODO FEBBRAIO 2017;08/03/2017;6120;10;356;1;Spese correnti;3;Acquisto di beni e servizi;2;Acquisto di servizi;15;Contratti di servizio pubblico;10;Contratti di servizio di asilo nido;08/03/2017
254;1;0;807,64;807,64;ANCITEL SPA;ZDC1A67FE6;SALDO FATT. E_5646_2016;08/03/2017;7399;0;340;1;Spese correnti;3;Acquisto di beni e servizi;2;Acquisto di servizi;99;Altri servizi;999;Altri servizi diversi n.a.c.;08/03/2017
255;1;0;443,81;443,81;A.C.I. -AUTOMOBILE CLUB ITALIA-;Z951A69FBF;SALDO FATT. 4401_2016 CANONE BANCA DATI DEL PRA;08/03/2017;7399;0;339;1;Spese correnti;3;Acquisto di beni e servizi;2;Acquisto di servizi;99;Altri servizi;999;Altri servizi diversi n.a.c.;08/03/2017
256;1;0;188,86;188,86;NEW CAR SYSTEM SRL;N.Z9919338;SALDO FATT. FATTPA 1_17  MANUTENZIONE RIPARAZ.  AUTOMEZZO COMUNALE FIAT STILO;08/03/2017;7395;0;44;1;Spese correnti;3;Acquisto di beni e servizi;2;Acquisto di servizi;9;Manutenzione ordinaria e riparazioni;1;Manutenzione ordinaria e riparazioni di mezzi di trasporto ad uso civile, di sicurezza e ordine pubblico;08/03/2017
259;1;0;43.952,01;43.952,01;DI CARLO SPA;518879269C;SALDO FATTPA 4_16  DEL 08_07_2016 REALIZZAZIONE DELLA NUOVA STRUTTURA DA ADIBIRE AD ASILO NIDO - PERIZIA DI VARIANTE;11/03/2017;9590;1;295;2;Spese in conto capitale;2;Investimenti fissi lordi e acquisto di terreni;1;Beni materiali;9;Beni immobili;17;Fabbricati destinati ad asili nido;11/03/2017
260;1;0;40.433,57;40.433,57;DI CARLO SPA;518879269C;SALDO FATT. FATTPA 9_16 DEL  25_10_2016 STATO FINALE REALIZZAZIONE DELLA NUOVA STRUTTURA DA ADIBIRE AD ASILO NIDO;11/03/2017;9590;1;295;2;Spese in conto capitale;2;Investimenti fissi lordi e acquisto di terreni;1;Beni materiali;9;Beni immobili;17;Fabbricati destinati ad asili nido;11/03/2017
261;1;0;8.770,69;8.770,69;DI CARLO SPA;518879269C;ACCONTO FATT.FATTPA 3_16  DEL 03_06_2016  CONTRATTO 279 DEL 22.01.2014 CIG. 518879269C REALIZZAZIONE NUOVA STRUTTURA DA ADIBIRE AD ASILO NIDO;11/03/2017;9590;1;295;2;Spese in conto capitale;2;Investimenti fissi lordi e acquisto di terreni;1;Beni materiali;9;Beni immobili;17;Fabbricati destinati ad asili nido;11/03/2017
262;1;0;20.319,50;20.319,50;DI CARLO SPA;518879269C;ACCONTO FATTFATTPA 3_16  DEL 03_06_2016  CONTRATTO 279 DEL 22.01.2014 CIG. 518879269C REALIZZAZIONE NUOVA STRUTTURA DA ADIBIRE AD ASILO NIDO;11/03/2017;9590;1;295;2;Spese in conto capitale;2;Investimenti fissi lordi e acquisto di terreni;1;Beni materiali;9;Beni immobili;17;Fabbricati destinati ad asili nido;11/03/2017
263;1;0;8.677,39;8.677,39;DI CARLO SPA;518879269C;SALDO FAT.  FATTPA 3_16  DEL 03_06_2016  CONTRATTO 279 DEL 22.01.2014 CIG. 518879269C REALIZZAZIONE NUOVA STRUTTURA DA ADIBIRE AD ASILO NIDO;11/03/2017;9590;1;295;2;Spese in conto capitale;2;Investimenti fissi lordi e acquisto di terreni;1;Beni materiali;9;Beni immobili;3;Fabbricati ad uso scolastico;11/03/2017
264;1;0;976,11;976,11;PERSONALE DIVERSO; ;STIPENDI MESE DI MARZO 17;15/03/2017;55;10;1;1;Spese correnti;3;Acquisto di beni e servizi;2;Acquisto di servizi;1;Organi e incarichi istituzionali dell'amministrazione;1;Organi istituzionali dell'amministrazione - Indennit�;15/03/2017
280;1;0;647,74;647,74;PERSONALE DIVERSO; ;STIPENDI MESE DI MARZO 17;15/03/2017;400;0;0;1;Spese correnti;3;Acquisto di beni e servizi;2;Acquisto di servizi;12;Lavoro flessibile, quota LSU e acquisto di servizi da agenzie di lavoro interinale;2;Quota LSU in carico all'ente;15/03/2017
325;1;0;514,79;514,79;ENEL ENERGIA SPA;Z061D9A444;SALDO FATT. 004800271809 DEL 14_02_2017 CONSUMO ENERGIA ELETTRICA IN VIA ORTONESE ORSOGNA;18/03/2017;9321;1;22;1;Spese correnti;3;Acquisto di beni e servizi;2;Acquisto di servizi;5;Utenze e canoni;4;Energia elettrica;18/03/2017
326;1;0;53,68;53,68;FAGIS SRL;Z3218D924A;SALDO Fatt.n. FATTPA 4_17  del 28/02/2017 ACQUISTO N.02 CROCIERA 27X1,7 RIF. DDT.N.444/2017 DEL 11.02.2017  - CIG Z3218D924A -;18/03/2017;6350;0;26;1;Spese correnti;3;Acquisto di beni e servizi;1;Acquisto di beni;2;Altri beni di consumo;999;Altri beni e materiali di consumo n.a.c.;18/03/2017
327;1;0;1.144,00;1.144,00;AURITI DOMENICO;Z1315BF8B5;SALDO FATT. FATTPA 2_17  DEL 02_03_2017 SERVIZIO DI NOLO MEZZI COMPRESO OPERATORE PER MANUTENZIONE STRAORDINARIA DELLE STRADE ED AREE COMUNALI;18/03/2017;5366;0;204;1;Spese correnti;3;Acquisto di beni e servizi;2;Acquisto di servizi;9;Manutenzione ordinaria e riparazioni;8;Manutenzione ordinaria e riparazioni di beni immobili;18/03/2017
328;1;0;28;28;BRILLANTE SRL;ZF51AF1115;SALDO FATT. 3_50 DEL 14_02_2017 FORNITURA DI MATERIALE GHIAIETTO 010;18/03/2017;1270;0;157;1;Spese correnti;3;Acquisto di beni e servizi;1;Acquisto di beni;2;Altri beni di consumo;999;Altri beni e materiali di consumo n.a.c.;18/03/2017
329;1;0;778;778;AURITI FABIO;Z53193E909;ACCONTO FATT. 1_2017 DEL 01_02_2017 FORNITURA DI MATERIALE VARIO  A CORPO DI FERRAMENTA PER MANUTENZIONE IMMOBILI ED ATTREZZATURE DI PROPRIETA COMUNALI;18/03/2017;1270;0;41;1;Spese correnti;3;Acquisto di beni e servizi;1;Acquisto di beni;2;Altri beni di consumo;999;Altri beni e materiali di consumo n.a.c.;18/03/2017
330;1;0;0,01;122;AURITI FABIO;Z53193E909;ACCONTO FATT. 1_E_2017  DEL 01_03_2017;18/03/2017;6350;0;364;1;Spese correnti;3;Acquisto di beni e servizi;1;Acquisto di beni;2;Altri beni di consumo;999;Altri beni e materiali di consumo n.a.c.;18/03/2017
330;2;0;121,99;122;AURITI FABIO;Z53193E909;SALDO FATT. 1_E_2017 DEL 01_03_2017;18/03/2017;6350;0;364;1;Spese correnti;3;Acquisto di beni e servizi;1;Acquisto di beni;2;Altri beni di consumo;999;Altri beni e materiali di consumo n.a.c.;18/03/2017
331;1;0;146,4;146,4;FEDERALPOL SRL - ISTITUTO DI VIGILANZA;Z5B1962BB5;SALDO FATT. 10_01 DEL 28_02_2017 SERVIZIO DI TELEALLARME PERIODO FEBBRAIO 2017;18/03/2017;9320;0;73;1;Spese correnti;3;Acquisto di beni e servizi;2;Acquisto di servizi;9;Manutenzione ordinaria e riparazioni;4;Manutenzione ordinaria e riparazioni di impianti e macchinari;18/03/2017
332;1;0;1.538,56;1.538,56;A.F.I.A. ASS. FAMIGLIE IPOACUSICI ABRUZZESI; ;SERVIZIO ASSISTENZA EDUCATIVA DOMICILIARE IN FAVORE DEI NON VEDENTI E NON UDENTI OTTOBRE_DICEMBRE 2016;18/03/2017;7115;10;348;1;Spese correnti;4;Trasferimenti correnti;2;Trasferimenti correnti a Famiglie;2;Interventi assistenziali;999;Altri assegni e sussidi assistenziali;18/03/2017
333;1;0;85,4;85,4;HALLEY INFORMATICA S.R.L.;ZCE1A0681F;SALDO FATT. 1541_8_10 DEL 21_02_2017 ADDESTRAMENTO RIFERIMENTO FOGLIO INTERVENTO N.213365;18/03/2017;350;0;95;1;Spese correnti;3;Acquisto di beni e servizi;2;Acquisto di servizi;19;Servizi informatici e di telecomunicazioni;2;Assistenza all'utente e formazione;18/03/2017
334;1;0;202;4.180,50;ADEMI BEDRI; ;DESTINAZIONE DEL 5 PER MILLE IRPEF ALLE ATTIVITA SOCIALI DEL COMUNE;18/03/2017;7100;4;350;1;Spese correnti;4;Trasferimenti correnti;3;Trasferimenti correnti a Imprese;99;Trasferimenti correnti a altre imprese;999;Trasferimenti correnti a altre imprese;18/03/2017
334;2;0;151;4.180,50;ALI NURIJE; ;DESTINAZIONE DEL 5 PER MILLE IRPEF ALLE ATTIVITA SOCIALI DEL COMUNE;18/03/2017;7100;4;350;1;Spese correnti;4;Trasferimenti correnti;3;Trasferimenti correnti a Imprese;99;Trasferimenti correnti a altre imprese;999;Trasferimenti correnti a altre imprese;18/03/2017
334;3;0;151;4.180,50;BEKTESOV FETA; ;DESTINAZIONE DEL 5 PER MILLE IRPEF ALLE ATTIVITA SOCIALI DEL COMUNE;18/03/2017;7100;4;350;1;Spese correnti;4;Trasferimenti correnti;3;Trasferimenti correnti a Imprese;99;Trasferimenti correnti a altre imprese;999;Trasferimenti correnti a altre imprese;18/03/2017
334;4;0;251;4.180,50;BUCCI FRANCESCA; ;DESTINAZIONE DEL 5 PER MILLE IRPEF ALLE ATTIVITA SOCIALI DEL COMUNE;18/03/2017;7100;4;350;1;Spese correnti;4;Trasferimenti correnti;3;Trasferimenti correnti a Imprese;99;Trasferimenti correnti a altre imprese;999;Trasferimenti correnti a altre imprese;18/03/2017
334;5;0;151;4.180,50;CIVITARESE GRAZIELLA; ;DESTINAZIONE DEL 5 PER MILLE IRPEF ALLE ATTIVITA SOCIALI DEL COMUNE;18/03/2017;7100;4;350;1;Spese correnti;4;Trasferimenti correnti;3;Trasferimenti correnti a Imprese;99;Trasferimenti correnti a altre imprese;999;Trasferimenti correnti a altre imprese;18/03/2017
334;6;0;251;4.180,50;DI BIASE GIUSEPPE; ;DESTINAZIONE DEL 5 PER MILLE IRPEF ALLE ATTIVITA SOCIALI DEL COMUNE;18/03/2017;7100;4;350;1;Spese correnti;4;Trasferimenti correnti;3;Trasferimenti correnti a Imprese;99;Trasferimenti correnti a altre imprese;999;Trasferimenti correnti a altre imprese;18/03/2017
334;7;0;353;4.180,50;DI BIASE MARIA GRAZIA; ;DESTINAZIONE DEL 5 PER MILLE IRPEF ALLE ATTIVITA SOCIALI DEL COMUNE;18/03/2017;7100;4;350;1;Spese correnti;4;Trasferimenti correnti;3;Trasferimenti correnti a Imprese;99;Trasferimenti correnti a altre imprese;999;Trasferimenti correnti a altre imprese;18/03/2017
334;8;0;103,5;4.180,50;DI LISIO DANIELA; ;DESTINAZIONE DEL 5 PER MILLE IRPEF ALLE ATTIVITA SOCIALI DEL COMUNE;18/03/2017;7100;4;350;1;Spese correnti;4;Trasferimenti correnti;3;Trasferimenti correnti a Imprese;99;Trasferimenti correnti a altre imprese;999;Trasferimenti correnti a altre imprese;18/03/2017
334;9;0;503;4.180,50;LEONE NICOLINO; ;DESTINAZIONE DEL 5 PER MILLE IRPEF ALLE ATTIVITA SOCIALI DEL COMUNE;18/03/2017;7100;4;350;1;Spese correnti;4;Trasferimenti correnti;3;Trasferimenti correnti a Imprese;99;Trasferimenti correnti a altre imprese;999;Trasferimenti correnti a altre imprese;18/03/2017
334;10;0;251;4.180,50;MARCELLO ALDO; ;DESTINAZIONE DEL 5 PER MILLE IRPEF ALLE ATTIVITA SOCIALI DEL COMUNE;18/03/2017;7100;4;350;1;Spese correnti;4;Trasferimenti correnti;3;Trasferimenti correnti a Imprese;99;Trasferimenti correnti a altre imprese;999;Trasferimenti correnti a altre imprese;18/03/2017
334;11;0;503;4.180,50;NANI ELENI; ;DESTINAZIONE DEL 5 PER MILLE IRPEF ALLE ATTIVITA SOCIALI DEL COMUNE;18/03/2017;7100;4;350;1;Spese correnti;4;Trasferimenti correnti;3;Trasferimenti correnti a Imprese;99;Trasferimenti correnti a altre imprese;999;Trasferimenti correnti a altre imprese;18/03/2017
334;12;0;353;4.180,50;SHTREPI ANESTI; ;DESTINAZIONE DEL 5 PER MILLE IRPEF ALLE ATTIVITA SOCIALI DEL COMUNE;18/03/2017;7100;4;350;1;Spese correnti;4;Trasferimenti correnti;3;Trasferimenti correnti a Imprese;99;Trasferimenti correnti a altre imprese;999;Trasferimenti correnti a altre imprese;18/03/2017
334;13;0;303;4.180,50;SIDAU MIHAELA MARIA; ;DESTINAZIONE DEL 5 PER MILLE IRPEF ALLE ATTIVITA SOCIALI DEL COMUNE;18/03/2017;7100;4;350;1;Spese correnti;4;Trasferimenti correnti;3;Trasferimenti correnti a Imprese;99;Trasferimenti correnti a altre imprese;999;Trasferimenti correnti a altre imprese;18/03/2017
334;14;0;403;4.180,50;TENAGLIA NICOLINO; ;DESTINAZIONE DEL 5 PER MILLE IRPEF ALLE ATTIVITA SOCIALI DEL COMUNE;18/03/2017;7100;4;350;1;Spese correnti;4;Trasferimenti correnti;3;Trasferimenti correnti a Imprese;99;Trasferimenti correnti a altre imprese;999;Trasferimenti correnti a altre imprese;18/03/2017
334;15;0;251;4.180,50;VILLANTE TOMMASO; ;DESTINAZIONE DEL 5 PER MILLE IRPEF ALLE ATTIVITA SOCIALI DEL COMUNE;18/03/2017;7100;4;350;1;Spese correnti;4;Trasferimenti correnti;3;Trasferimenti correnti a Imprese;99;Trasferimenti correnti a altre imprese;999;Trasferimenti correnti a altre imprese;18/03/2017
336;1;0;10.121,21;10.121,21;DI SIPIO ROMINA;Z250B2DF00;ACCONTO FATT. 1_2017 COMPETENZE TECNICHE D.L E CONTABILITA DELLA NUOVA STRUTTURA DA ADIBIRE AD ASILO NIDO;24/03/2017;9590;1;295;2;Spese in conto capitale;2;Investimenti fissi lordi e acquisto di terreni;1;Beni materiali;9;Beni immobili;17;Fabbricati destinati ad asili nido;24/03/2017
337;1;0;378,79;378,79;DI SIPIO ROMINA;Z250B2DF00;SALDO FATT. 1_2017 COMPETENZE TECNICHE D.L E CONTABILITA DELLA NUOVA STRUTTURA DA ADIBIRE AD ASILO NIDO;24/03/2017;9590;1;295;2;Spese in conto capitale;2;Investimenti fissi lordi e acquisto di terreni;1;Beni materiali;9;Beni immobili;17;Fabbricati destinati ad asili nido;24/03/2017
338;1;0;420;420;A.N.U.S.C.A. SRL; ;QUOTA ASSOCIATIVA ANNO 2017;24/03/2017;560;0;16;1;Spese correnti;4;Trasferimenti correnti;3;Trasferimenti correnti a Imprese;99;Trasferimenti correnti a altre imprese;999;Trasferimenti correnti a altre imprese;24/03/2017
339;1;0;12,32;221,58;ERREBIAN SPA;Z421D876C4;ACCONTO FATT. V2_513286  DEL 28_02_2017 ACQUISTO MATERIALE DI CANCELLERIA;24/03/2017;781;0;21;1;Spese correnti;3;Acquisto di beni e servizi;1;Acquisto di beni;2;Altri beni di consumo;1;Carta, cancelleria e stampati;24/03/2017
339;2;0;209,26;221,58;ERREBIAN SPA;Z421D876C4;SALDO FATT. V2_513286  DEL 28_02_2017 ACQUISTO MATERIALE DI CANCELLERIA;24/03/2017;781;0;21;1;Spese correnti;3;Acquisto di beni e servizi;1;Acquisto di beni;2;Altri beni di consumo;1;Carta, cancelleria e stampati;24/03/2017
340;1;0;11.083,60;11.083,60;MOVIMENTO TERRA DI GIUSEPPE GALLUCCI;Z3B15BF8B4;SALDO FATT. 03_2017PA DEL 01_03_2017 SERVIZIO DI NOLO MEZZI COMPRESO OPERATORE PER LAVORI DI MESSA IN SICUREZZA VIABILITA STRADALE A SEGUITO AVVERSE CONDIZIONI ATMOSFERICHE PER NEVE;24/03/2017;9710;2;147;2;Spese in conto capitale;2;Investimenti fissi lordi e acquisto di terreni;1;Beni materiali;9;Beni immobili;12;Infrastrutture stradali;24/03/2017
341;1;0;74,8;74,8;ENEGAN SPA;Z1B189539D;SALDO Fatt.n. 730468  del 10/12/2016 FATTURA FORNITURA ENERGIA ELETTRICA MESE NOV. 2016 IN ORSOGNA  VIA TORRE PELLEGRINA;24/03/2017;6170;10;238;1;Spese correnti;3;Acquisto di beni e servizi;2;Acquisto di servizi;5;Utenze e canoni;4;Energia elettrica;24/03/2017
342;1;0;150,32;150,32;ENEGAN SPA;Z3B1D9A5CE;SALDO Fatt.n. 33500  del 10/01/2017 FATTURA FORNITURA ENERGIA ELETTRICA PERIODO DIC. 2016 IN ORSOGNA   VIA ACHILLE ROSICA;24/03/2017;6170;10;37;1;Spese correnti;3;Acquisto di beni e servizi;2;Acquisto di servizi;5;Utenze e canoni;4;Energia elettrica;24/03/2017
343;1;0;2.196,00;2.196,00;BRAIN RISK & CLAIMS  S.r.l.;Z031512A6A;SALDO FATT. 10_PA  02_05_2016;25/03/2017;320;61;127;1;Spese correnti;10;Altre spese correnti;4;Premi di assicurazione;1;Premi di assicurazione contro i danni;3;Premi di assicurazione per responsabilit� civile verso terzi;25/03/2017
344;1;0;170,52;170,52;ENEGAN SPA;Z3B1D9A5CE;SALDO Fatt.n. 715065  del 10/12/2016 FATTURA CONSUMO ENERGIA ELETTRICA NOV. 2016 IN ORSOGNA P.ZZA G. MAZZINI;25/03/2017;4006;10;33;1;Spese correnti;3;Acquisto di beni e servizi;2;Acquisto di servizi;5;Utenze e canoni;4;Energia elettrica;25/03/2017
345;1;0;133,01;133,01;ENEGAN SPA;Z1B189539D;ACCONTO FATT. 732607_2016;25/03/2017;2165;0;190;1;Spese correnti;3;Acquisto di beni e servizi;2;Acquisto di servizi;5;Utenze e canoni;4;Energia elettrica;25/03/2017
346;1;0;5,17;157,26;ENEGAN SPA;Z3B1D9A5CE;SALDO FATT. 732607_2016;25/03/2017;2165;0;31;1;Spese correnti;3;Acquisto di beni e servizi;2;Acquisto di servizi;5;Utenze e canoni;4;Energia elettrica;25/03/2017
346;2;0;152,09;157,26;ENEGAN SPA;Z3B1D9A5CE;SALDO FATT. 9585_2017;25/03/2017;2165;0;31;1;Spese correnti;3;Acquisto di beni e servizi;2;Acquisto di servizi;5;Utenze e canoni;4;Energia elettrica;25/03/2017
347;1;0;169,15;1.998,06;ENEGAN SPA;Z1B189539D;SALDO FATT. 725985_2016;25/03/2017;2970;20;188;1;Spese correnti;3;Acquisto di beni e servizi;2;Acquisto di servizi;5;Utenze e canoni;4;Energia elettrica;25/03/2017
347;2;0;206,86;1.998,06;ENEGAN SPA;Z1B189539D;SALDO FATT.  57914_2017;25/03/2017;2970;20;188;1;Spese correnti;3;Acquisto di beni e servizi;2;Acquisto di servizi;5;Utenze e canoni;4;Energia elettrica;25/03/2017
347;3;0;296,78;1.998,06;ENEGAN SPA;Z1B189539D;SALDO FATT. 6397_2017 C.DA COLLE SAN GIACOMO;25/03/2017;2970;20;188;1;Spese correnti;3;Acquisto di beni e servizi;2;Acquisto di servizi;5;Utenze e canoni;4;Energia elettrica;25/03/2017
347;4;0;493,5;1.998,06;ENEGAN SPA;Z1B189539D;SALDO FATT. 21692_2017 FATTURA FORNITURA ENERGIA ELETTRICA PERIODO DIC. 2016 IN ORSOGNA  VIA ROMA;25/03/2017;2970;20;188;1;Spese correnti;3;Acquisto di beni e servizi;2;Acquisto di servizi;5;Utenze e canoni;4;Energia elettrica;25/03/2017
347;5;0;831,77;1.998,06;ENEGAN SPA;Z1B189539D;SALDO FATT. 740230_2016 MESE NOV. 2016 IN ORSOGNA  VIA CIANCI GIANFEDELE;25/03/2017;2970;20;188;1;Spese correnti;3;Acquisto di beni e servizi;2;Acquisto di servizi;5;Utenze e canoni;4;Energia elettrica;25/03/2017
348;1;0;920,23;920,23;ENEGAN SPA;Z3B1D9A5CE;SALDO FATT. 43009_2017 FATTURA FORNITURA ENERGIA ELETTRICA PERIODO DIC. 2016 IN 66036 ORSOGNA  VIA GIANFEDELE CIANCI;25/03/2017;2970;20;29;1;Spese correnti;3;Acquisto di beni e servizi;2;Acquisto di servizi;5;Utenze e canoni;4;Energia elettrica;25/03/2017
349;1;0;47,67;1.555,21;ENEGAN SPA;Z1B189539D;SALDO FATT. 703978_2016 FATTURA CONSUMO ENERGIA ELETTRICA NOV. 2016 IN ORSOGNA  VIA F. MOLA;25/03/2017;3210;0;189;1;Spese correnti;3;Acquisto di beni e servizi;2;Acquisto di servizi;5;Utenze e canoni;4;Energia elettrica;25/03/2017
349;2;0;47,67;1.555,21;ENEGAN SPA;Z1B189539D;SALDO FATT. 27055_2017 FATTURA FORNITURA ENERGIA ELETTRICA PERIODO DIC. 2016 IN ORSOGNA   VIA FELICE MOLA;25/03/2017;3210;0;189;1;Spese correnti;3;Acquisto di beni e servizi;2;Acquisto di servizi;5;Utenze e canoni;4;Energia elettrica;25/03/2017
349;3;0;102,81;1.555,21;ENEGAN SPA;Z1B189539D;SALDO FATT.  694129_2016 FATTURA CONSUMO ENERGIA ELETTRICA NOV. 2016 IN ORSOGNA  VIA CAMILLO DE NARDIS;25/03/2017;3210;0;189;1;Spese correnti;3;Acquisto di beni e servizi;2;Acquisto di servizi;5;Utenze e canoni;4;Energia elettrica;25/03/2017
349;4;0;108,36;1.555,21;ENEGAN SPA;Z1B189539D;SALDO FATT. 737913_2016 FATTURA FORNITURA ENERGIA ELETTRICA MESE NOV. 2016 IN ORSOGNA  C.DA COLLE S. GIACOMO;25/03/2017;3210;0;189;1;Spese correnti;3;Acquisto di beni e servizi;2;Acquisto di servizi;5;Utenze e canoni;4;Energia elettrica;25/03/2017
349;5;0;280,57;1.555,21;ENEGAN SPA;Z1B189539D;SALDO FATT. 681555_2016 FATTURA CONSUMO ENERGIA ELETTRICA  NOV. 2016  IN ORSOGNA V. ACHILLE ROSICA 18;25/03/2017;3210;0;189;1;Spese correnti;3;Acquisto di beni e servizi;2;Acquisto di servizi;5;Utenze e canoni;4;Energia elettrica;25/03/2017
349;6;0;424,52;1.555,21;ENEGAN SPA;Z1B189539D;SALDO FATT. 708489_2016 FATTURA CONSUMO ENERGIA ELETTRICA NOV. 2016 IN ORSOGNA  VIA ROMA,3;25/03/2017;3210;0;189;1;Spese correnti;3;Acquisto di beni e servizi;2;Acquisto di servizi;5;Utenze e canoni;4;Energia elettrica;25/03/2017
349;7;0;543,61;1.555,21;ENEGAN SPA;Z1B189539D;SALDO FATT. 55308_2017 FATTURA FORNITURA ENERGIA ELETTRICA PERIODO DIC. 2016 IN 66036 ORSOGNA  VIA CAMILLO DE NARDIS;25/03/2017;3210;0;189;1;Spese correnti;3;Acquisto di beni e servizi;2;Acquisto di servizi;5;Utenze e canoni;4;Energia elettrica;25/03/2017
350;1;0;301,97;301,97;ENEGAN SPA;Z3B1D9A5CE;SALDO FATT. 71637_2017 FATTURA FORNITURA ENERGIA ELETTRICA PERIODO DIC. 2016 IN 66036 ORSOGNA   V. ACHILLE ROSICA;25/03/2017;3210;0;30;1;Spese correnti;3;Acquisto di beni e servizi;2;Acquisto di servizi;5;Utenze e canoni;4;Energia elettrica;25/03/2017
351;1;0;90,72;1.257,57;ENEGAN SPA;Z1B189539D;SALDO FATT. 711288_2016 FATTURA CONSUMO ENERGIA ELETTRICA NOV. 2016 IN ORSOGNA  VIA S. FRANCESCO;25/03/2017;6370;10;239;1;Spese correnti;3;Acquisto di beni e servizi;2;Acquisto di servizi;5;Utenze e canoni;4;Energia elettrica;25/03/2017
351;2;0;184,39;1.257,57;ENEGAN SPA;Z1B189539D;SALDO FATT. 58216_2017 FATTURA FORNITURA ENERGIA ELETTRICA PERIODO DIC. 2016 IN 66036 ORSOGNA   P.ZZA G. MAZZINI;25/03/2017;6370;10;239;1;Spese correnti;3;Acquisto di beni e servizi;2;Acquisto di servizi;5;Utenze e canoni;4;Energia elettrica;25/03/2017
351;3;0;328,06;1.257,57;ENEGAN SPA;Z1B189539D;SALDO FATT. 745612_2016 FATTURA FORNITURA ENERGIA ELETTRICA MESE NOV. 2016  in  66036 ORSOGNA  C.DA SAN BERARDINO;25/03/2017;6370;10;239;1;Spese correnti;3;Acquisto di beni e servizi;2;Acquisto di servizi;5;Utenze e canoni;4;Energia elettrica;25/03/2017
351;4;0;654,4;1.257,57;ENEGAN SPA;Z1B189539D;SALDO FATT. 695057_2016 FATTURA CONSUMO ENERGIA ELETTRICA NOV. 2016 IN ORSOGNA  VIA G. MAGNO;25/03/2017;6370;10;239;1;Spese correnti;3;Acquisto di beni e servizi;2;Acquisto di servizi;5;Utenze e canoni;4;Energia elettrica;25/03/2017
352;1;0;85,28;1.632,59;ENEGAN SPA;Z3B1D9A5CE;SALDO FATT. 60203_2017 FATTURA FORNITURA ENERGIA ELETTRICA PERIODO DIC. 2016 IN 66036 ORSOGNA   VIA SAN FRANCESCO;25/03/2017;6370;10;39;1;Spese correnti;3;Acquisto di beni e servizi;2;Acquisto di servizi;5;Utenze e canoni;4;Energia elettrica;25/03/2017
352;2;0;275,2;1.632,59;ENEGAN SPA;Z3B1D9A5CE;SALDO FATT. 690164_2016 FATTURA CONSUMO ENERGIA ELETTRICA NOV. 2016 IN ORSOGNA  VIA S. FRANCESCO;25/03/2017;6370;10;39;1;Spese correnti;3;Acquisto di beni e servizi;2;Acquisto di servizi;5;Utenze e canoni;4;Energia elettrica;25/03/2017
352;3;0;342,65;1.632,59;ENEGAN SPA;Z3B1D9A5CE;SALDO FATT. 33032_2017 FATTURA FORNITURA ENERGIA ELETTRICA PERIODO DIC. 2016 IN ORSOGNA   VIA SAN FRANCESCO;25/03/2017;6370;10;39;1;Spese correnti;3;Acquisto di beni e servizi;2;Acquisto di servizi;5;Utenze e canoni;4;Energia elettrica;25/03/2017
352;4;0;343,25;1.632,59;ENEGAN SPA;Z3B1D9A5CE;SALDO FATT. 30337_2017 FATTURA FORNITURA ENERGIA ELETTRICA PERIODO DIC. 2016 IN ORSOGNA   C.DA PIANA SAN BERARDINO;25/03/2017;6370;10;39;1;Spese correnti;3;Acquisto di beni e servizi;2;Acquisto di servizi;5;Utenze e canoni;4;Energia elettrica;25/03/2017
352;5;0;586,21;1.632,59;ENEGAN SPA;Z3B1D9A5CE;SALDO FATT. 37493_2017 FATTURA FORNITURA ENERGIA ELETTRICA PERIODO DIC. 2016 IN ORSOGNA   VIA G. MAGNO;25/03/2017;6370;10;39;1;Spese correnti;3;Acquisto di beni e servizi;2;Acquisto di servizi;5;Utenze e canoni;4;Energia elettrica;25/03/2017
353;1;0;49,53;49,53;ENEGAN SPA;Z1B189539D;SALDO FATT. 728156_2016  del 10/12/2016 FATTURA CONSUMO ENERGIA ELETTRICA NOV. 2016 IN ORSOGNA  VIA PIANA PELLEGRINA 14A;25/03/2017;4007;10;191;1;Spese correnti;3;Acquisto di beni e servizi;2;Acquisto di servizi;5;Utenze e canoni;4;Energia elettrica;25/03/2017
354;1;0;49,64;49,64;ENEGAN SPA;Z3B1D9A5CE;SALDO FATT. 54167_2017 FATTURA FORNITURA ENERGIA ELETTRICA PERIODO DIC. 2016 IN 66036 ORSOGNA   VIA PIANA PELLEGRINA 14A;25/03/2017;4007;10;34;1;Spese correnti;3;Acquisto di beni e servizi;2;Acquisto di servizi;5;Utenze e canoni;4;Energia elettrica;25/03/2017
355;1;0;448,8;448,8;MONTEPARA FABRIZIO; ;RIMBORSO SPESE 11_13_2016 MISSIONE A VALDOBBIADENE;25/03/2017;55;40;281;1;Spese correnti;3;Acquisto di beni e servizi;2;Acquisto di servizi;2;Organizzazione eventi, pubblicita` e servizi per trasferta;2;Indennit� di missione e di trasferta;25/03/2017
357;1;0;110;110;MEDIASS GPA SPA;ZF11CC3B4;ATTIVAZIONE POLIZZA INFORTUNI PER IL PERSONALE INTERNO DI VOLONTARIATO;29/03/2017;320;61;324;1;Spese correnti;10;Altre spese correnti;4;Premi di assicurazione;1;Premi di assicurazione contro i danni;3;Premi di assicurazione per responsabilit� civile verso terzi;29/03/2017
358;1;0;1.099,23;1.099,23;ADECCO ITALIA SPA (FILIALE ORTONA);Z0D1934414;SALDO fatt. 2017.0531.00031  del 28_02_2017 TORRIERO LUCIANA;29/03/2017;1454;0;317;1;Spese correnti;3;Acquisto di beni e servizi;2;Acquisto di servizi;12;Lavoro flessibile, quota LSU e acquisto di servizi da agenzie di lavoro interinale;1;Acquisto di servizi da agenzie di lavoro interinale;29/03/2017
359;1;0;80,93;80,93;ENEGAN SPA;Z1B189539D;SALDO Fatt.n. 683402  del 10/12/2016 FATTURA CONSUMO ENERGIA ELETTRICA NOV. 2016 IN ORSOGNA P.ZZA G. MAZZINI;01/04/2017;4005;10;241;1;Spese correnti;3;Acquisto di beni e servizi;2;Acquisto di servizi;5;Utenze e canoni;4;Energia elettrica;01/04/2017
360;1;0;1.522,47;1.522,47;PERSONALE DIVERSO; ;INCENTIVO ART. 113 DLGS 50_2016 LAVORI DI MIGLIORAMENTO SISMICO EDIFICIO SCOLASTICO;01/04/2017;9541;10;317;2;Spese in conto capitale;2;Investimenti fissi lordi e acquisto di terreni;1;Beni materiali;9;Beni immobili;3;Fabbricati ad uso scolastico;01/04/2017
361;1;0;47,2;47,2;ENEGAN SPA;Z3B1D9A5CE;SALDO Fatt.n. 33998  del 10/01/2017 FATTURA FORNITURA ENERGIA ELETTRICA PERIODO DIC. 2016 IN ORSOGNA   PIAZZA G. MAZZINI;01/04/2017;4005;10;32;1;Spese correnti;3;Acquisto di beni e servizi;2;Acquisto di servizi;5;Utenze e canoni;4;Energia elettrica;01/04/2017
362;1;0;31,21;31,21;ENEGAN SPA;Z1B189539D;SALDO Fatt.n. 708847  del 10/12/2016 FATTURA CONSUMO ENERGIA ELETTRICA NOV. 2016 IN ORSOGNA  C.DA PIANA S. BERARDINO;01/04/2017;5180;10;192;1;Spese correnti;3;Acquisto di beni e servizi;2;Acquisto di servizi;5;Utenze e canoni;4;Energia elettrica;01/04/2017
363;1;0;31,04;1.135,05;ENEGAN SPA;Z3B1D9A5CE;SALDO Fatt.n. 60001  del 10/01/2017 FATTURA FORNITURA ENERGIA ELETTRICA PERIODO DIC. 2016 IN 66036 ORSOGNA   C.DA PIANA S. BERARDINO;01/04/2017;5180;10;35;1;Spese correnti;3;Acquisto di beni e servizi;2;Acquisto di servizi;5;Utenze e canoni;4;Energia elettrica;01/04/2017
363;2;0;41,57;1.135,05;ENEGAN SPA;Z3B1D9A5CE;SALDO Fatt.n. 723858  del 10/12/2016 FATTURA CONSUMO ENERGIA ELETTRICA NOV. 2016 IN ORSOGNA  VIA ORTONESE VICO I;01/04/2017;5180;10;35;1;Spese correnti;3;Acquisto di beni e servizi;2;Acquisto di servizi;5;Utenze e canoni;4;Energia elettrica;01/04/2017
363;3;0;41,91;1.135,05;ENEGAN SPA;Z3B1D9A5CE;SALDO Fatt.n. 14507  del 10/01/2017 FATTURA FORNITURA ENERGIA ELETTRICA PERIODO DIC. 2016 IN ORSOGNA  VIA ORTONESE VICO I;01/04/2017;5180;10;35;1;Spese correnti;3;Acquisto di beni e servizi;2;Acquisto di servizi;5;Utenze e canoni;4;Energia elettrica;01/04/2017
363;4;0;481,94;1.135,05;ENEGAN SPA;Z3B1D9A5CE;SALDO Fatt.n. 709809  del 10/12/2016 FATTURA CONSUMO ENERGIA ELETTRICA NOV. 2016 IN ORSOGNA  VIA ORTONESE VICO I;01/04/2017;5180;10;35;1;Spese correnti;3;Acquisto di beni e servizi;2;Acquisto di servizi;5;Utenze e canoni;4;Energia elettrica;01/04/2017
363;5;0;538,59;1.135,05;ENEGAN SPA;Z3B1D9A5CE;SALDO Fatt.n. 45298  del 10/01/2017 FATTURA FORNITURA ENERGIA ELETTRICA PERIODO DIC. 2016 IN 66036 ORSOGNA   VIA ORTONESE VICO I;01/04/2017;5180;10;35;1;Spese correnti;3;Acquisto di beni e servizi;2;Acquisto di servizi;5;Utenze e canoni;4;Energia elettrica;01/04/2017
364;1;0;30,01;125,81;ENEGAN SPA;Z1B189539D;ACCONTO Fatt.n. 38124  del 10/01/2017 FATTURA FORNITURA ENERGIA ELETTRICA PERIODO DIC. 2016 IN 66036 ORSOGNA   C.DA FEUDUCCIO;01/04/2017;5470;30;193;1;Spese correnti;3;Acquisto di beni e servizi;2;Acquisto di servizi;5;Utenze e canoni;4;Energia elettrica;01/04/2017
364;2;0;47,67;125,81;ENEGAN SPA;Z1B189539D;SALDO Fatt.n. 741866  del 10/12/2016 FATTURA FORNITURA ENERGIA ELETTRICA MESE NOV. 2016  in  66036 ORSOGNA  C.DA RITIRO;01/04/2017;5470;30;193;1;Spese correnti;3;Acquisto di beni e servizi;2;Acquisto di servizi;5;Utenze e canoni;4;Energia elettrica;01/04/2017
364;3;0;48,13;125,81;ENEGAN SPA;Z1B189539D;SALDO Fatt.n. 721760  del 10/12/2016 FATTURA CONSUMO ENERGIA ELETTRICA NOV. 2016 IN ORSOGNA  C.DA FEUDUCCIO;01/04/2017;5470;30;193;1;Spese correnti;3;Acquisto di beni e servizi;2;Acquisto di servizi;5;Utenze e canoni;4;Energia elettrica;01/04/2017
365;1;0;17,66;65,33;ENEGAN SPA;Z3B1D9A5CE;SALDO Fatt.n. 38124  del 10/01/2017 FATTURA FORNITURA ENERGIA ELETTRICA PERIODO DIC. 2016 IN 66036 ORSOGNA   C.DA FEUDUCCIO;01/04/2017;5470;30;36;1;Spese correnti;3;Acquisto di beni e servizi;2;Acquisto di servizi;5;Utenze e canoni;4;Energia elettrica;01/04/2017
365;2;0;47,67;65,33;ENEGAN SPA;Z3B1D9A5CE;SALDO Fatt.n. 43735  del 10/01/2017 FATTURA FORNITURA ENERGIA ELETTRICA PERIODO DIC. 2016 IN 66036 ORSOGNA   C.DA  RITIRO;01/04/2017;5470;30;36;1;Spese correnti;3;Acquisto di beni e servizi;2;Acquisto di servizi;5;Utenze e canoni;4;Energia elettrica;01/04/2017
366;1;0;543,57;6.500,99;ENEGAN SPA;Z43189539C;SALDO Fatt.n. 716140  del 10/12/2016 FATTURA CONSUMO ENERGIA ELETTRICA NOV. 2016 IN ORSOGNA  C.DA RITIRO;01/04/2017;7400;10;196;1;Spese correnti;3;Acquisto di beni e servizi;2;Acquisto di servizi;5;Utenze e canoni;4;Energia elettrica;01/04/2017
366;2;0;5.957,42;6.500,99;ENEGAN SPA;Z43189539C;ACCONTO Fatt.n. 668517  del 10/11/2016 FATTURA FORNITURA ENERGIA ELETTRICA IN ORSOGNA  - CONTRATTO E014272-16;01/04/2017;7400;10;196;1;Spese correnti;3;Acquisto di beni e servizi;2;Acquisto di servizi;5;Utenze e canoni;4;Energia elettrica;01/04/2017
367;1;0;125,45;21.831,55;ENEGAN SPA;Z6A1D9A5BA;SALDO Fatt.n. 13215  del 10/01/2017 FATTURA FORNITURA ENERGIA ELETTRICA PERIODO DIC. 2016 IN ORSOGNA   C.DA COSTE DI MORO;01/04/2017;7400;10;40;1;Spese correnti;3;Acquisto di beni e servizi;2;Acquisto di servizi;5;Utenze e canoni;4;Energia elettrica;01/04/2017
367;2;0;6.721,97;21.831,55;ENEGAN SPA;Z6A1D9A5BA;ACCONTO Fatt.n. 707566  del 10/12/2016 FATTURA CONSUMO ENERGIA ELETTRICA OTT. - NOV. 2016 IN ORSOGNA;01/04/2017;7400;10;40;1;Spese correnti;3;Acquisto di beni e servizi;2;Acquisto di servizi;5;Utenze e canoni;4;Energia elettrica;01/04/2017
367;3;0;7.519,11;21.831,55;ENEGAN SPA;Z6A1D9A5BA;ACCONTO Fatt.n. 54747  del 10/01/2017 FATTURA FORNITURA ENERGIA ELETTRICA PERIODO DIC. 2016 IN 66036 ORSOGNA;01/04/2017;7400;10;40;1;Spese correnti;3;Acquisto di beni e servizi;2;Acquisto di servizi;5;Utenze e canoni;4;Energia elettrica;01/04/2017
367;4;0;496,16;21.831,55;ENEGAN SPA;Z6A1D9A5BA;SALDO Fatt.n. 655210  del 10/11/2016 FATTURA FORNITURA ENERGIA ELETTRICA IN ORSOGNA -RIF. CONTRATTO E044170-16;01/04/2017;7400;10;40;1;Spese correnti;3;Acquisto di beni e servizi;2;Acquisto di servizi;5;Utenze e canoni;4;Energia elettrica;01/04/2017
367;5;0;6.968,86;21.831,55;ENEGAN SPA;Z6A1D9A5BA;SALDO Fatt.n. 668517  del 10/11/2016 FATTURA FORNITURA ENERGIA ELETTRICA IN ORSOGNA  - CONTRATTO E014272-16;01/04/2017;7400;10;40;1;Spese correnti;3;Acquisto di beni e servizi;2;Acquisto di servizi;5;Utenze e canoni;4;Energia elettrica;01/04/2017
368;1;0;6.158,64;13.677,74;ENEGAN SPA;Z2C1D9A5AF;SALDO Fatt.n. 707566  del 10/12/2016 FATTURA CONSUMO ENERGIA ELETTRICA OTT. - NOV. 2016 IN ORSOGNA;01/04/2017;7400;10;41;1;Spese correnti;3;Acquisto di beni e servizi;2;Acquisto di servizi;5;Utenze e canoni;4;Energia elettrica;01/04/2017
368;2;0;7.519,10;13.677,74;ENEGAN SPA;Z2C1D9A5AF;SALDO Fatt.n. 54747  del 10/01/2017 FATTURA FORNITURA ENERGIA ELETTRICA PERIODO DIC. 2016 IN 66036 ORSOGNA;01/04/2017;7400;10;41;1;Spese correnti;3;Acquisto di beni e servizi;2;Acquisto di servizi;5;Utenze e canoni;4;Energia elettrica;01/04/2017
369;1;0;2.264,68;2.264,68;CHIAVETTA FAUSTO; ;DEBITO FUORI BILANCIO ORDINANZE DI ASSEGNAZIONE SOMME E SENTENZA GIUDICE DI PACE N.866_2015 PEC DEL 28_03_2017 ORE 12_57;01/04/2017;9061;2;286;1;Spese correnti;10;Altre spese correnti;99;Altre spese correnti n.a.c.;99;Altre spese correnti n.a.c.;999;Altre spese correnti n.a.c.;01/04/2017
370;1;0;1.665,00;1.665,00;CHIAVETTA FAUSTO; ;RICONOSCIMENTO DEBITI FUORI BILANCIO EX ART.194, LETT. A), D.LGS. N.267/2000, ORDINANZE DI ASSEGNAZIONE SOMME E SENTENZA GIUDICE DI PACE N.866/2015;01/04/2017;9061;2;60;1;Spese correnti;10;Altre spese correnti;99;Altre spese correnti n.a.c.;99;Altre spese correnti n.a.c.;999;Altre spese correnti n.a.c.;01/04/2017
371;1;0;450;450;ASSOCIAZIONE CORALE LA FIGLIA DI IORIO; ;CONTRIBUTO PER PER MANIFETAZIONE INTERSCAMBIO CULTURALE CON UN  GRUPPO CORALE CANADESE;01/04/2017;3774;40;345;1;Spese correnti;4;Trasferimenti correnti;4;Trasferimenti correnti a Istituzioni Sociali Private;1;Trasferimenti correnti a Istituzioni Sociali Private;1;Trasferimenti correnti a Istituzioni Sociali Private;01/04/2017
372;1;0;510,4;510,4;ENEL ENERGIA SPA;Z061D9A444;SALDO Fatt.n. 004800354543  del 11/03/2017 FORNITURA ENERGIA ELETTRICA  IN VIA ORTONESE ORSOGNA.;01/04/2017;9321;1;22;1;Spese correnti;3;Acquisto di beni e servizi;2;Acquisto di servizi;5;Utenze e canoni;4;Energia elettrica;01/04/2017
373;1;0;2.184,53;2.184,53;VERNA ANDREA;Z7918782B7;SALDO FATT. 1PA_2017;01/04/2017;7325;0;26;1;Spese correnti;3;Acquisto di beni e servizi;1;Acquisto di beni;2;Altri beni di consumo;2;Carburanti, combustibili e lubrificanti;01/04/2017
374;1;0;983,98;983,98;VERNA ANDREA;Z7918782B7;ACCONTO FATT. 3PA DEL 28_02_2017;01/04/2017;7325;0;26;1;Spese correnti;3;Acquisto di beni e servizi;1;Acquisto di beni;2;Altri beni di consumo;2;Carburanti, combustibili e lubrificanti;01/04/2017
375;1;0;113,08;113,08;VERNA ANDREA;Z7918782B7;SALDO FATT. 3PA  DEL 28_02_2017;01/04/2017;530;0;27;1;Spese correnti;3;Acquisto di beni e servizi;1;Acquisto di beni;2;Altri beni di consumo;2;Carburanti, combustibili e lubrificanti;01/04/2017
381;1;0;11;11;ANDREANI TRIBUTI SRL;2640531B1A;SALDO FATT. 498_PA DEL 03_03_2017;08/04/2017;1456;2;68;1;Spese correnti;3;Acquisto di beni e servizi;2;Acquisto di servizi;3;Aggi di riscossione;999;Altri aggi di riscossione n.a.c.;08/04/2017
382;1;0;1.317,71;1.317,71;ANDREANI TRIBUTI SRL; ;SALDO FATT. 469_PA  DEL 23_02_2017;08/04/2017;1456;2;68;1;Spese correnti;3;Acquisto di beni e servizi;2;Acquisto di servizi;3;Aggi di riscossione;999;Altri aggi di riscossione n.a.c.;08/04/2017
384;1;0;9.937,50;9.937,50;ASSOCIAZIONE CULTURALE TALAMI; ;ACCONTO  CONTRIBUTO SACRA RAPPRESENTAZIONE DEI TALAMI ANNO 2017;11/04/2017;3774;40;70;1;Spese correnti;4;Trasferimenti correnti;4;Trasferimenti correnti a Istituzioni Sociali Private;1;Trasferimenti correnti a Istituzioni Sociali Private;1;Trasferimenti correnti a Istituzioni Sociali Private;11/04/2017
385;1;0;1.777,45;1.777,45;PERSONALE DIVERSO; ;INCENTIVO LAVORI DI ADEGUAMENTO SISMICO PALAZZO MUNICIPALE;12/04/2017;11197;1;326;2;Spese in conto capitale;2;Investimenti fissi lordi e acquisto di terreni;1;Beni materiali;9;Beni immobili;2;Fabbricati ad uso commerciale;12/04/2017
386;1;0;6.369,00;6.369,00;L'AUTONOLEGGIO DI LUCIANO CIANCIO;6373869B15;SALDO FATTPA 12_17  SERVIZIO DI TRASPORTO SCOLASTICO ALUNNI SCUOLA MATERNA,ELEMENTARE E MEDIA MESE MARZO 2017;12/04/2017;3415;1;15;1;Spese correnti;3;Acquisto di beni e servizi;2;Acquisto di servizi;15;Contratti di servizio pubblico;2;Contratti di servizio di trasporto scolastico;12/04/2017
387;1;0;1.320,00;1.320,00;SOC. COOP. A.R.L. FRAMMENTI;Z4A16072FE;SALDO Fatt.n. FATTPA 21_17  del 30/03/2017 SERVIZIO DI ASSISTENZA SU SCUOLABUS A MINORI MESE MARZO 2017. - CIG Z4A16072FE -;12/04/2017;3415;10;358;1;Spese correnti;3;Acquisto di beni e servizi;2;Acquisto di servizi;15;Contratti di servizio pubblico;2;Contratti di servizio di trasporto scolastico;12/04/2017
388;1;0;6.520,74;6.520,74;SOC. COOP. A.R.L. FRAMMENTI;6395299FAC;SALDO Fatt.n. FATTPA 25_17  del 31/03/2017 COSTI DI SERVIZIO MENSA SCOLASTICA ALUNNI, MESE DI MARZO 2017  RIF  CIG  6395299FAC -;12/04/2017;3400;12;357;1;Spese correnti;3;Acquisto di beni e servizi;2;Acquisto di servizi;15;Contratti di servizio pubblico;6;Contratti di servizio per le mense scolastiche;12/04/2017
389;1;0;8.850,15;8.850,15;SOC. COOP. A.R.L. FRAMMENTI;63282816AE;SALDO Fatt.n. FATTPA 24_17  del 31/03/2017 COSTO DI GESTIONE NIDO D'INFANZIA  MESE MARZO 2017 - RIF. CIG 63282816AE -;12/04/2017;6120;10;356;1;Spese correnti;3;Acquisto di beni e servizi;2;Acquisto di servizi;15;Contratti di servizio pubblico;10;Contratti di servizio di asilo nido;12/04/2017
390;1;0;592,92;592,92;PRIMO PIANO DI STEFANO COPPOLA;ZB617313B0;SALDO Fatt.n. 000047/PA  del 01/03/2017 CANONE DI NOLEGGIO STAMPANTI DAL 01.03.2017  AL  31.05.2017 - CIG ZB617313BO -;19/04/2017;550;0;270;1;Spese correnti;3;Acquisto di beni e servizi;2;Acquisto di servizi;7;Utilizzo di beni di terzi;6;Licenze d'uso per software;19/04/2017
391;1;0;816,18;816,18;PRIMO PIANO DI STEFANO COPPOLA;Z74173138C;SALDO Fatt.n. 000059/PA  del 24/03/2017 CANONE DI NOLEGGIO STAMPANTI PERIODO DAL 01.03.2017  AL 31.05.2017  - CIG Z74173138C -;19/04/2017;785;0;269;1;Spese correnti;3;Acquisto di beni e servizi;2;Acquisto di servizi;7;Utilizzo di beni di terzi;8;Noleggi di impianti e macchinari;19/04/2017
392;1;0;175,68;175,68;PRIMO PIANO DI STEFANO COPPOLA;ZF017313A2;SALDO Fatt.n. 000061/PA  del 24/03/2017 CANONE DI NOLEGGIO  STAMPANTI PERIODO  DAL 01.03.2017  AL 31.05.2017  - CIG ZF017313A2 -;19/04/2017;550;0;271;1;Spese correnti;3;Acquisto di beni e servizi;2;Acquisto di servizi;7;Utilizzo di beni di terzi;6;Licenze d'uso per software;19/04/2017
393;1;0;2.537,60;2.537,60;DEL GRECO DOMENICO;Z201C944E8;SALDO Fatt.n. 1  del 03/04/2017 SERVIZIO AGGIORNAMENTO CATASTALE IMPIANTO DEPURAZIONE IN LOCALITA' MONTELEPRE F 6 PART.4173 - RIF CIG Z201C944E8 -;19/04/2017;1300;0;285;1;Spese correnti;3;Acquisto di beni e servizi;2;Acquisto di servizi;11;Prestazioni professionali e specialistiche;999;Altre prestazioni professionali e specialistiche n.a.c.;19/04/2017
394;1;0;307,09;307,09;DECART S.R.L.;ZC51CB4FD9;SALDO Fatt.n. 18/PA  del 31/01/2017 ACQUISTO MATERIALI DI CANCELLERIA. RIF. DDT 167/00 DEL 18.01.2017 - CONTRATTO N.3416524 - CIG ZC51CB4FD9 -;19/04/2017;320;40;331;1;Spese correnti;3;Acquisto di beni e servizi;1;Acquisto di beni;2;Altri beni di consumo;1;Carta, cancelleria e stampati;19/04/2017
395;1;0;306,27;306,27;DECART S.R.L.;Z981CCB365;SALDO Fatt.n. 24/PA  del 14/02/2017 ACQUISTO MATERIALE VARIO CANCELLERIA RIF. DDT N.143-00 - CONTRATTO N.3473811 DEL 30.01.2017 - CIG Z981CCB365 -;19/04/2017;320;40;344;1;Spese correnti;3;Acquisto di beni e servizi;1;Acquisto di beni;2;Altri beni di consumo;1;Carta, cancelleria e stampati;19/04/2017
396;1;0;152,77;152,77;DECART S.R.L.;Z9C1DC5D9C;SALDO Fatt.n. 141/PA  del 28/03/2017 RIF.DDT.1112-00 DEL 22.03.2017 RLEGATURA SERIE DI REGISTRI DI STATO CIVILE ANNO 2016 - CIG Z9C1DC5D9C -;19/04/2017;320;40;54;1;Spese correnti;3;Acquisto di beni e servizi;1;Acquisto di beni;2;Altri beni di consumo;1;Carta, cancelleria e stampati;19/04/2017
397;1;0;0,05;253,6;BRILLANTE SRL;ZF51AF1115;SALDO Fatt.n. 8/50  del 15/03/2017 CQUISTO MATERIALE VARIO A CORPO - RIF. CIG ZF51AF1115 -;19/04/2017;1270;0;157;1;Spese correnti;3;Acquisto di beni e servizi;1;Acquisto di beni;2;Altri beni di consumo;999;Altri beni e materiali di consumo n.a.c.;19/04/2017
397;2;0;253,55;253,6;BRILLANTE SRL;ZF51AF1115;ACCONTO Fatt.n. 8/50  del 15/03/2017 AQUISTO MATERIALE VARIO A CORPO - RIF. CIG ZF51AF1115 -;19/04/2017;1270;0;157;1;Spese correnti;3;Acquisto di beni e servizi;1;Acquisto di beni;2;Altri beni di consumo;999;Altri beni e materiali di consumo n.a.c.;19/04/2017
398;1;0;1.483,40;1.483,40;NEW CAR SYSTEM SRL;Z9919338CA;SALDO Fatt.n. FATTPA 2_17  del 31/03/2017 RIPARAZIONE E MANUTENZIONE MEZZI COMUNALI TRATTRICE TIPO RVM TARGA AH A906  - RIF. CIG Z9919338CA - CONVENZIONE N.2 DEL 31.03.2017.;19/04/2017;7395;0;44;1;Spese correnti;3;Acquisto di beni e servizi;2;Acquisto di servizi;9;Manutenzione ordinaria e riparazioni;1;Manutenzione ordinaria e riparazioni di mezzi di trasporto ad uso civile, di sicurezza e ordine pubblico;19/04/2017
399;1;0;27,84;27,84;FAGIS SRL;Z3218D924A;SALDO Fatt.n. FATTPA 2_17  del 31/01/2017 FORNITURA  MATERIALE VARIO A CORPO RIF DDT. 120-00-2017 DEL 14.01.207  , FASCETTE, TUBO 10X17 OLIO CARB. , RACCORDO PLASTICA, ANTIGELO  - CIG Z3218D924A -;19/04/2017;6350;0;26;1;Spese correnti;3;Acquisto di beni e servizi;1;Acquisto di beni;2;Altri beni di consumo;999;Altri beni e materiali di consumo n.a.c.;19/04/2017
400;1;0;361,99;361,99;LA TERMOEDILE DI BARONE SABRINA;ZE11C599AC;SALDO Fatt.n. FATTPA 14_16  del 31/12/2016 ACQUISTO MATERIALE VARIO A CORPO-  CIG ZE11C599AC -;19/04/2017;1270;0;262;1;Spese correnti;3;Acquisto di beni e servizi;1;Acquisto di beni;2;Altri beni di consumo;999;Altri beni e materiali di consumo n.a.c.;19/04/2017
401;1;0;664,5;664,5;ITALIA SAFETY SRL;Z5614F91B;ACCONTO Fatt.n. 7/PA  del 20/03/2017 CONTROLLO SEMESTRALE ESTINTORI 1 SEMESTRE 2017 , FORNITURA ESTINTORI, RICARICA ESTINTORI A POLVERE KG.6  - CIG Z5614F91B -;19/04/2017;1275;0;129;1;Spese correnti;3;Acquisto di beni e servizi;2;Acquisto di servizi;9;Manutenzione ordinaria e riparazioni;6;Manutenzione ordinaria e riparazioni di macchine per ufficio;19/04/2017
402;1;0;749,48;749,48;ITALIA SAFETY SRL;Z5614F91B;SALDO Fatt.n. 7/PA  del 20/03/2017 CONTROLLO SEMESTRALE ESTINTORI 1 SEMESTRE 2017 , FORNITURA ESTINTORI, RICARICA ESTINTORI A POLVERE KG.6  - CIG Z5614F91B -;19/04/2017;9030;0;128;1;Spese correnti;3;Acquisto di beni e servizi;2;Acquisto di servizi;18;Servizi sanitari;1;Spese per accertamenti sanitari resi necessari dall'attivit� lavorativa;19/04/2017
403;1;0;170,8;170,8;HALLEY INFORMATICA S.R.L.;ZCE1A0681F;SALDO Fatt.n. 2835/8/10  del 21/03/2017 Servizio di teleassistenza in remoto RIFERIMENTO FOGLIO INTERVENTO N.215921 DEL 14.03.17 RIFERITO AGLI STIPENDI Determina n. 279   del 25/05/2016 Impegno di spesa n. 350/2016 capitolo 350 Responsabili -CIG ZCE1;19/04/2017;350;0;95;1;Spese correnti;3;Acquisto di beni e servizi;2;Acquisto di servizi;19;Servizi informatici e di telecomunicazioni;2;Assistenza all'utente e formazione;19/04/2017
404;1;0;2.600,00;2.600,00;CIANCIO ROCCO;Z481C71BEB;SALDO Fatt.n. FATTPA 1_17  del 22/03/2017 ONORARIO , IMPORTO CONTRIBUTO CASSA.  CIG Z481C71BEB -;19/04/2017;1300;0;276;1;Spese correnti;3;Acquisto di beni e servizi;2;Acquisto di servizi;11;Prestazioni professionali e specialistiche;999;Altre prestazioni professionali e specialistiche n.a.c.;19/04/2017
405;1;0;976,11;976,11;PERSONALE DIVERSO; ;STIPENDI MESE DI APRILE 17;21/04/2017;55;10;1;1;Spese correnti;3;Acquisto di beni e servizi;2;Acquisto di servizi;1;Organi e incarichi istituzionali dell'amministrazione;1;Organi istituzionali dell'amministrazione - Indennit�;21/04/2017
419;1;0;647,74;647,74;PERSONALE DIVERSO; ;STIPENDI MESE DI APRILE 17;21/04/2017;400;0;0;1;Spese correnti;3;Acquisto di beni e servizi;2;Acquisto di servizi;12;Lavoro flessibile, quota LSU e acquisto di servizi da agenzie di lavoro interinale;2;Quota LSU in carico all'ente;21/04/2017
460;1;0;76,8;1.996,80;CAPOTOSTO MARIA ANTONIETTA;ZFA153A2B8;SALDO Fatt.n. FATTPA 1_17  del 07/04/2017 COMPENSO MESI DI NOVEMBRE DICEMBRE 2016 E GENNAIO FEBBRAIO MARZO 2017;22/04/2017;770;0;141;1;Spese correnti;3;Acquisto di beni e servizi;2;Acquisto di servizi;10;Consulenze;1;Incarichi libero professionali di studi, ricerca e consulenza;22/04/2017
460;2;0;1.920,00;1.996,80;CAPOTOSTO MARIA ANTONIETTA;ZFA153A2B8;ACCONTO Fatt.n. FATTPA 1_17  del 07/04/2017 COMPENSO MESI DI NOVEMBRE DICEMBRE 2016 E GENNAIO FEBBRAIO MARZO 2017;22/04/2017;770;0;141;1;Spese correnti;3;Acquisto di beni e servizi;2;Acquisto di servizi;10;Consulenze;1;Incarichi libero professionali di studi, ricerca e consulenza;22/04/2017
461;1;0;164,66;164,66;CONSORZIO SERVIZI ECOLOGICI DEL FRENTANO;ZF11D3B135;SALDO Fatt.n. 24 FE/2017  del 31/03/2017 SERVIZIO SMALTIMENTO IN DISCARICA COD. C.E.R. 20.03.03. RESIDUI DELLA PULIZIA STRADALE - RIF. CIG ZF11D3B135 -;22/04/2017;5800;10;20;1;Spese correnti;3;Acquisto di beni e servizi;2;Acquisto di servizi;15;Contratti di servizio pubblico;4;Contratti di servizio per la raccolta rifiuti;22/04/2017
462;1;0;160;160;ATRADIUS CREDIT INSURANCE N.V.;Z881E4295B;POLIZZA CAUZIONALE NR. BP0600974 DELLA COMPAGNIA ATRADIUS 20_05_2017;22/04/2017;320;61;76;1;Spese correnti;10;Altre spese correnti;4;Premi di assicurazione;1;Premi di assicurazione contro i danni;3;Premi di assicurazione per responsabilit� civile verso terzi;22/04/2017
463;1;0;241,56;241,56;PRIMO PIANO DI STEFANO COPPOLA;Z051B55CFF;SALDO Fatt.n. 000085/PA  del 04/04/2017 COSTO CANONE DI NOLEGGIO STAMPANTI DAL 04.04.2017  AL 03.07.2017 - RIF. CIG Z051B55CFF -;22/04/2017;550;0;204;1;Spese correnti;3;Acquisto di beni e servizi;2;Acquisto di servizi;7;Utilizzo di beni di terzi;6;Licenze d'uso per software;22/04/2017
464;1;0;2.318,00;2.318,00;TRAVAGLINI DOMENICO;Z9316E3FB0;SALDO Fatt.n. 26/PA  del 16/03/2017 MANUT. PUBBL. ILLUMINAZ IMPIANTI ELETTRICI  MESI GENN  FEBB 2017 - CIG Z9316E3FB0;22/04/2017;7425;10;294;1;Spese correnti;3;Acquisto di beni e servizi;2;Acquisto di servizi;15;Contratti di servizio pubblico;15;Contratti di servizio per l'illuminazione pubblica;22/04/2017
465;1;0;24.000,00;24.000,00;ECO.LAN. SPA;Z1E1D3B134;SALDO Fatt.n. 100152  del 31/03/2017 SERVIZIO IGIENE URBANA - CANONE MENSILE AFFIDAM. IN HIUSE SERVIZIO GESTIONE GENNAIO 2017- CIG Z1E1D3B134;22/04/2017;5800;10;19;1;Spese correnti;3;Acquisto di beni e servizi;2;Acquisto di servizi;15;Contratti di servizio pubblico;4;Contratti di servizio per la raccolta rifiuti;22/04/2017
466;1;0;24.000,00;24.000,00;ECO.LAN. SPA;Z1E1D3B134;SALDO Fatt.n. 100153  del 31/03/2017 SERVIZIO IGIENE URBANA - CANONE MENSILE MESE DI FEBBRAIO 2017 AFFIDAM. IN HOUSE SERVIZIO GESTIONE CICLO INTEGR. -  CIG Z1E1D3B134 -;22/04/2017;5800;10;19;1;Spese correnti;3;Acquisto di beni e servizi;2;Acquisto di servizi;15;Contratti di servizio pubblico;4;Contratti di servizio per la raccolta rifiuti;22/04/2017
467;1;0;24.000,00;24.000,00;ECO.LAN. SPA;Z1E1D3B134;SALDO Fatt.n. 100154  del 31/03/2017 SERVIZIO IGIENE URBANA - CANONE MENSILE MARZO 2017 - AFFIDAMENTO IN HOUSE SERVIZIO GESTIONE CICLO INTEGR. RIFIUTI URBANI - RIF.  CIG Z1E1D3B134 -;22/04/2017;5800;10;19;1;Spese correnti;3;Acquisto di beni e servizi;2;Acquisto di servizi;15;Contratti di servizio pubblico;4;Contratti di servizio per la raccolta rifiuti;22/04/2017
469;1;0;30,22;30,22;ENEGAN SPA;ZEE189539E;SALDO Fatt.n. 4600  del 10/01/2017 FATTURA FORNITURA GAS  PERIODO  GUIGNO -DICEMBRE 2016 IN 66036 ORSOGNA   C.DA  S. BASILE;22/04/2017;4007;12;229;1;Spese correnti;3;Acquisto di beni e servizi;2;Acquisto di servizi;5;Utenze e canoni;6;Gas;22/04/2017
470;1;0;19,76;203,05;ENEGAN SPA;ZEE189539E;SALDO Fatt.n. 259923  del 10/12/2016 FATTURA FORNITURA ENERGIA ELETTRICA E/O GAS METANO IN 66036 ORSOGNA  VIA FILIPPO TENAGLIA;22/04/2017;4006;12;198;1;Spese correnti;3;Acquisto di beni e servizi;2;Acquisto di servizi;5;Utenze e canoni;6;Gas;22/04/2017
470;2;0;31,58;203,05;ENEGAN SPA;ZEE189539E;SALDO Fatt.n. 20822  del 10/01/2017 FATTURA FORNITURA  GAS  PERIODO GIUGNO - DICEMBRE 2016 IN 66036 ORSOGNA  P.ZZA G. MAZZINI,16;22/04/2017;4006;12;198;1;Spese correnti;3;Acquisto di beni e servizi;2;Acquisto di servizi;5;Utenze e canoni;6;Gas;22/04/2017
470;3;0;33,66;203,05;ENEGAN SPA;ZEE189539E;SALDO Fatt.n. 248063  del 10/12/2016 FATTURA FORNITURA ENERGIA ELETTRICA MESE NOV. 2016  in  66036 ORSOGNA  VIA C. TENAGLIA;22/04/2017;4006;12;198;1;Spese correnti;3;Acquisto di beni e servizi;2;Acquisto di servizi;5;Utenze e canoni;6;Gas;22/04/2017
470;4;0;36,54;203,05;ENEGAN SPA;ZEE189539E;SALDO Fatt.n. 8165  del 10/01/2017 FATTURA FORNITURA GAS  PERIODO GIUGNO - DIC. 2016 IN 66036 ORSOGNA   VIA F. TENAGLIA;22/04/2017;4006;12;198;1;Spese correnti;3;Acquisto di beni e servizi;2;Acquisto di servizi;5;Utenze e canoni;6;Gas;22/04/2017
470;5;0;81,51;203,05;ENEGAN SPA;ZEE189539E;SALDO Fatt.n. 245989  del 10/12/2016 FATTURA FORNITURA ENERGIA ELETTRICA MESE NOV. 2016  in  66036 ORSOGNA  P.ZZA G. MAZZINI,16;22/04/2017;4006;12;198;1;Spese correnti;3;Acquisto di beni e servizi;2;Acquisto di servizi;5;Utenze e canoni;6;Gas;22/04/2017
471;1;0;816,59;816,59;ENEGAN SPA;Z9E18953A0;SALDO Fatt.n. 15801  del 10/01/2017 FATTURA FORNITURA GAS  PERIODO GIUGNO - DIC. 2016 IN 66036 ORSOGNA   VIA ACHILLE ROSICA,26;22/04/2017;6170;11;228;1;Spese correnti;3;Acquisto di beni e servizi;2;Acquisto di servizi;5;Utenze e canoni;6;Gas;22/04/2017
472;1;0;1.044,80;2.282,81;ENEGAN SPA;Z9E18953A0;SALDO Fatt.n. 249954  del 10/12/2016 FATTURA FORNITURA ENERGIA ELETTRICA E/O GAS METANO IN 66036 ORSOGNA  VIA ACHILLE ROSICA;22/04/2017;3210;1;201;1;Spese correnti;3;Acquisto di beni e servizi;2;Acquisto di servizi;5;Utenze e canoni;6;Gas;22/04/2017
472;2;0;1.238,01;2.282,81;ENEGAN SPA;Z9E18953A0;SALDO Fatt.n. 18977  del 10/01/2017 FATTURA FORNITURA  GAS  PERIODO GIUGNO - DICEMBRE 2016 IN 66036 ORSOGNA  VIA  ACHILLE ROSICA;22/04/2017;3210;1;201;1;Spese correnti;3;Acquisto di beni e servizi;2;Acquisto di servizi;5;Utenze e canoni;6;Gas;22/04/2017
473;1;0;76,42;5.217,69;ENEGAN SPA;Z9E18953A0;SALDO Fatt.n. 241681  del 10/12/2016 FATTURA FORNITURA ENERGIA ELETTRICA MESE NOV. 2016  in  66036 ORSOGNA  VIA G. CIANCI;22/04/2017;2970;21;200;1;Spese correnti;3;Acquisto di beni e servizi;2;Acquisto di servizi;5;Utenze e canoni;6;Gas;22/04/2017
473;2;0;117,96;5.217,69;ENEGAN SPA;Z9E18953A0;SALDO Fatt.n. 16420  del 10/01/2017 FATTURA FORNITURA  GAS  PERIODO GIUGNO - DICEMBRE 2016 IN 66036 ORSOGNA  VIA C. GIANFELICE,3;22/04/2017;2970;21;200;1;Spese correnti;3;Acquisto di beni e servizi;2;Acquisto di servizi;5;Utenze e canoni;6;Gas;22/04/2017
473;3;0;132,78;5.217,69;ENEGAN SPA;Z9E18953A0;SALDO Fatt.n. 1266  del 10/01/2017 FATTURA FORNITURA ENERGIA ELETTRICA PERIODO GIUGNO- DICEMBRE 2016 IN 66036 ORSOGNA   VIA CIANCI GIANFEDELE,1;22/04/2017;2970;21;200;1;Spese correnti;3;Acquisto di beni e servizi;2;Acquisto di servizi;5;Utenze e canoni;6;Gas;22/04/2017
473;4;0;183,08;5.217,69;ENEGAN SPA;Z9E18953A0;SALDO Fatt.n. 249038  del 10/12/2016 FATTURA FORNITURA ENERGIA ELETTRICA E/O GAS METANO IN 66036 ORSOGNA  VIA CIANCI GIANFEDELE,3;22/04/2017;2970;21;200;1;Spese correnti;3;Acquisto di beni e servizi;2;Acquisto di servizi;5;Utenze e canoni;6;Gas;22/04/2017
473;5;0;1.838,68;5.217,69;ENEGAN SPA;Z9E18953A0;SALDO Fatt.n. 257712  del 10/12/2016 FATTURA FORNITURA ENERGIA ELETTRICA E/O GAS METANO IN 66036 ORSOGNA  VIA  UMBERTO I VICO I;22/04/2017;2970;21;200;1;Spese correnti;3;Acquisto di beni e servizi;2;Acquisto di servizi;5;Utenze e canoni;6;Gas;22/04/2017
473;6;0;2.868,77;5.217,69;ENEGAN SPA;Z9E18953A0;SALDO Fatt.n. 23666  del 10/01/2017 FATTURA FORNITURA  GAS  PERIODO GIUGNO - DICEMBRE 2016 IN 66036 ORSOGNA  VIA  UMBERTO I VICO I;22/04/2017;2970;21;200;1;Spese correnti;3;Acquisto di beni e servizi;2;Acquisto di servizi;5;Utenze e canoni;6;Gas;22/04/2017
474;1;0;19,76;4.623,30;ENEGAN SPA;ZEE189539E;SALDO Fatt.n. 253298  del 10/12/2016 FATTURA FORNITURA ENERGIA ELETTRICA E/O GAS METANO IN 66036 ORSOGNA  VIA CAMILLO DE NARDIS,1;22/04/2017;320;60;197;1;Spese correnti;3;Acquisto di beni e servizi;2;Acquisto di servizi;5;Utenze e canoni;6;Gas;22/04/2017
474;2;0;36,54;4.623,30;ENEGAN SPA;ZEE189539E;SALDO Fatt.n. 6645  del 10/01/2017 FATTURA FORNITURA  GAS PERIODO GIUGNO- DIC. 2016 IN 66036 ORSOGNA   V. CAMILLO DE NARDIS,1;22/04/2017;320;60;197;1;Spese correnti;3;Acquisto di beni e servizi;2;Acquisto di servizi;5;Utenze e canoni;6;Gas;22/04/2017
474;3;0;48,34;4.623,30;ENEGAN SPA;ZEE189539E;SALDO Fatt.n. 24437  del 10/01/2017 FATTURA FORNITURA  GAS  PERIODO GIUGNO - DICEMBRE 2016 IN 66036 ORSOGNA  VIA ROMA,5;22/04/2017;320;60;197;1;Spese correnti;3;Acquisto di beni e servizi;2;Acquisto di servizi;5;Utenze e canoni;6;Gas;22/04/2017
474;4;0;53,44;4.623,30;ENEGAN SPA;ZEE189539E;SALDO Fatt.n. 248156  del 10/12/2016 FATTURA FORNITURA ENERGIA ELETTRICA E/O GAS METANO IN 66036 ORSOGNA  VIA ROMA,5;22/04/2017;320;60;197;1;Spese correnti;3;Acquisto di beni e servizi;2;Acquisto di servizi;5;Utenze e canoni;6;Gas;22/04/2017
474;5;0;86,39;4.623,30;ENEGAN SPA;ZEE189539E;SALDO Fatt.n. 1603  del 10/01/2017 FATTURA FORNITURA  GAS PERIODO 01.06.2016 AL 31.12.2016 IN 66036 ORSOGNA   VIA ORTONESE;22/04/2017;320;60;197;1;Spese correnti;3;Acquisto di beni e servizi;2;Acquisto di servizi;5;Utenze e canoni;6;Gas;22/04/2017
474;6;0;94,27;4.623,30;ENEGAN SPA;ZEE189539E;SALDO Fatt.n. 11057  del 10/01/2017 FATTURA ERARIO C-IMPOSTA ERARIALE, RICAVI GEST. -GAS- ART.10 EX ART.6;22/04/2017;320;60;197;1;Spese correnti;3;Acquisto di beni e servizi;2;Acquisto di servizi;5;Utenze e canoni;6;Gas;22/04/2017
474;7;0;256,62;4.623,30;ENEGAN SPA;ZEE189539E;SALDO Fatt.n. 247735  del 10/12/2016 FATTURA FORNITURA ENERGIA ELETTRICA E/O GAS METANO IN 66036 ORSOGNA  VIA ACHILLE ROSICA,26;22/04/2017;320;60;197;1;Spese correnti;3;Acquisto di beni e servizi;2;Acquisto di servizi;5;Utenze e canoni;6;Gas;22/04/2017
474;8;0;1.064,41;4.623,30;ENEGAN SPA;ZEE189539E;SALDO Fatt.n. 249708  del 10/12/2016 FATTURA FORNITURA ENERGIA ELETTRICA E/O GAS METANO IN 66036 ORSOGNA  P.ZZA MAZZINI,1;22/04/2017;320;60;197;1;Spese correnti;3;Acquisto di beni e servizi;2;Acquisto di servizi;5;Utenze e canoni;6;Gas;22/04/2017
474;9;0;1.207,34;4.623,30;ENEGAN SPA;ZEE189539E;SALDO Fatt.n. 4159  del 10/01/2017 FATTURA FORNITURA GAS  PERIODO GIUGNO -DIC. 2016 IN 66036 ORSOGNA   VIA G. MAGNO;22/04/2017;320;60;197;1;Spese correnti;3;Acquisto di beni e servizi;2;Acquisto di servizi;5;Utenze e canoni;6;Gas;22/04/2017
474;10;0;1.756,19;4.623,30;ENEGAN SPA;ZEE189539E;SALDO Fatt.n. 22961  del 10/01/2017 FATTURA FORNITURA  GAS  PERIODO GIUGNO - DICEMBRE 2016 IN 66036 ORSOGNA  P.ZZA G. MAZZINI,1;22/04/2017;320;60;197;1;Spese correnti;3;Acquisto di beni e servizi;2;Acquisto di servizi;5;Utenze e canoni;6;Gas;22/04/2017
475;1;0;2.580,59;2.580,59;PERSONALE DIVERSO; ;SALDO INCENTIVI LAVORI DI COSTRUZIONE NUOVA STRUTTURA DA ADIBIRE A ASILO NIDO;26/04/2017;9590;1;295;2;Spese in conto capitale;2;Investimenti fissi lordi e acquisto di terreni;1;Beni materiali;9;Beni immobili;17;Fabbricati destinati ad asili nido;26/04/2017
476;1;0;802,2;802,2;PERSONALE DIVERSO; ;SALDO INCENTIVI LAVORI DI COSTRUZIONE NUOVA STRUTTURA DA ADIBIRE A ASILO NIDO;26/04/2017;9590;1;295;2;Spese in conto capitale;2;Investimenti fissi lordi e acquisto di terreni;1;Beni materiali;9;Beni immobili;17;Fabbricati destinati ad asili nido;26/04/2017
477;1;0;1.252,70;1.252,70;PERSONALE DIVERSO; ;SALDO INCENTIVI LAVORI DI COSTRUZIONE NUOVA STRUTTURA DA ADIBIRE A ASILO NIDO;26/04/2017;9590;1;295;2;Spese in conto capitale;2;Investimenti fissi lordi e acquisto di terreni;1;Beni materiali;9;Beni immobili;17;Fabbricati destinati ad asili nido;26/04/2017
478;1;0;457,73;457,73;CARPINETO SILVANA;Z250B2DF00;ACCONTO Fatt.n. FATTPA 3_17  del 28/03/2017 ONORARIO PER COMPETENZE TECNICHE PER COORDINAMENTO SICURAZZA FASE DI ESECUZIONE LAVORI PER REALIZZAZIONE ASILO NIDO COOFINANZIATA DAL PAR FAS ABRUZZO  RIF  CIG  Z250B2DF00 -;26/04/2017;9590;1;295;2;Spese in conto capitale;2;Investimenti fissi lordi e acquisto di terreni;1;Beni materiali;9;Beni immobili;17;Fabbricati destinati ad asili nido;26/04/2017
479;1;0;4.753,62;4.753,62;CARPINETO SILVANA;Z250B2DF00;SALDO Fatt.n. FATTPA 3_17  del 28/03/2017 ONORARIO PER COMPETENZE TECNICHE PER COORDINAMENTO SICURAZZA FASE DI ESECUZIONE LAVORI PER REALIZZAZIONE ASILO NIDO COOFINANZIATA DAL PAR FAS ABRUZZO  RIF  CIG  Z250B2DF00 -;26/04/2017;9590;1;295;2;Spese in conto capitale;2;Investimenti fissi lordi e acquisto di terreni;1;Beni materiali;9;Beni immobili;17;Fabbricati destinati ad asili nido;26/04/2017
480;1;0;1.171,20;1.171,20;GESINT SRL;ZD71DF927A;SALDO Fatt.n. 432_2017  del 31/03/2017 Vendita software Gesint COD. ART 17M221-22-24 RELAZIONE SULLA GESTIONE 2016  NOTA INTEGRATIVA RENDICONTO 2016 e CONTABILITA' ECONOMICA SEMPLIF.2016.;28/04/2017;320;64;51;1;Spese correnti;3;Acquisto di beni e servizi;1;Acquisto di beni;2;Altri beni di consumo;14;Stampati specialistici;28/04/2017
481;1;0;1.283,38;1.283,38;ADECCO ITALIA SPA (FILIALE ORTONA);Z0D1934414;SALDO Fatt.n. 2017.0531.00048  del 31/03/2017 RIF CONTRATTO 2612460 8198 STIPENDIO TORRIERO LUCIANA MESE MARZO 2017;28/04/2017;1454;0;317;1;Spese correnti;3;Acquisto di beni e servizi;2;Acquisto di servizi;12;Lavoro flessibile, quota LSU e acquisto di servizi da agenzie di lavoro interinale;1;Acquisto di servizi da agenzie di lavoro interinale;28/04/2017
482;1;0;85,4;85,4;HALLEY INFORMATICA S.R.L.;ZCE1A0681F;SALDO Fatt.n. 4161/8/10  del 18/04/2017 ADDESTRAMENTO RIFERIMENTO FOGLIO INTERVENTO N.219007 DEL 12.04.17 Determina n. 279   del 25/05/2016 Impegno di spesa n. 350/2016 capitolo 350 Responsabile ordine dell'Ente Giuseppina Calabrese;28/04/2017;350;0;95;1;Spese correnti;3;Acquisto di beni e servizi;2;Acquisto di servizi;19;Servizi informatici e di telecomunicazioni;2;Assistenza all'utente e formazione;28/04/2017
483;1;0;29,43;29,43;ANDREANI TRIBUTI SRL;Z5811681EA;SALDO Fatt.n. 781/PA  del 07/04/2017 AGGIO DEL 13,11 PERC. SU EURO 184,00 PER ICI ACCERTAMENTO NEL PRIMO SEMESTRE 2017  RIF. CIG Z5811681EA;29/04/2017;1456;0;126;1;Spese correnti;3;Acquisto di beni e servizi;2;Acquisto di servizi;3;Aggi di riscossione;999;Altri aggi di riscossione n.a.c.;29/04/2017
485;1;0;1.150,00;1.150,00;MOVIMENTO TERRA DI GIUSEPPE GALLUCCI;Z3B15BF8B4;ACCONTO Fatt.n. 05/2017 PA  del 20/04/2017 LAVORI DI SOMMA URGENZA CON NOLO PALA GOMMATA, SGOMBERO NEVE E RIPRISTINO VIABILITA' COMUNALE PER AVVERSITA METEO MESE GENNAIO 2017.;06/05/2017;5366;0;203;1;Spese correnti;3;Acquisto di beni e servizi;2;Acquisto di servizi;9;Manutenzione ordinaria e riparazioni;8;Manutenzione ordinaria e riparazioni di beni immobili;06/05/2017
486;1;0;1.801,20;1.801,20;MOVIMENTO TERRA DI GIUSEPPE GALLUCCI;Z3B15BF8B4;ACCONTO Fatt.n. 05/2017 PA  del 20/04/2017 LAVORI DI SOMMA URGENZA CON NOLO PALA GOMMATA, SGOMBERO NEVE E RIPRISTINO VIABILITA' COMUNALE PER AVVERSITA METEO MESE GENNAIO 2017.;06/05/2017;5366;1;128;1;Spese correnti;3;Acquisto di beni e servizi;2;Acquisto di servizi;9;Manutenzione ordinaria e riparazioni;8;Manutenzione ordinaria e riparazioni di beni immobili;06/05/2017
487;1;0;1.550,00;1.550,00;MOVIMENTO TERRA DI GIUSEPPE GALLUCCI;Z3B15BF8B4;SALDO Fatt.n. 05/2017 PA  del 20/04/2017 LAVORI DI SOMMA URGENZA CON NOLO PALA GOMMATA, SGOMBERO NEVE E RIPRISTINO VIABILITA' COMUNALE PER AVVERSITA METEO MESE GENNAIO 2017.;06/05/2017;5366;0;127;1;Spese correnti;3;Acquisto di beni e servizi;2;Acquisto di servizi;9;Manutenzione ordinaria e riparazioni;8;Manutenzione ordinaria e riparazioni di beni immobili;06/05/2017
488;1;0;208,86;208,86;EDILCAVE S.R.L.;Z1713CD693;SALDO Fatt.n. 03/11  del 21/04/2017 ACQUISTO PIETRISCO F.CO CANTIERE  RIF. CIC Z1713CD693;06/05/2017;7330;10;66;1;Spese correnti;3;Acquisto di beni e servizi;1;Acquisto di beni;2;Altri beni di consumo;999;Altri beni e materiali di consumo n.a.c.;06/05/2017
489;1;0;0,04;338,38;BRILLANTE SRL;ZF51AF1115;SALDO Fatt.n. 10/50  del 31/03/2017 ACQUISTO MATERIALE VARIO - CIG ZF51AF1115 -;06/05/2017;1270;0;157;1;Spese correnti;3;Acquisto di beni e servizi;1;Acquisto di beni;2;Altri beni di consumo;999;Altri beni e materiali di consumo n.a.c.;06/05/2017
489;2;0;338,34;338,38;BRILLANTE SRL;ZF51AF1115;ACCONTO Fatt.n. 10/50  del 31/03/2017 ACQUISTO MATERIALE VARIO - CIG ZF51AF1115 -;06/05/2017;1270;0;157;1;Spese correnti;3;Acquisto di beni e servizi;1;Acquisto di beni;2;Altri beni di consumo;999;Altri beni e materiali di consumo n.a.c.;06/05/2017
490;1;0;297,68;297,68;EDILCAVE S.R.L.;ZDE1593C76;SALDO Fatt.n. 03/12  del 21/04/2017 ACQUISTO PIETRISCO F.CO CANTIERE  RIF. CIG ZDE1593C76;06/05/2017;7330;10;157;1;Spese correnti;3;Acquisto di beni e servizi;1;Acquisto di beni;2;Altri beni di consumo;999;Altri beni e materiali di consumo n.a.c.;06/05/2017
493;1;0;607,51;607,51;PERSONALE DIVERSO; ;INCENTIVO EX ART. 113 D.LGS 50_2016 LAVORI DI COMPLETAMENTO DELLA NUOVA STRUTTURA DA ADIBIRE AD ASILO NIDO;12/05/2017;12635;0;377;2;Spese in conto capitale;2;Investimenti fissi lordi e acquisto di terreni;1;Beni materiali;9;Beni immobili;999;Beni immobili n.a.c.;12/05/2017
497;1;0;146,4;146,4;FEDERALPOL SRL - ISTITUTO DI VIGILANZA;Z5B1962BB5;SALDO Fatt.n. 28/01  del 30/04/2017 SERVIZIO DI TELEALLARME A RIF CONTRATTO N.1477 /2014. PERIODO MESE APRILE 2017;13/05/2017;9320;0;73;1;Spese correnti;3;Acquisto di beni e servizi;2;Acquisto di servizi;9;Manutenzione ordinaria e riparazioni;4;Manutenzione ordinaria e riparazioni di impianti e macchinari;13/05/2017
498;1;0;6.369,00;6.369,00;L'AUTONOLEGGIO DI LUCIANO CIANCIO;6373869B15;SALDO Fatt.n. FATTPA 18_17  del 29/04/2017 SERVIZIO TRASPORTO SCOLASTICO ALUNNI SCUOLA MATERNA,ELEMENTARE,MEDIA .MESE APRILE 2017;13/05/2017;3415;1;15;1;Spese correnti;3;Acquisto di beni e servizi;2;Acquisto di servizi;15;Contratti di servizio pubblico;2;Contratti di servizio di trasporto scolastico;13/05/2017
499;1;0;818,36;818,36;EQUITALIA NORD SPA; ;QUOTA ASSOCIATA ANNO 2017 AVVISO 012830L020170004576_2016;13/05/2017;560;0;57;1;Spese correnti;4;Trasferimenti correnti;3;Trasferimenti correnti a Imprese;99;Trasferimenti correnti a altre imprese;999;Trasferimenti correnti a altre imprese;13/05/2017
500;1;0;930,04;930,04;CARTOLIBRERIA DI RICO di Di Rico Nicola; ;ACCONTO Fatt.n. 1  del 21/02/2017 ACQUISTO LIBRI SCOLASTICI. RIF. DETERMINA N.768 DEL 23/12/2016;13/05/2017;3000;0;23;1;Spese correnti;4;Trasferimenti correnti;2;Trasferimenti correnti a Famiglie;5;Altri trasferimenti a famiglie;999;Altri trasferimenti a famiglie n.a.c.;13/05/2017
501;1;0;72,16;72,16;CARTOLIBRERIA DI RICO di Di Rico Nicola; ;SALDO Fatt.n. 1  del 21/02/2017 ACQUISTO LIBRI SCOLASTICI. RIF. DETERMINA N.768 DEL 23/12/2016;13/05/2017;3000;0;330;1;Spese correnti;4;Trasferimenti correnti;2;Trasferimenti correnti a Famiglie;5;Altri trasferimenti a famiglie;999;Altri trasferimenti a famiglie n.a.c.;13/05/2017
502;1;0;244;244;ART NOUVEAU STUDIO SAS;ZB91D4EA92;SALDO Fatt.n. FATTPA 4_17  del 20/04/2017 CARTONCINO RICHIESTA CARTA D'IDENTITA' F.TO 14X14 CM. STP 1+1 COLORE;13/05/2017;940;0;24;1;Spese correnti;3;Acquisto di beni e servizi;1;Acquisto di beni;2;Altri beni di consumo;1;Carta, cancelleria e stampati;13/05/2017
503;1;0;80,52;80,52;ART NOUVEAU STUDIO SAS;Z181D06F2B;"SALDO Fatt.n. FATTPA 5_17  del 20/04/2017 MANIFESTI F.TO 70X100 CM STP 4 COLORI ""GIORNATA MEMORIA""";13/05/2017;490;0;52;1;Spese correnti;3;Acquisto di beni e servizi;1;Acquisto di beni;2;Altri beni di consumo;9;Beni per attivit� di rappresentanza;13/05/2017
504;1;0;347,58;347,58;ART NOUVEAU STUDIO SAS;ZDC1E0D761;SALDO n. FATTPA 6_17  del 20_04_2017 BLOCCHI BUONO PASTO PRIMO FIGLIO;13/05/2017;3430;0;58;1;Spese correnti;3;Acquisto di beni e servizi;1;Acquisto di beni;2;Altri beni di consumo;1;Carta, cancelleria e stampati;13/05/2017
505;1;0;629,29;629,29;ADECCO ITALIA SPA (FILIALE ORTONA);Z351592B58;SALDO Fatt.n. 2017.0531.00047  del 31/03/2017 RIF CONTRATTO 2612446/8196STIPENDIO BUZZELLI SILVIA - CIG Z351592B58 -;13/05/2017;320;56;341;1;Spese correnti;3;Acquisto di beni e servizi;2;Acquisto di servizi;12;Lavoro flessibile, quota LSU e acquisto di servizi da agenzie di lavoro interinale;1;Acquisto di servizi da agenzie di lavoro interinale;13/05/2017
506;1;0;555,78;555,78;ADECCO ITALIA SPA (FILIALE ORTONA);Z351592B58;SALDO Fatt.n. 2017.0531.00030  del 28/02/2017 LAVORO INTERNINALE FEBBRAIO 2017 BUZZELLI S.;13/05/2017;320;56;341;1;Spese correnti;3;Acquisto di beni e servizi;2;Acquisto di servizi;12;Lavoro flessibile, quota LSU e acquisto di servizi da agenzie di lavoro interinale;1;Acquisto di servizi da agenzie di lavoro interinale;13/05/2017
507;1;0;2.318,00;2.318,00;TRAVAGLINI DOMENICO;Z9316E3FB0;SALDO Fatt.n. 45/PA  del 03/05/2017 MANUT. IMPIANTI ELETTRICI COMUNALI MESE MARZO-APRILE 2017;13/05/2017;7425;10;294;1;Spese correnti;3;Acquisto di beni e servizi;2;Acquisto di servizi;15;Contratti di servizio pubblico;15;Contratti di servizio per l'illuminazione pubblica;13/05/2017
508;1;0;5.225,00;5.225,00;AURITI DOMENICO;Z1315BF8B5;SALDO Fatt.n. FATTPA 3_17  del 03/05/2017 LAVORI DI URGENZA CON NOLO PALA PER SGOMBRO NEVE E RIPRISTINO VIABILITA' COMUNALE.;13/05/2017;9710;5;368;2;Spese in conto capitale;2;Investimenti fissi lordi e acquisto di terreni;1;Beni materiali;9;Beni immobili;12;Infrastrutture stradali;13/05/2017
509;1;0;112,84;112,84;KONE SPA;Z081B883C0;ACCONTO Fatt.n. 0093595248  del 18/04/2017 IMPIANTO N. 42505761 IN PIAZZA MAZZINI 5 ORSOGNA (CH) N.561 REG.GEN. 11.10.2016 N.276 REG.RESP.;13/05/2017;1275;1;211;1;Spese correnti;3;Acquisto di beni e servizi;2;Acquisto di servizi;9;Manutenzione ordinaria e riparazioni;8;Manutenzione ordinaria e riparazioni di beni immobili;13/05/2017
510;1;0;212,33;212,33;KONE SPA;Z081B883C0;SALDO Fatt.n. 0093595248  del 18/04/2017 IMPIANTO N. 42505761 IN PIAZZA MAZZINI 5 ORSOGNA (CH) N.561 REG.GEN. 11.10.2016 N.276 REG.RESP.;13/05/2017;1275;1;211;1;Spese correnti;3;Acquisto di beni e servizi;2;Acquisto di servizi;9;Manutenzione ordinaria e riparazioni;8;Manutenzione ordinaria e riparazioni di beni immobili;13/05/2017
511;1;0;518,89;518,89;ENEL ENERGIA SPA;Z061D9A444;SALDO Fatt.n. 004800493498  del 10/04/2017 FORNIT. E.E. MARZO 2017 C.DA ORTONESE;13/05/2017;9321;1;22;1;Spese correnti;3;Acquisto di beni e servizi;2;Acquisto di servizi;5;Utenze e canoni;4;Energia elettrica;13/05/2017
512;1;0;500;500;CIRCOLO C.B. ORSOGNA VOLONTARIATO PROT. CIVILE; ;SERVIZIO DI VIABILITA PER ENTRATA ED USCITA DALLE SCUOLE ANNO 2016;13/05/2017;7439;0;313;1;Spese correnti;4;Trasferimenti correnti;4;Trasferimenti correnti a Istituzioni Sociali Private;1;Trasferimenti correnti a Istituzioni Sociali Private;1;Trasferimenti correnti a Istituzioni Sociali Private;13/05/2017
513;1;0;500;500;CIRCOLO C.B. ORSOGNA VOLONTARIATO PROT. CIVILE; ;PRIMO ACCONTO SERVIZIO VIABILITA PER ENTRATA ED USCITA DALLE SCUOLE ORSOGNA ANNO 2017;13/05/2017;7439;0;349;1;Spese correnti;4;Trasferimenti correnti;4;Trasferimenti correnti a Istituzioni Sociali Private;1;Trasferimenti correnti a Istituzioni Sociali Private;1;Trasferimenti correnti a Istituzioni Sociali Private;13/05/2017
514;1;0;146,4;146,4;FEDERALPOL SRL - ISTITUTO DI VIGILANZA;Z5B1962BB5;SALDO Fatt.n. 19/01  del 31/03/2017 SERVIZIO DI TELEALLARME COME DA CONTRATTO N. 1477 DEL 12.11.2014 - PERIODO MARZO 2017 - RIF. CIG Z5B1962BB5 -;13/05/2017;9320;0;73;1;Spese correnti;3;Acquisto di beni e servizi;2;Acquisto di servizi;9;Manutenzione ordinaria e riparazioni;4;Manutenzione ordinaria e riparazioni di impianti e macchinari;13/05/2017
515;1;0;0,01;300,02;BRILLANTE SRL;ZF51AF1115;SALDO Fatt.n. 13/50  del 30/04/2017 ACQ. PZ.15  BIRILLO A CONO SPARTITRAFFICO, PZ.3  CHIUSINO GHISA.;13/05/2017;1270;0;157;1;Spese correnti;3;Acquisto di beni e servizi;1;Acquisto di beni;2;Altri beni di consumo;999;Altri beni e materiali di consumo n.a.c.;13/05/2017
515;2;0;300,01;300,02;BRILLANTE SRL;ZF51AF1115;ACCONTO Fatt.n. 13/50  del 30/04/2017 ACQ. PZ.15  BIRILLO A CONO SPARTITRAFFICO, PZ.3  CHIUSINO GHISA.;13/05/2017;1270;0;157;1;Spese correnti;3;Acquisto di beni e servizi;1;Acquisto di beni;2;Altri beni di consumo;999;Altri beni e materiali di consumo n.a.c.;13/05/2017
516;1;0;55,49;55,49;FAGIS SRL;Z3218D924A;SALDO Fatt.n. FATTPA 7_17  del 31/03/2017 ACQ. FASCETTE A BULLONI;13/05/2017;6350;0;26;1;Spese correnti;3;Acquisto di beni e servizi;1;Acquisto di beni;2;Altri beni di consumo;999;Altri beni e materiali di consumo n.a.c.;13/05/2017
517;1;0;1.900,00;1.900,00;MEDIASS GPA SPA;Z141E67E92;POLIZZA TUTELA LEGALE . PREMIO PERIODO RATA DAL  01_05_2017 AL  01_05_2018;13/05/2017;320;61;88;1;Spese correnti;10;Altre spese correnti;4;Premi di assicurazione;1;Premi di assicurazione contro i danni;3;Premi di assicurazione per responsabilit� civile verso terzi;13/05/2017
518;1;0;1.472,00;1.472,00;MEDIASS GPA SPA;Z681E67EA9;POLIZZA CUMULATIVA INFORTUNI . PERIODO RATA DAL  01 05 2017 AL 01 05 2018;13/05/2017;320;61;89;1;Spese correnti;10;Altre spese correnti;4;Premi di assicurazione;1;Premi di assicurazione contro i danni;3;Premi di assicurazione per responsabilit� civile verso terzi;13/05/2017
519;1;0;2.731,62;2.731,62;MEDIASS GPA SPA;ZA61E739F9;POLIZZA CUMULATIVA  R.C.A. RATA  PERIODO DAL 01 05 2017 AL 01 05 2018;13/05/2017;320;61;91;1;Spese correnti;10;Altre spese correnti;4;Premi di assicurazione;1;Premi di assicurazione contro i danni;3;Premi di assicurazione per responsabilit� civile verso terzi;13/05/2017
520;1;0;976,11;976,11;PERSONALE DIVERSO; ;STIPENDI MESE DI MAGGIO 17;18/05/2017;55;10;1;1;Spese correnti;3;Acquisto di beni e servizi;2;Acquisto di servizi;1;Organi e incarichi istituzionali dell'amministrazione;1;Organi istituzionali dell'amministrazione - Indennit�;18/05/2017
534;1;0;417,9;417,9;PERSONALE DIVERSO; ;STIPENDI MESE DI MAGGIO 17;18/05/2017;400;0;0;1;Spese correnti;3;Acquisto di beni e servizi;2;Acquisto di servizi;12;Lavoro flessibile, quota LSU e acquisto di servizi da agenzie di lavoro interinale;2;Quota LSU in carico all'ente;18/05/2017
567;1;0;467,32;467,32;AURITI FABIO;Z53193E909;SALDO Fatt.n. 2/E/2017  del 10/05/2017 ACQ. DI FERRAMENTA PER MANUT. IMMOBILI COMUNALI.;19/05/2017;6350;0;364;1;Spese correnti;3;Acquisto di beni e servizi;1;Acquisto di beni;2;Altri beni di consumo;999;Altri beni e materiali di consumo n.a.c.;19/05/2017
568;1;0;76,86;304,76;NEW CAR SYSTEM SRL;N.Z9919338;SALDO Fatt.n. FATTPA 4_17  del 10/05/2017 MANUT. SU VEICOLO COMUNALE.;19/05/2017;7395;0;44;1;Spese correnti;3;Acquisto di beni e servizi;2;Acquisto di servizi;9;Manutenzione ordinaria e riparazioni;1;Manutenzione ordinaria e riparazioni di mezzi di trasporto ad uso civile, di sicurezza e ordine pubblico;19/05/2017
568;2;0;227,9;304,76;NEW CAR SYSTEM SRL;N.Z9919338;SALDO Fatt.n. FATTPA 3_17  del 10/05/2017 MANUTENZIONE SU VEICOLO COMUNALE FIAT STILO TARGA CR 788XX.;19/05/2017;7395;0;44;1;Spese correnti;3;Acquisto di beni e servizi;2;Acquisto di servizi;9;Manutenzione ordinaria e riparazioni;1;Manutenzione ordinaria e riparazioni di mezzi di trasporto ad uso civile, di sicurezza e ordine pubblico;19/05/2017
569;1;0;1.288,32;1.288,32;EDILCAVE S.R.L.;ZDE1593C76;SALDO Fatt.n. 03/18  del 30/04/2017 acq. misto frantoiato , e pietrisco. f.co cantiere.;19/05/2017;7330;10;157;1;Spese correnti;3;Acquisto di beni e servizi;1;Acquisto di beni;2;Altri beni di consumo;999;Altri beni e materiali di consumo n.a.c.;19/05/2017
570;1;0;207,4;207,4;ASFALTI TOTARO S.R.L.;Z320CDE5C0;SALDO Fatt.n. 8/04  del 28/02/2017 ACQ. CONGLOMERATO BITUMINOSO A FREDDO IN SACCHI RIF DET.120 DEL 08.02.2017;19/05/2017;7330;10;273;1;Spese correnti;3;Acquisto di beni e servizi;1;Acquisto di beni;2;Altri beni di consumo;999;Altri beni e materiali di consumo n.a.c.;19/05/2017
571;1;0;762,5;762,5;MPMAUTO DI ROSICA ARIANNA;Z5D1E2E309;SALDO Fatt.n. 3/pa/2017  del 11/05/2017 Noleggio piattaforma aerea biennio 2017/2018;19/05/2017;1275;1;72;1;Spese correnti;3;Acquisto di beni e servizi;2;Acquisto di servizi;9;Manutenzione ordinaria e riparazioni;8;Manutenzione ordinaria e riparazioni di beni immobili;19/05/2017
572;1;0;3.850,00;3.850,00;TRAVAGLINI DOMENICO;Z9316E3FB0;SALDO Fatt.n. 49/PA  del 12/05/2017 INTERVENTO MANUT. ORDINARIA IMPIANTI CIMITERO COMUN.LE;19/05/2017;7425;10;294;1;Spese correnti;3;Acquisto di beni e servizi;2;Acquisto di servizi;15;Contratti di servizio pubblico;15;Contratti di servizio per l'illuminazione pubblica;19/05/2017
573;1;0;1.100,00;1.100,00;ASFALTI TOTARO S.R.L.;Z3315C1BCE;ACCONTO Fatt.n. 40/04  del 11/05/2017 ACQ. DI CONGLOMERATO BITUMINOSO A FREDDO IN SACCHI RIF DET 189 /2017;19/05/2017;9710;5;361;2;Spese in conto capitale;2;Investimenti fissi lordi e acquisto di terreni;1;Beni materiali;9;Beni immobili;12;Infrastrutture stradali;19/05/2017
574;1;0;213,3;213,3;ASFALTI TOTARO S.R.L.;Z3315C1BCE;ACCONTO Fatt.n. 40/04  del 11/05/2017 ACQ. DI CONGLOMERATO BITUMINOSO A FREDDO IN SACCHI RIF DET 189 /2017;19/05/2017;9710;5;361;2;Spese in conto capitale;2;Investimenti fissi lordi e acquisto di terreni;1;Beni materiali;9;Beni immobili;12;Infrastrutture stradali;19/05/2017
575;1;0;0,01;273,5;ASFALTI TOTARO S.R.L.;Z3315C1BCE;ACCONTO Fatt.n. 40/04  del 11/05/2017 ACQ. DI CONGLOMERATO BITUMINOSO A FREDDO IN SACCHI RIF DET 189 /2017;19/05/2017;7330;10;173;1;Spese correnti;3;Acquisto di beni e servizi;1;Acquisto di beni;2;Altri beni di consumo;999;Altri beni e materiali di consumo n.a.c.;19/05/2017
575;2;0;273,49;273,5;ASFALTI TOTARO S.R.L.;Z3315C1BCE;SALDO Fatt.n. 40/04  del 11/05/2017 ACQ. DI CONGLOMERATO BITUMINOSO A FREDDO IN SACCHI RIF DET 189 /2017;19/05/2017;7330;10;173;1;Spese correnti;3;Acquisto di beni e servizi;1;Acquisto di beni;2;Altri beni di consumo;999;Altri beni e materiali di consumo n.a.c.;19/05/2017
576;1;0;6,1;3.227,06;CROSS CONTROL SRL;Z0A1AEDF78;ACCONTO Fatt.n. 441  del 30/11/2016 FATTURA SPESE POSTALI ANTICIPATE VS. CONTO PER INVIO DEL 30.09.2016 SERIE AX , E SPESE BANCARIE ANTICIPATE VS. CONTO Split Payment ex art.17-ter DPR 633/72 - CIG Z0A1AEDF78.;19/05/2017;7399;0;161;1;Spese correnti;3;Acquisto di beni e servizi;2;Acquisto di servizi;99;Altri servizi;999;Altri servizi diversi n.a.c.;19/05/2017
576;2;0;356,4;3.227,06;CROSS CONTROL SRL;Z0A1AEDF78;SALDO Fatt.n. 441  del 30/11/2016 FATTURA SPESE POSTALI ANTICIPATE VS. CONTO PER INVIO DEL 30.09.2016 SERIE AX , E SPESE BANCARIE ANTICIPATE VS. CONTO Split Payment ex art.17-ter DPR 633/72 - CIG Z0A1AEDF78.;19/05/2017;7399;0;161;1;Spese correnti;3;Acquisto di beni e servizi;2;Acquisto di servizi;99;Altri servizi;999;Altri servizi diversi n.a.c.;19/05/2017
576;3;0;402,6;3.227,06;CROSS CONTROL SRL;Z0A1AEDF78;SALDO Fatt.n. 439  del 30/11/2016 FATTURA PER NOLEGGIO DI VELOX MESE DI SETTEMBRE 2016 - FT.  Split Payment ex art.17-ter DPR 633/72 - CIG Z0A1AEDF78;19/05/2017;7399;0;161;1;Spese correnti;3;Acquisto di beni e servizi;2;Acquisto di servizi;99;Altri servizi;999;Altri servizi diversi n.a.c.;19/05/2017
576;4;0;671;3.227,06;CROSS CONTROL SRL;Z0A1AEDF78;SALDO Fatt.n. 437  del 30/11/2016 FATTURA PER NOLEGGIO VELOX MESE DI NOVEMBRE 2016 - FT. Split Payment ex art.17-ter DPR 633/72. - CIG Z0A1AEDF78;19/05/2017;7399;0;161;1;Spese correnti;3;Acquisto di beni e servizi;2;Acquisto di servizi;99;Altri servizi;999;Altri servizi diversi n.a.c.;19/05/2017
576;5;0;671;3.227,06;CROSS CONTROL SRL;Z0A1AEDF78;SALDO Fatt.n. 476  del 30/12/2016 Ft  NOLEGGIO VELOX MESE DI DICEMBRE 2016.  FT.Split Payment ex art.17-ter DPR 633/72 - CIG Z0A1AEDF78 -;19/05/2017;7399;0;161;1;Spese correnti;3;Acquisto di beni e servizi;2;Acquisto di servizi;99;Altri servizi;999;Altri servizi diversi n.a.c.;19/05/2017
576;6;0;1.119,96;3.227,06;CROSS CONTROL SRL;Z0A1AEDF78;SALDO Fatt.n. 443  del 30/11/2016 FATTURA EMESSA PER SANZIONI CDS SERIE AX  DAL N. 1/2016 AL N. 54/ 2016 FT.  Split Payment ex art.17-ter DPR 633/72 - CIG Z0A1AEDF78;19/05/2017;7399;0;161;1;Spese correnti;3;Acquisto di beni e servizi;2;Acquisto di servizi;99;Altri servizi;999;Altri servizi diversi n.a.c.;19/05/2017
577;1;0;1.320,00;1.320,00;SOC. COOP. A.R.L. FRAMMENTI;Z4A16072FE;SALDO Fatt.n. FATTPA 29_17  del 29/04/2017 SERVIZIO ASSISTENZA SU SCUOLABUS A MINORI ALUNNI. MESE APRILE 2017.;19/05/2017;3415;10;358;1;Spese correnti;3;Acquisto di beni e servizi;2;Acquisto di servizi;15;Contratti di servizio pubblico;2;Contratti di servizio di trasporto scolastico;19/05/2017
578;1;0;3.742,50;3.742,50;SOC. COOP. A.R.L. FRAMMENTI;6395299FAC;SALDO Fatt.n. FATTPA 35_17  del 29/04/2017 SERVIZIO GESTIONE MENSA SCOLASTICA ALUNNI , MESE APRILE 2017;19/05/2017;3400;12;357;1;Spese correnti;3;Acquisto di beni e servizi;2;Acquisto di servizi;15;Contratti di servizio pubblico;6;Contratti di servizio per le mense scolastiche;19/05/2017
579;1;0;9.335,09;9.335,09;SOC. COOP. A.R.L. FRAMMENTI;63282816AE;SALDO Fatt.n. FATTPA 34_17  del 29/04/2017 SERVIZIO GESTIONE NIDO D'INFANZIA  MESE APRILE 2017;19/05/2017;6120;10;356;1;Spese correnti;3;Acquisto di beni e servizi;2;Acquisto di servizi;15;Contratti di servizio pubblico;10;Contratti di servizio di asilo nido;19/05/2017
580;1;0;1.150,00;1.150,00;BELLO DOMENICO;Z6315BF8B3;ACCONTO Fatt.n. FATTPA 1_17  del 27/04/2017 NOLO ESCAVATORE, MINI PALA E CAMION  RIF CIG Z6315BF8B3;19/05/2017;5366;0;202;1;Spese correnti;3;Acquisto di beni e servizi;2;Acquisto di servizi;9;Manutenzione ordinaria e riparazioni;8;Manutenzione ordinaria e riparazioni di beni immobili;19/05/2017
581;1;0;51,41;51,41;BELLO DOMENICO;Z6315BF8B3;ACCONTO Fatt.n. FATTPA 1_17  del 27/04/2017 NOLO ESCAVATORE, MINI PALA E CAMION  RIF CIG Z6315BF8B3;19/05/2017;5366;0;202;1;Spese correnti;3;Acquisto di beni e servizi;2;Acquisto di servizi;9;Manutenzione ordinaria e riparazioni;8;Manutenzione ordinaria e riparazioni di beni immobili;19/05/2017
582;1;0;8.500,00;8.500,00;BELLO DOMENICO;Z6315BF8B3;ACCONTO Fatt.n. FATTPA 1_17  del 27/04/2017 NOLO ESCAVATORE, MINI PALA E CAMION  RIF CIG Z6315BF8B3;19/05/2017;9710;5;370;2;Spese in conto capitale;2;Investimenti fissi lordi e acquisto di terreni;1;Beni materiali;9;Beni immobili;12;Infrastrutture stradali;19/05/2017
583;1;0;7.311,59;7.311,59;BELLO DOMENICO;Z6315BF8B3;SALDO Fatt.n. FATTPA 1_17  del 27/04/2017 NOLO ESCAVATORE, MINI PALA E CAMION  RIF CIG Z6315BF8B3;19/05/2017;9710;2;371;2;Spese in conto capitale;2;Investimenti fissi lordi e acquisto di terreni;1;Beni materiali;9;Beni immobili;12;Infrastrutture stradali;19/05/2017
584;1;0;724,62;724,62;TESORERIA PROVINCIALE STATO;ZEF1BE0EFB;INAIL CH, INT. SOSTITUTIVO PER DITTA BIOLUX SRL, FT. 6_2016;20/05/2017;1270;0;222;1;Spese correnti;3;Acquisto di beni e servizi;1;Acquisto di beni;2;Altri beni di consumo;999;Altri beni e materiali di consumo n.a.c.;20/05/2017
585;1;0;237,64;237,64;TESORERIA PROVINCIALE STATO;ZEF1BE0EFB;INPS CH, INT. SOSTITUTIVO PER DITTA BIOLUX SRL, FT. 6_2016;20/05/2017;1270;0;222;1;Spese correnti;3;Acquisto di beni e servizi;1;Acquisto di beni;2;Altri beni di consumo;999;Altri beni e materiali di consumo n.a.c.;20/05/2017
586;1;0;159,42;159,42;BIOLUX S.R.L.;ZEF1BE0EFB;QUOTA IVA DA VERSARE PER FATT 6_16 AL NETTO INTERVENTO SOSTITUTIVO INPS_INAIL;20/05/2017;1270;0;222;1;Spese correnti;3;Acquisto di beni e servizi;1;Acquisto di beni;2;Altri beni di consumo;999;Altri beni e materiali di consumo n.a.c.;20/05/2017
587;1;0;52,28;52,28;BIOLUX S.R.L.;ZEF1BE0EFB;QUOTA IVA DA VERSARE PER FATT 6_16 AL NETTO INTERVENTO SOSTITUTIVO INPS_INAIL;20/05/2017;1270;0;222;1;Spese correnti;3;Acquisto di beni e servizi;1;Acquisto di beni;2;Altri beni di consumo;999;Altri beni e materiali di consumo n.a.c.;20/05/2017
591;1;0;1.464,00;1.464,00;A.S.L.A. SRL;Z7E1507ABA;SALDO Fatt.n. FATTPA 5_17  del 08/05/2017 ADEGUAMENTO TECNICO RIF DETERMINA N.255 DEL 17.06.2015;20/05/2017;9320;0;138;1;Spese correnti;3;Acquisto di beni e servizi;2;Acquisto di servizi;9;Manutenzione ordinaria e riparazioni;4;Manutenzione ordinaria e riparazioni di impianti e macchinari;20/05/2017
592;1;0;178,25;178,25;ENEGAN SPA;Z3B1D9A5CE;SALDO Fatt.n. 85727  del 10/02/2017 FORNITURA ENERGIA ELETTRICA PERIODO DAL 01.01.2017  AL 31.01.2017 IN 66036 ORSOGNA  IN  P.ZZA G. MAZZINI.;20/05/2017;4006;10;33;1;Spese correnti;3;Acquisto di beni e servizi;2;Acquisto di servizi;5;Utenze e canoni;4;Energia elettrica;20/05/2017
593;1;0;125,7;596,94;ENEGAN SPA;Z3B1D9A5CE;SALDO Fatt.n. 99240  del 10/02/2017 FORNITURA ENERGIA ELETTRICA PERIODO DAL 01.01.2017  AL 31.01.2017 IN 66036 ORSOGNA  IN  V. S. FRANCESCO.;20/05/2017;6370;10;39;1;Spese correnti;3;Acquisto di beni e servizi;2;Acquisto di servizi;5;Utenze e canoni;4;Energia elettrica;20/05/2017
593;2;0;471,24;596,94;ENEGAN SPA;Z3B1D9A5CE;SALDO Fatt.n. 92027  del 10/02/2017 FORNITURA ENERGIA ELETTRICA PERIODO DAL 01.01.2017  AL 31.01.2017 IN 66036 ORSOGNA  IN  V. G. MAGNO.;20/05/2017;6370;10;39;1;Spese correnti;3;Acquisto di beni e servizi;2;Acquisto di servizi;5;Utenze e canoni;4;Energia elettrica;20/05/2017
594;1;0;47,01;47,01;ENEGAN SPA;Z3B1D9A5CE;SALDO Fatt.n. 89970  del 10/02/2017 FORNITURA ENERGIA ELETTRICA PERIODO DAL 01.01.2017  AL 31.01.2017 IN 66036 ORSOGNA  IN  VIA PIANA PELLEGRINA 14-A;20/05/2017;4007;10;34;1;Spese correnti;3;Acquisto di beni e servizi;2;Acquisto di servizi;5;Utenze e canoni;4;Energia elettrica;20/05/2017
595;1;0;29,78;492,04;ENEGAN SPA;Z3B1D9A5CE;SALDO Fatt.n. 82445  del 10/02/2017 FORNITURA ENERGIA ELETTRICA PEIRIODO DAL 01.01.2017  AL 31.01.2017 IN ORSOGNA 66036 ,  IN  C.DA PIANA S. BERARDINO.;20/05/2017;5180;10;35;1;Spese correnti;3;Acquisto di beni e servizi;2;Acquisto di servizi;5;Utenze e canoni;4;Energia elettrica;20/05/2017
595;2;0;462,26;492,04;ENEGAN SPA;Z3B1D9A5CE;SALDO Fatt.n. 129595  del 10/02/2017 FORNITURA ENERGIA ELETTRICA DAL 01.01.2017 AL 31.01.2017 IN 66036 ORSOGNA  VIA ORTONESE VICO I .;20/05/2017;5180;10;35;1;Spese correnti;3;Acquisto di beni e servizi;2;Acquisto di servizi;5;Utenze e canoni;4;Energia elettrica;20/05/2017
596;1;0;45,07;90,14;ENEGAN SPA;Z3B1D9A5CE;SALDO Fatt.n. 126976  del 10/02/2017 FORNITURA ENERGIA ELETTRICA DAL 01.01.2017 AL 31.01.2017 IN 66036 ORSOGNA  C.DA FEUDUCCIO .;20/05/2017;5470;30;36;1;Spese correnti;3;Acquisto di beni e servizi;2;Acquisto di servizi;5;Utenze e canoni;4;Energia elettrica;20/05/2017
596;2;0;45,07;90,14;ENEGAN SPA;Z3B1D9A5CE;SALDO Fatt.n. 96910  del 10/02/2017 FORNITURA ENERGIA ELETTRICA PERIODO DAL 01.01.2017  AL 31.01.2017 IN 66036 ORSOGNA  IN  C.DA RITIRO.;20/05/2017;5470;30;36;1;Spese correnti;3;Acquisto di beni e servizi;2;Acquisto di servizi;5;Utenze e canoni;4;Energia elettrica;20/05/2017
597;1;0;45,07;1.662,06;ENEGAN SPA;Z3B1D9A5CE;SALDO Fatt.n. 75840  del 10/02/2017 FORNITURA ENERGIA ELETTRICA DAL 01.01.2017 AL 31.01.2017 IN 66036 ORSOGNA  VIA FELICE MOLA.;20/05/2017;320;58;28;1;Spese correnti;3;Acquisto di beni e servizi;2;Acquisto di servizi;5;Utenze e canoni;4;Energia elettrica;20/05/2017
597;2;0;309,28;1.662,06;ENEGAN SPA;Z3B1D9A5CE;SALDO Fatt.n. 91871  del 10/02/2017 FORNITURA ENERGIA ELETTRICA PERIODO DAL 01.01.2017  AL 31.01.2017 IN 66036 ORSOGNA  IN  V. CAMILLO DE NARDIS.;20/05/2017;320;58;28;1;Spese correnti;3;Acquisto di beni e servizi;2;Acquisto di servizi;5;Utenze e canoni;4;Energia elettrica;20/05/2017
597;3;0;1.307,71;1.662,06;ENEGAN SPA;Z3B1D9A5CE;SALDO Fatt.n. 133798  del 10/02/2017 FORNITURA ENERGIA ELETTRICA DAL 01.01.2017 AL 31.01.2017 IN 66036 ORSOGNA  VIA TORRE PELLEGRINA.;20/05/2017;320;58;28;1;Spese correnti;3;Acquisto di beni e servizi;2;Acquisto di servizi;5;Utenze e canoni;4;Energia elettrica;20/05/2017
598;1;0;42,48;42,48;ENEGAN SPA;Z3B1D9A5CE;SALDO Fatt.n. 173971  del 10/03/2017 FORNITURA ENERGIA ELETTRICA DAL 01.01.2017  AL 28.02.2017 IN ORSOGNA, A   P.ZZA MAZZINI;20/05/2017;4005;10;32;1;Spese correnti;3;Acquisto di beni e servizi;2;Acquisto di servizi;5;Utenze e canoni;4;Energia elettrica;20/05/2017
599;1;0;72,21;946,44;ENEGAN SPA;Z3B1D9A5CE;SALDO Fatt.n. 173978  del 10/03/2017 FORNITURA ENERGIA ELETTRICA DAL 01.01.2017  AL 28.02.2017 IN ORSOGNA, A   VIA S. FRANCESCO;20/05/2017;6370;10;39;1;Spese correnti;3;Acquisto di beni e servizi;2;Acquisto di servizi;5;Utenze e canoni;4;Energia elettrica;20/05/2017
599;2;0;304,39;946,44;ENEGAN SPA;Z3B1D9A5CE;SALDO Fatt.n. 173982  del 10/03/2017 FORNITURA ENERGIA ELETTRICA DAL 01.01.2017  AL 28.02.2017 IN ORSOGNA, A   VIA S. FRANCESCO;20/05/2017;6370;10;39;1;Spese correnti;3;Acquisto di beni e servizi;2;Acquisto di servizi;5;Utenze e canoni;4;Energia elettrica;20/05/2017
599;3;0;569,84;946,44;ENEGAN SPA;Z3B1D9A5CE;SALDO Fatt.n. 173985  del 10/03/2017 FORNITURA ENERGIA ELETTRICA DAL 01.01.2017  AL 28.02.2017 IN ORSOGNA, A   V. GIUSEPPE MAGNO;20/05/2017;6370;10;39;1;Spese correnti;3;Acquisto di beni e servizi;2;Acquisto di servizi;5;Utenze e canoni;4;Energia elettrica;20/05/2017
600;1;0;46,92;46,92;ENEGAN SPA;Z3B1D9A5CE;SALDO Fatt.n. 173975  del 10/03/2017 FORNITURA ENERGIA ELETTRICA DAL 01.01.2017  AL 28.02.2017 IN ORSOGNA, A   VIA PIANA PELLEGRINA;20/05/2017;4007;10;34;1;Spese correnti;3;Acquisto di beni e servizi;2;Acquisto di servizi;5;Utenze e canoni;4;Energia elettrica;20/05/2017
601;1;0;365,4;365,4;ENEGAN SPA;Z3B1D9A5CE;SALDO Fatt.n. 173983  del 10/03/2017 FORNITURA ENERGIA ELETTRICA DAL 01.01.2017  AL 28.02.2017 IN ORSOGNA, A   VIA ORTONESE VICO I;20/05/2017;5180;10;35;1;Spese correnti;3;Acquisto di beni e servizi;2;Acquisto di servizi;5;Utenze e canoni;4;Energia elettrica;20/05/2017
602;1;0;391,36;391,36;ENEGAN SPA;Z3B1D9A5CE;SALDO Fatt.n. 173984  del 10/03/2017 FORNITURA ENERGIA ELETTRICA DAL 01.01.2017  AL 28.02.2017 IN ORSOGNA, A   P.ZZA G. MAZZINI;20/05/2017;4006;10;33;1;Spese correnti;3;Acquisto di beni e servizi;2;Acquisto di servizi;5;Utenze e canoni;4;Energia elettrica;20/05/2017
603;1;0;68,86;182,22;ENEGAN SPA;Z3B1D9A5CE;SALDO Fatt.n. 173977  del 10/03/2017 FORNITURA ENERGIA ELETTRICA DAL 01.01.2017  AL 28.02.2017 IN ORSOGNA, A   VIA TORRE PELLEGRINA;20/05/2017;6170;10;37;1;Spese correnti;3;Acquisto di beni e servizi;2;Acquisto di servizi;5;Utenze e canoni;4;Energia elettrica;20/05/2017
603;2;0;113,36;182,22;ENEGAN SPA;Z3B1D9A5CE;SALDO Fatt.n. 173979  del 10/03/2017 FORNITURA ENERGIA ELETTRICA DAL 01.01.2017  AL 28.02.2017 IN ORSOGNA, A   VIA ACHILLE ROSICA;20/05/2017;6170;10;37;1;Spese correnti;3;Acquisto di beni e servizi;2;Acquisto di servizi;5;Utenze e canoni;4;Energia elettrica;20/05/2017
604;1;0;874,21;874,21;ENEGAN SPA;Z3B1D9A5CE;SALDO Fatt.n. 173988  del 10/03/2017 FORNITURA ENERGIA ELETTRICA DAL 01.01.2017  AL 28.02.2017 IN ORSOGNA, A   VIA GIANFEDELE CIANCI;20/05/2017;2970;20;29;1;Spese correnti;3;Acquisto di beni e servizi;2;Acquisto di servizi;5;Utenze e canoni;4;Energia elettrica;20/05/2017
605;1;0;45,07;90,36;ENEGAN SPA;Z3B1D9A5CE;SALDO Fatt.n. 173972  del 10/03/2017 FORNITURA ENERGIA ELETTRICA DAL 01.01.2017  AL 28.02.2017 IN ORSOGNA, A   C.DA RITIRO;20/05/2017;5470;30;36;1;Spese correnti;3;Acquisto di beni e servizi;2;Acquisto di servizi;5;Utenze e canoni;4;Energia elettrica;20/05/2017
605;2;0;45,29;90,36;ENEGAN SPA;Z3B1D9A5CE;SALDO Fatt.n. 173974  del 10/03/2017 FORNITURA ENERGIA ELETTRICA DAL 01.01.2017  AL 28.02.2017 IN ORSOGNA, A   C.DA  FEUDUCCIO;20/05/2017;5470;30;36;1;Spese correnti;3;Acquisto di beni e servizi;2;Acquisto di servizi;5;Utenze e canoni;4;Energia elettrica;20/05/2017
606;1;0;294,12;294,12;ENEGAN SPA;Z3B1D9A5CE;SALDO Fatt.n. 173981  del 10/03/2017 FORNITURA ENERGIA ELETTRICA DAL 01.01.2017  AL 28.02.2017 IN ORSOGNA, A   VIA ACHILLE ROSICA,18;20/05/2017;3210;0;30;1;Spese correnti;3;Acquisto di beni e servizi;2;Acquisto di servizi;5;Utenze e canoni;4;Energia elettrica;20/05/2017
607;1;0;11.342,40;11.342,40;ENEGAN SPA;Z6A1D9A5BA;SALDO Fatt.n. 173989  del 10/03/2017 FORNITURA ENERGIA ELETTRICA DAL 01.09.2016  AL 28.02.2017 IN ORSOGNA, A   C.DA FARALONGA  POD IT001E61782698 NR. DOC 0173989 CONTRATTO E044170-16;20/05/2017;7400;10;40;1;Spese correnti;3;Acquisto di beni e servizi;2;Acquisto di servizi;5;Utenze e canoni;4;Energia elettrica;20/05/2017
608;1;0;28,89;1.676,31;ENEGAN SPA;Z3B1D9A5CE;SALDO Fatt.n. 173969  del 10/03/2017 FORNITURA ENERGIA ELETTRICA DAL 01.01.2017  AL 28.02.2017 IN ORSOGNA, A   C.DA PIANA S. BERARDINO;20/05/2017;320;58;28;1;Spese correnti;3;Acquisto di beni e servizi;2;Acquisto di servizi;5;Utenze e canoni;4;Energia elettrica;20/05/2017
608;2;0;30,29;1.676,31;ENEGAN SPA;Z3B1D9A5CE;SALDO Fatt.n. 173970  del 10/03/2017 FORNITURA ENERGIA ELETTRICA DAL 01.01.2017  AL 28.02.2017 IN ORSOGNA, A   VICO I ORTONESE;20/05/2017;320;58;28;1;Spese correnti;3;Acquisto di beni e servizi;2;Acquisto di servizi;5;Utenze e canoni;4;Energia elettrica;20/05/2017
608;3;0;45,07;1.676,31;ENEGAN SPA;Z3B1D9A5CE;SALDO Fatt.n. 173973  del 10/03/2017 FORNITURA ENERGIA ELETTRICA DAL 01.01.2017  AL 28.02.2017 IN ORSOGNA, A   VIA FELICE MOLA;20/05/2017;320;58;28;1;Spese correnti;3;Acquisto di beni e servizi;2;Acquisto di servizi;5;Utenze e canoni;4;Energia elettrica;20/05/2017
608;4;0;60,48;1.676,31;ENEGAN SPA;Z3B1D9A5CE;SALDO Fatt.n. 173976  del 10/03/2017 FORNITURA ENERGIA ELETTRICA DAL 01.01.2017  AL 28.02.2017 IN ORSOGNA, A   VIA CAMILLO DE NARDIS;20/05/2017;320;58;28;1;Spese correnti;3;Acquisto di beni e servizi;2;Acquisto di servizi;5;Utenze e canoni;4;Energia elettrica;20/05/2017
608;5;0;745,02;1.676,31;ENEGAN SPA;Z3B1D9A5CE;SALDO Fatt.n. 173986  del 10/03/2017 FORNITURA ENERGIA ELETTRICA DAL 01.01.2017  AL 28.02.2017 IN ORSOGNA, A   VIA ROMA,3;20/05/2017;320;58;28;1;Spese correnti;3;Acquisto di beni e servizi;2;Acquisto di servizi;5;Utenze e canoni;4;Energia elettrica;20/05/2017
608;6;0;766,56;1.676,31;ENEGAN SPA;Z3B1D9A5CE;SALDO Fatt.n. 173987  del 10/03/2017 FORNITURA ENERGIA ELETTRICA DAL 01.01.2017  AL 28.02.2017 IN ORSOGNA, A   C.DA COLLE S. GIACOMO;20/05/2017;320;58;28;1;Spese correnti;3;Acquisto di beni e servizi;2;Acquisto di servizi;5;Utenze e canoni;4;Energia elettrica;20/05/2017
609;1;0;114,82;114,82;ENEGAN SPA;Z3B1D9A5CE;SALDO Fatt.n. 173980  del 10/03/2017 FORNITURA ENERGIA ELETTRICA DAL 01.01.2017  AL 28.02.2017 IN ORSOGNA, A   VIA ACHILLE ROSICA,26;20/05/2017;2165;0;31;1;Spese correnti;3;Acquisto di beni e servizi;2;Acquisto di servizi;5;Utenze e canoni;4;Energia elettrica;20/05/2017
610;1;0;1.454,98;1.454,98;ENEGAN SPA;ZEE189539E;SALDO Fatt.n. 33605  del 10/02/2017 FORNITURA  GAS  DAL 01.01.2017 AL 31.01.2017 IN 66036 ORSOGNA  VIA G. MAGNO;20/05/2017;320;60;197;1;Spese correnti;3;Acquisto di beni e servizi;2;Acquisto di servizi;5;Utenze e canoni;6;Gas;20/05/2017
611;1;0;20,76;2.054,93;ENEGAN SPA;Z3F1D9A6E2;SALDO Fatt.n. 32570  del 10/02/2017 FORNITURA  GAS DAL 01.01.2017 AL 31.01.2017 IN 66036 ORSOGNA  VIA  CAMILLO DE NARDIS 1;20/05/2017;320;60;42;1;Spese correnti;3;Acquisto di beni e servizi;2;Acquisto di servizi;5;Utenze e canoni;6;Gas;20/05/2017
611;2;0;37,06;2.054,93;ENEGAN SPA;Z3F1D9A6E2;SALDO Fatt.n. 47129  del 10/02/2017 FORNITURA  GAS  DAL 01.01.2017 AL 31.01.2017 IN 66036 ORSOGNA  VIA  ROMA,5;20/05/2017;320;60;42;1;Spese correnti;3;Acquisto di beni e servizi;2;Acquisto di servizi;5;Utenze e canoni;6;Gas;20/05/2017
611;3;0;304,16;2.054,93;ENEGAN SPA;Z3F1D9A6E2;SALDO Fatt.n. 29605  del 10/02/2017 FORNITURA  DISTRIBUZIONE GAS  DAL 01.01.2017 AL 31.01.2017 IN 66036 ORSOGNA  VIA A. ROSICA,26;20/05/2017;320;60;42;1;Spese correnti;3;Acquisto di beni e servizi;2;Acquisto di servizi;5;Utenze e canoni;6;Gas;20/05/2017
611;4;0;1.692,95;2.054,93;ENEGAN SPA;Z3F1D9A6E2;SALDO Fatt.n. 47194  del 10/02/2017 FORNITURA  GAS  DAL 01.01.2017 AL 31.01.2017 IN 66036 ORSOGNA  P.ZZA G. MAZZINI,1.;20/05/2017;320;60;42;1;Spese correnti;3;Acquisto di beni e servizi;2;Acquisto di servizi;5;Utenze e canoni;6;Gas;20/05/2017
612;1;0;87,27;3.199,35;ENEGAN SPA;Z8F1D9A6E0;SALDO Fatt.n. 49651  del 10/02/2017 FORNITURA  GAS  DAL 01.01.2017 AL 31.01.2017 IN 66036 ORSOGNA  VIA  CIANCI GIANFELICE,1;20/05/2017;2970;21;48;1;Spese correnti;3;Acquisto di beni e servizi;2;Acquisto di servizi;5;Utenze e canoni;6;Gas;20/05/2017
612;2;0;214,26;3.199,35;ENEGAN SPA;Z8F1D9A6E0;SALDO Fatt.n. 29600  del 10/02/2017 FORNITURA  GAS  DAL 01.01.2017 AL 31.01.2017 IN 66036 ORSOGNA  VIA GIANFELICE CIANCI ,3.;20/05/2017;2970;21;48;1;Spese correnti;3;Acquisto di beni e servizi;2;Acquisto di servizi;5;Utenze e canoni;6;Gas;20/05/2017
612;3;0;2.897,82;3.199,35;ENEGAN SPA;Z8F1D9A6E0;SALDO Fatt.n. 33405  del 10/02/2017 FORNITURA  GAS DAL 01.01.2017 AL 31.01.2017 IN 66036 ORSOGNA  VIA FUMBERTO I VICO I;20/05/2017;2970;21;48;1;Spese correnti;3;Acquisto di beni e servizi;2;Acquisto di servizi;5;Utenze e canoni;6;Gas;20/05/2017
613;1;0;990,22;2.059,13;ENEGAN SPA;Z9E18953A0;SALDO Fatt.n. 33882  del 10/02/2017 FORNITURA  GAS  DAL 01.01.2017 AL 31.01.2017 IN 66036 ORSOGNA  VIA  ACHILLE ROSICA,26.;20/05/2017;3210;1;201;1;Spese correnti;3;Acquisto di beni e servizi;2;Acquisto di servizi;5;Utenze e canoni;6;Gas;20/05/2017
613;2;0;1.068,91;2.059,13;ENEGAN SPA;Z9E18953A0;SALDO Fatt.n. 32751  del 10/02/2017 FORNITURA DI GAS NATURALE PERIODO DAL 01.11.2016  AL 31.01.2017 IN 66036 ORSOGNA ALLA VIA ACHILLE ROSICA.;20/05/2017;3210;1;201;1;Spese correnti;3;Acquisto di beni e servizi;2;Acquisto di servizi;5;Utenze e canoni;6;Gas;20/05/2017
614;1;0;29,31;29,31;ENEGAN SPA;Z3F1D9A6E2;SALDO Fatt.n. 30561  del 10/02/2017 FORNITURA GAS  DAL 01.01.2017 AL 31.01.2017 IN 66036 ORSOGNA  VIA ORTONESE VICO I;20/05/2017;4005;13;44;1;Spese correnti;3;Acquisto di beni e servizi;2;Acquisto di servizi;5;Utenze e canoni;6;Gas;20/05/2017
615;1;0;20,76;103,8;ENEGAN SPA;Z3F1D9A6E2;SALDO Fatt.n. 30470  del 10/02/2017 FORNITURA DIST. GAS DAL 01.01.2017 AL 31.01.2017 IN 66036 ORSOGNA  VIA FILIPPO TENAGLIA.;20/05/2017;4006;12;45;1;Spese correnti;3;Acquisto di beni e servizi;2;Acquisto di servizi;5;Utenze e canoni;6;Gas;20/05/2017
615;2;0;21,85;103,8;ENEGAN SPA;Z3F1D9A6E2;SALDO Fatt.n. 34161  del 10/02/2017 FORNITURA  GAS  DAL 01.01.2017 AL 31.01.2017 IN 66036 ORSOGNA  VIA  CAMILLO TENAGLIA.;20/05/2017;4006;12;45;1;Spese correnti;3;Acquisto di beni e servizi;2;Acquisto di servizi;5;Utenze e canoni;6;Gas;20/05/2017
615;3;0;61,19;103,8;ENEGAN SPA;Z3F1D9A6E2;SALDO Fatt.n. 30262  del 10/02/2017 FORNITURA GAS  DAL 01.01.2017 AL 31.01.2017 IN 66036 ORSOGNA P.ZZA G. MAZZINI,16.;20/05/2017;4006;12;45;1;Spese correnti;3;Acquisto di beni e servizi;2;Acquisto di servizi;5;Utenze e canoni;6;Gas;20/05/2017
616;1;0;26,54;26,54;ENEGAN SPA;Z3F1D9A6E2;SALDO Fatt.n. 36607  del 10/02/2017 FORNITURA  GAS  DAL 01.01.2017 AL 31.01.2017 IN 66036 ORSOGNA   C.DA SAN BASILE.;20/05/2017;4007;12;46;1;Spese correnti;3;Acquisto di beni e servizi;2;Acquisto di servizi;5;Utenze e canoni;6;Gas;20/05/2017
617;1;0;960,75;960,75;ENEGAN SPA;ZEE189539E;ACCONTO Fatt.n. 66906  del 10/03/2017 FORNITURA DISTRIBUZIONE GAS DAL 01.12.2016  AL 28.02.2017 IN ORSOGNA, A   P.ZZA G. MAZZINI,1;20/05/2017;320;60;197;1;Spese correnti;3;Acquisto di beni e servizi;2;Acquisto di servizi;5;Utenze e canoni;6;Gas;20/05/2017
618;1;0;21,33;760,86;ENEGAN SPA;Z3F1D9A6E2;SALDO Fatt.n. 66895  del 10/03/2017 FORNITURA GAS  DAL 01.12.2016  AL 28.02.2017 IN ORSOGNA, A   VIA FILIPPO TENAGLIA;20/05/2017;320;60;42;1;Spese correnti;3;Acquisto di beni e servizi;2;Acquisto di servizi;5;Utenze e canoni;6;Gas;20/05/2017
618;2;0;36,02;760,86;ENEGAN SPA;Z3F1D9A6E2;SALDO Fatt.n. 66898  del 10/03/2017 FORNITURA DISTRIBUZIONE GAS DAL 01.12.2016  AL 28.02.2017 IN ORSOGNA, A   VIA ROMA,5;20/05/2017;320;60;42;1;Spese correnti;3;Acquisto di beni e servizi;2;Acquisto di servizi;5;Utenze e canoni;6;Gas;20/05/2017
618;3;0;239,09;760,86;ENEGAN SPA;Z3F1D9A6E2;ACCONTO Fatt.n. 66902  del 10/03/2017 FORNITURA DISTRIBUZIONE GAS DAL 01.12.2016  AL 28.02.2017 IN ORSOGNA, A   VIA ACHILLE ROSICA,26;20/05/2017;320;60;42;1;Spese correnti;3;Acquisto di beni e servizi;2;Acquisto di servizi;5;Utenze e canoni;6;Gas;20/05/2017
618;4;0;464,42;760,86;ENEGAN SPA;Z3F1D9A6E2;SALDO Fatt.n. 66906  del 10/03/2017 FORNITURA DISTRIBUZIONE GAS DAL 01.12.2016  AL 28.02.2017 IN ORSOGNA, A   P.ZZA G. MAZZINI,1;20/05/2017;320;60;42;1;Spese correnti;3;Acquisto di beni e servizi;2;Acquisto di servizi;5;Utenze e canoni;6;Gas;20/05/2017
619;1;0;829,64;829,64;ENEGAN SPA;Z9E18953A0;ACCONTO Fatt.n. 66907  del 10/03/2017 FORNITURA DISTRIBUZIONE GAS DAL 01.01.2017  AL 28.02.2017 IN ORSOGNA, A   VIA UMBERTO I VICO I;20/05/2017;2970;21;200;1;Spese correnti;3;Acquisto di beni e servizi;2;Acquisto di servizi;5;Utenze e canoni;6;Gas;20/05/2017
620;1;0;101,23;1.756,33;ENEGAN SPA;Z8F1D9A6E0;SALDO Fatt.n. 66900  del 10/03/2017 FORNITURA DISTRIBUZIONE GAS DAL 01.12.2016  AL 28.02.2017 IN ORSOGNA, A   VIA CIANCI GIANFEDELE,1;20/05/2017;2970;21;48;1;Spese correnti;3;Acquisto di beni e servizi;2;Acquisto di servizi;5;Utenze e canoni;6;Gas;20/05/2017
620;2;0;202,59;1.756,33;ENEGAN SPA;Z8F1D9A6E0;SALDO Fatt.n. 66901  del 10/03/2017 FORNITURA DISTRIBUZIONE GAS DAL 01.12.2016  AL 28.02.2017 IN ORSOGNA, A   VIA CIANCI GIANFEDELE,3;20/05/2017;2970;21;48;1;Spese correnti;3;Acquisto di beni e servizi;2;Acquisto di servizi;5;Utenze e canoni;6;Gas;20/05/2017
620;3;0;1.452,51;1.756,33;ENEGAN SPA;Z8F1D9A6E0;SALDO Fatt.n. 66907  del 10/03/2017 FORNITURA DISTRIBUZIONE GAS DAL 01.01.2017  AL 28.02.2017 IN ORSOGNA, A   VIA UMBERTO I VICO I;20/05/2017;2970;21;48;1;Spese correnti;3;Acquisto di beni e servizi;2;Acquisto di servizi;5;Utenze e canoni;6;Gas;20/05/2017
621;1;0;1.377,48;1.377,48;ENEGAN SPA;Z9E18953A0;SALDO Fatt.n. 66905  del 10/03/2017 FORNITURA DISTRIBUZIONE GAS DAL 01.12.2016  AL 28.02.2017 IN ORSOGNA, A   VIA ACHILLE ROSICA;20/05/2017;3210;1;201;1;Spese correnti;3;Acquisto di beni e servizi;2;Acquisto di servizi;5;Utenze e canoni;6;Gas;20/05/2017
622;1;0;20,52;20,52;ENEGAN SPA;Z3F1D9A6E2;SALDO Fatt.n. 66893  del 10/03/2017 FORNITURA DISTRIBUZIONE GAS DAL 01.12.2016  AL 28.02.2017 IN ORSOGNA, A   VIA ORTONESE VICO I;20/05/2017;4005;13;44;1;Spese correnti;3;Acquisto di beni e servizi;2;Acquisto di servizi;5;Utenze e canoni;6;Gas;20/05/2017
623;1;0;21,33;43,74;ENEGAN SPA;ZEE189539E;SALDO Fatt.n. 66894  del 10/03/2017 FORNITURA DISTRIBUZIONE GAS DAL 01.12.2016  AL 28.02.2017 IN ORSOGNA, A   VIA CAMILLO DE NARDIS,1;20/05/2017;4006;12;198;1;Spese correnti;3;Acquisto di beni e servizi;2;Acquisto di servizi;5;Utenze e canoni;6;Gas;20/05/2017
623;2;0;22,41;43,74;ENEGAN SPA;ZEE189539E;SALDO Fatt.n. 66896  del 10/03/2017 FORNITURA DISTRIBUZIONE GAS DAL 01.12.2016  AL 28.02.2017 IN ORSOGNA, A   VIA CAMILLO TENAGLIA.;20/05/2017;4006;12;198;1;Spese correnti;3;Acquisto di beni e servizi;2;Acquisto di servizi;5;Utenze e canoni;6;Gas;20/05/2017
624;1;0;26,56;26,56;ENEGAN SPA;ZEE189539E;SALDO Fatt.n. 66897  del 10/03/2017 FORNITURA DISTRIBUZIONE GAS DAL 01.12.2016  AL 28.02.2017 IN ORSOGNA, A   C.DA SAN BASILE;20/05/2017;4007;12;229;1;Spese correnti;3;Acquisto di beni e servizi;2;Acquisto di servizi;5;Utenze e canoni;6;Gas;20/05/2017
625;1;0;699,56;699,56;ENEGAN SPA;ZEE189539E;SALDO Fatt.n. 66903  del 10/03/2017 FORNITURA DISTRIBUZIONE GAS DAL 01.12.2016  AL 28.02.2017 IN ORSOGNA, A   VIA  G. MAGNO;20/05/2017;6370;13;230;1;Spese correnti;3;Acquisto di beni e servizi;2;Acquisto di servizi;5;Utenze e canoni;6;Gas;20/05/2017
626;1;0;829,22;829,22;ENEGAN SPA; ;SALDO Fatt.n. 66904  del 10/03/2017 FORNITURA DISTRIBUZIONE GAS DAL 01.01.2017  AL 28.02.2017 IN ORSOGNA, A   VIA ACHILLE ROSICA,26;20/05/2017;6370;13;47;1;Spese correnti;3;Acquisto di beni e servizi;2;Acquisto di servizi;5;Utenze e canoni;6;Gas;20/05/2017
627;1;0;46,54;46,54;ENEGAN SPA;ZEE189539E;SALDO Fatt.n. 66902  del 10/03/2017 FORNITURA DISTRIBUZIONE GAS DAL 01.12.2016  AL 28.02.2017 IN ORSOGNA, A   VIA ACHILLE ROSICA,26;20/05/2017;2165;5;231;1;Spese correnti;3;Acquisto di beni e servizi;2;Acquisto di servizi;5;Utenze e canoni;6;Gas;20/05/2017
628;1;0;305;305;ASFALTI TOTARO S.R.L.;Z3315C1BCE;SALDO FATT. 19_2017;20/05/2017;7330;10;173;1;Spese correnti;3;Acquisto di beni e servizi;1;Acquisto di beni;2;Altri beni di consumo;999;Altri beni e materiali di consumo n.a.c.;20/05/2017
629;1;0;76.321,01;76.321,01;ING BANCK NV;3140430CCE;SALDO Fatt.n. V2P/17000069  del 08/04/2017 CANONE LEASING - RIF. CONTRATTO N.00165472/001 DEL 05.09.2012 CIG 3140430CCE;24/05/2017;9340;0;5;1;Spese correnti;3;Acquisto di beni e servizi;2;Acquisto di servizi;8;Leasing operativo;999;Leasing operativo di altri beni;24/05/2017
630;1;0;1.000,00;1.000,00;VERNA ANDREA;Z3E1DBD57B;ACCONTO Fatt.n. 5/PA  del 31/03/2017 VENDITA DI CARBURANTE BENZINA SUPER SPB PER MEZZI COMUNALI;24/05/2017;7325;0;26;1;Spese correnti;3;Acquisto di beni e servizi;1;Acquisto di beni;2;Altri beni di consumo;2;Carburanti, combustibili e lubrificanti;24/05/2017
631;1;0;51,6;51,6;VERNA ANDREA;Z3E1DBD57B;SALDO Fatt.n. 5/PA  del 31/03/2017 VENDITA DI CARBURANTE BENZINA SUPER SPB PER MEZZI COMUNALI;24/05/2017;530;0;27;1;Spese correnti;3;Acquisto di beni e servizi;1;Acquisto di beni;2;Altri beni di consumo;2;Carburanti, combustibili e lubrificanti;24/05/2017
632;1;0;24.000,00;24.000,00;ECO.LAN. SPA;Z1E1D3B134;SALDO Fatt.n. 100309  del 30/04/2017 SERVIZIO IGIENE URBANA APRILE 2017;24/05/2017;5800;10;19;1;Spese correnti;3;Acquisto di beni e servizi;2;Acquisto di servizi;15;Contratti di servizio pubblico;4;Contratti di servizio per la raccolta rifiuti;24/05/2017
633;1;0;101,75;101,75;OREM SPA;Z171E64683;SALDO Fatt.n. 657  del 02/05/2017 INTERVENTO SU IMPIANTO IN C.SO UMBERTO SCUOLA ELEMENTARE BACHELET IN ORSOGNA , MANUT. E SOST. N.2 BATTERIE;24/05/2017;1270;0;79;1;Spese correnti;3;Acquisto di beni e servizi;1;Acquisto di beni;2;Altri beni di consumo;999;Altri beni e materiali di consumo n.a.c.;24/05/2017
634;1;0;39,04;39,04;DECART S.R.L.;Z9C1DC5D9C;SALDO Fatt.n. 189/PA  del 18/04/2017 ACQ. REGISTRO DEFINITIVO DELLE UNIONI CIVILI ORD N.3559619 DEL 10.03.2017;24/05/2017;320;40;54;1;Spese correnti;3;Acquisto di beni e servizi;1;Acquisto di beni;2;Altri beni di consumo;1;Carta, cancelleria e stampati;24/05/2017
635;1;0;79,3;79,3;DECART S.R.L.;ZF91E11FE8;SALDO Fatt.n. 190/PA  del 18/04/2017 ACQ. BROGLIACCIO CON RILEGATURA PER APPUNTI, DISCUSSIONI DEL CONSIGLIO COMUNALE;24/05/2017;320;40;66;1;Spese correnti;3;Acquisto di beni e servizi;1;Acquisto di beni;2;Altri beni di consumo;1;Carta, cancelleria e stampati;24/05/2017
636;1;0;246;246;S.E.P.E.L.   SAS;Z9B1DC6048;SALDO Fatt.n. 2/1421  del 12/04/2017 VENDITE ABB.RIVISTE;24/05/2017;505;0;53;1;Spese correnti;3;Acquisto di beni e servizi;1;Acquisto di beni;1;Giornali, riviste e pubblicazioni;1;Giornali e riviste;24/05/2017
637;1;0;68,32;68,32;BUY QUICK CREATIONS SOC. COOP.;ZAB1DC5ACA;SALDO Fatt.n. 0000084  del 07/04/2017 ACQ. TIMBRO AUTOMATICO TONDO N.1, ROTOLO ETICHETTE ADESIVE TRASPARENTI IN ACETATO. RIF CIG ZAB1DC5ACA -;24/05/2017;940;0;55;1;Spese correnti;3;Acquisto di beni e servizi;1;Acquisto di beni;2;Altri beni di consumo;1;Carta, cancelleria e stampati;24/05/2017
638;1;0;100;100;MANCINI NICOLO;Z101E6B466;SALDO Fatt.n. 2/PA/2017  del 04/05/2017 MANIFESTAZIONE BIENNALE DI SCULTURA;24/05/2017;3774;10;93;1;Spese correnti;3;Acquisto di beni e servizi;1;Acquisto di beni;2;Altri beni di consumo;999;Altri beni e materiali di consumo n.a.c.;24/05/2017
640;1;0;1.040,00;1.040,00;CIANCIO MARIANGELA;Z551A76E08;SALDO FATT. PA 1_17  DEL 08_03_2017 ONORARIO E SPESE PER COORDINAMENTO IN FASE DI PROGETTAZIONE ED ESECUZIONE LAVORI AMPLIAMENTO CIMITERO COMUNALE;31/05/2017;9600;0;226;2;Spese in conto capitale;2;Investimenti fissi lordi e acquisto di terreni;1;Beni materiali;9;Beni immobili;15;Cimiteri;31/05/2017
641;1;0;1.366,40;1.366,40;MYO SPA;Z021CCC9B7;SALDO Fatt.n. 2040/170004088  del 24/02/2017 SERVIZI FORMULA COMMERCIO,  LAVORI PUBB.CI,  BENI SERVIZI,  TRIBUTI, SERVIZI DEMOGRAFICI, CONTABILITA', RISORSE UMANE. - CIG Z021CCC9B7 -;31/05/2017;505;10;380;1;Spese correnti;3;Acquisto di beni e servizi;1;Acquisto di beni;1;Giornali, riviste e pubblicazioni;1;Giornali e riviste;31/05/2017
642;1;0;54,09;54,09;TESORERIA PROVINCIALE DELLO STATO; ;SPESE SOSTENUTE DALLO STATO PER LA MANUTENZIONE E L'ESERCIZIO DI FARI E FANALI E SEGNALAMENTI  MARITTIMI - QUOTA A CARICO DEL COMUNE DI ORSOGNA ANNO 2016;31/05/2017;7690;0;103;1;Spese correnti;4;Trasferimenti correnti;1;Trasferimenti correnti a Amministrazioni Pubbliche;1;Trasferimenti correnti a Amministrazioni Centrali;1;Trasferimenti correnti a Ministeri;31/05/2017
643;1;0;6.000,00;6.000,00;TELECOM ITALIA SPA;Z60199B50C;VERBALE CORECOM ABRUZZO DEL 20_02_2017 GU14 N. 309_16;31/05/2017;320;62;84;1;Spese correnti;3;Acquisto di beni e servizi;2;Acquisto di servizi;5;Utenze e canoni;1;Telefonia fissa;31/05/2017
644;1;0;900;900;TELECOM ITALIA SPA;Z60199B50C;VERBALE CORECOM ABRUZZO DEL 20_02_2017 GU14 N. 309_16;31/05/2017;9321;0;88;1;Spese correnti;3;Acquisto di beni e servizi;2;Acquisto di servizi;5;Utenze e canoni;2;Telefonia mobile;31/05/2017
645;1;0;1.000,00;1.000,00;TELECOM ITALIA SPA;Z60199B50C;VERBALE CORECOM ABRUZZO DEL 20_02_2017 GU14 N. 309_16;31/05/2017;6170;12;87;1;Spese correnti;3;Acquisto di beni e servizi;2;Acquisto di servizi;5;Utenze e canoni;1;Telefonia fissa;31/05/2017
646;1;0;1.634,72;1.634,72;TELECOM ITALIA SPA;Z60199B50C;VERBALE CORECOM ABRUZZO DEL 20_02_2017 GU14 N. 309_16;31/05/2017;2970;22;85;1;Spese correnti;3;Acquisto di beni e servizi;2;Acquisto di servizi;5;Utenze e canoni;1;Telefonia fissa;31/05/2017
647;1;0;412,87;412,87;CASTIGLIONE ASSICURAZIONI SAS UNIPOLSAI;ZDF1EBA11A;POLIZZA CAUZIONALE NR. 3559200007971 COMPAGNIA UNIPOLSAI DIVISIONE LA PREVIDENTE N. 3559200007971;31/05/2017;320;61;105;1;Spese correnti;10;Altre spese correnti;4;Premi di assicurazione;1;Premi di assicurazione contro i danni;3;Premi di assicurazione per responsabilit� civile verso terzi;31/05/2017
648;1;0;29,28;29,28;BRILLANTE SRL;ZF51AF1115;SALDO Fatt.n. 15/50  del 15/05/2017 FORNIT. MATERIALE VARIO;31/05/2017;1270;0;157;1;Spese correnti;3;Acquisto di beni e servizi;1;Acquisto di beni;2;Altri beni di consumo;999;Altri beni e materiali di consumo n.a.c.;31/05/2017
649;1;0;1.098,00;1.098,00;EUROCOPERTURE S.R.L.;Z8B1E241E4;SALDO Fatt.n. 1/E  del 15/05/2017 LAVORI DI RIPRISTINO MANTO DI COPERTURA DELLA SCUOLA PRIMARIA UBICATA IN CORSO UMBERTO I;31/05/2017;1275;1;71;1;Spese correnti;3;Acquisto di beni e servizi;2;Acquisto di servizi;9;Manutenzione ordinaria e riparazioni;8;Manutenzione ordinaria e riparazioni di beni immobili;31/05/2017
650;1;0;54,7;54,7;ENEGAN SPA;Z3B1D9A5CE;SALDO Fatt.n. 241819  del 10/04/2017 FATTURA ENERGIA ELETTRICA;31/05/2017;4005;10;32;1;Spese correnti;3;Acquisto di beni e servizi;2;Acquisto di servizi;5;Utenze e canoni;4;Energia elettrica;31/05/2017
651;1;0;83,29;676,05;ENEGAN SPA;Z3B1D9A5CE;SALDO Fatt.n. 241821  del 10/04/2017 FATTURA ENERGIA ELETTRICA;31/05/2017;6370;10;39;1;Spese correnti;3;Acquisto di beni e servizi;2;Acquisto di servizi;5;Utenze e canoni;4;Energia elettrica;31/05/2017
651;2;0;85,85;676,05;ENEGAN SPA;Z3B1D9A5CE;SALDO Fatt.n. 241822  del 10/04/2017 FATTURA ENERGIA ELETTRICA;31/05/2017;6370;10;39;1;Spese correnti;3;Acquisto di beni e servizi;2;Acquisto di servizi;5;Utenze e canoni;4;Energia elettrica;31/05/2017
651;3;0;506,91;676,05;ENEGAN SPA;Z3B1D9A5CE;SALDO Fatt.n. 241831  del 10/04/2017 FATTURA ENERGIA ELETTRICA;31/05/2017;6370;10;39;1;Spese correnti;3;Acquisto di beni e servizi;2;Acquisto di servizi;5;Utenze e canoni;4;Energia elettrica;31/05/2017
652;1;0;46,98;46,98;ENEGAN SPA;Z3B1D9A5CE;SALDO Fatt.n. 241818  del 10/04/2017 FATTURA LUCE;31/05/2017;4007;10;34;1;Spese correnti;3;Acquisto di beni e servizi;2;Acquisto di servizi;5;Utenze e canoni;4;Energia elettrica;31/05/2017
653;1;0;259,87;259,87;ENEGAN SPA;Z3B1D9A5CE;ACCONTO Fatt.n. 241829  del 10/04/2017 FATTURA ENERGIA ELETTRICA;31/05/2017;4006;10;33;1;Spese correnti;3;Acquisto di beni e servizi;2;Acquisto di servizi;5;Utenze e canoni;4;Energia elettrica;31/05/2017
654;1;0;159,69;159,69;ENEGAN SPA;Z3B1D9A5CE;SALDO Fatt.n. 241829  del 10/04/2017 FATTURA ENERGIA ELETTRICA;31/05/2017;320;58;28;1;Spese correnti;3;Acquisto di beni e servizi;2;Acquisto di servizi;5;Utenze e canoni;4;Energia elettrica;31/05/2017
655;1;0;68,86;227,71;ENEGAN SPA;Z3B1D9A5CE;SALDO Fatt.n. 241820  del 10/04/2017 FATTURA ENERGIA ELETTRICA;31/05/2017;6170;10;37;1;Spese correnti;3;Acquisto di beni e servizi;2;Acquisto di servizi;5;Utenze e canoni;4;Energia elettrica;31/05/2017
655;2;0;158,85;227,71;ENEGAN SPA;Z3B1D9A5CE;SALDO Fatt.n. 241825  del 10/04/2017 FATTURA ENERGIA ELETTRICA;31/05/2017;6170;10;37;1;Spese correnti;3;Acquisto di beni e servizi;2;Acquisto di servizi;5;Utenze e canoni;4;Energia elettrica;31/05/2017
656;1;0;705,56;705,56;ENEGAN SPA;Z3B1D9A5CE;ACCONTO Fatt.n. 241833  del 10/04/2017 FATTURA ENERGIA ELETTRICA;31/05/2017;2970;20;29;1;Spese correnti;3;Acquisto di beni e servizi;2;Acquisto di servizi;5;Utenze e canoni;4;Energia elettrica;31/05/2017
657;1;0;111,84;111,84;ENEGAN SPA;Z3B1D9A5CE;SALDO Fatt.n. 241833  del 10/04/2017 FATTURA ENERGIA ELETTRICA;31/05/2017;320;58;28;1;Spese correnti;3;Acquisto di beni e servizi;2;Acquisto di servizi;5;Utenze e canoni;4;Energia elettrica;31/05/2017
658;1;0;45,07;90,36;ENEGAN SPA;Z3B1D9A5CE;SALDO Fatt.n. 241815  del 10/04/2017 FATTURA LUCE;31/05/2017;5470;30;36;1;Spese correnti;3;Acquisto di beni e servizi;2;Acquisto di servizi;5;Utenze e canoni;4;Energia elettrica;31/05/2017
658;2;0;45,29;90,36;ENEGAN SPA;Z3B1D9A5CE;SALDO Fatt.n. 241817  del 10/04/2017 FATTURA ENERGIA ELETTRICA;31/05/2017;5470;30;36;1;Spese correnti;3;Acquisto di beni e servizi;2;Acquisto di servizi;5;Utenze e canoni;4;Energia elettrica;31/05/2017
659;1;0;223,87;223,87;ENEGAN SPA;Z3B1D9A5CE;SALDO Fatt.n. 241826  del 10/04/2017 FATTURA ENERGIA ELETTRICA;31/05/2017;3210;0;30;1;Spese correnti;3;Acquisto di beni e servizi;2;Acquisto di servizi;5;Utenze e canoni;4;Energia elettrica;31/05/2017
660;1;0;11.446,55;11.446,55;ENEGAN SPA;Z6A1D9A5BA;SALDO Fatt.n. 241834  del 10/04/2017 FATTURA ENERGIA ELETTRICA;31/05/2017;7400;10;40;1;Spese correnti;3;Acquisto di beni e servizi;2;Acquisto di servizi;5;Utenze e canoni;4;Energia elettrica;31/05/2017
661;1;0;29,37;2.074,97;ENEGAN SPA;Z3B1D9A5CE;SALDO Fatt.n. 241813  del 10/04/2017 FATTURA LUCE;31/05/2017;320;58;28;1;Spese correnti;3;Acquisto di beni e servizi;2;Acquisto di servizi;5;Utenze e canoni;4;Energia elettrica;31/05/2017
661;2;0;40,82;2.074,97;ENEGAN SPA;Z3B1D9A5CE;SALDO Fatt.n. 241814  del 10/04/2017 FATTURA LUCE;31/05/2017;320;58;28;1;Spese correnti;3;Acquisto di beni e servizi;2;Acquisto di servizi;5;Utenze e canoni;4;Energia elettrica;31/05/2017
661;3;0;45,07;2.074,97;ENEGAN SPA;Z3B1D9A5CE;SALDO Fatt.n. 241816  del 10/04/2017 FATTURA LUCE;31/05/2017;320;58;28;1;Spese correnti;3;Acquisto di beni e servizi;2;Acquisto di servizi;5;Utenze e canoni;4;Energia elettrica;31/05/2017
661;4;0;118;2.074,97;ENEGAN SPA;Z3B1D9A5CE;SALDO Fatt.n. 241824  del 10/04/2017 FATTURA ENERGIA ELETTRICA;31/05/2017;320;58;28;1;Spese correnti;3;Acquisto di beni e servizi;2;Acquisto di servizi;5;Utenze e canoni;4;Energia elettrica;31/05/2017
661;5;0;318,16;2.074,97;ENEGAN SPA;Z3B1D9A5CE;SALDO Fatt.n. 241827  del 10/04/2017 FATTURA ENERGIA ELETTRICA;31/05/2017;320;58;28;1;Spese correnti;3;Acquisto di beni e servizi;2;Acquisto di servizi;5;Utenze e canoni;4;Energia elettrica;31/05/2017
661;6;0;377,22;2.074,97;ENEGAN SPA;Z3B1D9A5CE;SALDO Fatt.n. 241828  del 10/04/2017 FATTURA ENERGIA ELETTRICA;31/05/2017;320;58;28;1;Spese correnti;3;Acquisto di beni e servizi;2;Acquisto di servizi;5;Utenze e canoni;4;Energia elettrica;31/05/2017
661;7;0;455,46;2.074,97;ENEGAN SPA;Z3B1D9A5CE;SALDO Fatt.n. 241830  del 10/04/2017 FATTURA ENERGIA ELETTRICA;31/05/2017;320;58;28;1;Spese correnti;3;Acquisto di beni e servizi;2;Acquisto di servizi;5;Utenze e canoni;4;Energia elettrica;31/05/2017
661;8;0;690,87;2.074,97;ENEGAN SPA;Z3B1D9A5CE;SALDO Fatt.n. 241832  del 10/04/2017 FATTURA ENERGIA ELETTRICA;31/05/2017;320;58;28;1;Spese correnti;3;Acquisto di beni e servizi;2;Acquisto di servizi;5;Utenze e canoni;4;Energia elettrica;31/05/2017
662;1;0;98,85;98,85;ENEGAN SPA;Z3B1D9A5CE;SALDO Fatt.n. 241823  del 10/04/2017 FATTURA ENERGIA ELETTRICA;31/05/2017;2165;0;31;1;Spese correnti;3;Acquisto di beni e servizi;2;Acquisto di servizi;5;Utenze e canoni;4;Energia elettrica;31/05/2017
663;1;0;476,2;476,2;SO.GE.T. SPA; ;ACCONTO Fatt.n. 570400  del 30/12/2016 Recupero spese postali invio acc.ti TARI 2014 - RTL90020161251 - racc. smart dest. AM del 19/08/2016;07/06/2017;1456;0;1419;1;Spese correnti;3;Acquisto di beni e servizi;2;Acquisto di servizi;3;Aggi di riscossione;999;Altri aggi di riscossione n.a.c.;07/06/2017
664;1;0;1.181,91;1.181,91;SO.GE.T. SPA; ;SALDO FATT. 572500  DEL 30_12_2016;07/06/2017;1456;0;1419;1;Spese correnti;3;Acquisto di beni e servizi;2;Acquisto di servizi;3;Aggi di riscossione;999;Altri aggi di riscossione n.a.c.;07/06/2017
665;1;0;155,49;155,49;SO.GE.T. SPA;9999999999;SALDO FATT. 594900  DEL 30_12_2016 AGGIO LISTE DI CARICO ACC LISTE 02624 2005 203172 ANNO 2016 I.C.I.;07/06/2017;1456;0;1419;1;Spese correnti;3;Acquisto di beni e servizi;2;Acquisto di servizi;3;Aggi di riscossione;999;Altri aggi di riscossione n.a.c.;07/06/2017
666;1;0;886,3;886,3;SO.GE.T. SPA; ;SALDO FATT. 570400_2016;07/06/2017;1456;0;370;1;Spese correnti;3;Acquisto di beni e servizi;2;Acquisto di servizi;3;Aggi di riscossione;999;Altri aggi di riscossione n.a.c.;07/06/2017
668;1;0;51,6;11.656,87;CDP SPA; ;Rata Interessi 1 Sem. 30-06-2017INTERVENTI SC. ELEMENTARE;09/06/2017;2975;0;99999;1;Spese correnti;7;Interessi passivi;5;Interessi su Mutui e altri finanziamenti a medio lungo termine;4;Interessi passivi su finanziamenti a medio lungo termine a Imprese;3;Interessi passivi a Cassa Depositi e Prestiti SPA su mutui e altri finanziamenti a medio lungo termine;09/06/2017
668;2;0;862,22;11.656,87;CDP SPA; ;Rata Interessi 1Sem. 30-06-2017MANUTENZIONE STRAORDINARIA SCUOL;09/06/2017;2975;0;99999;1;Spese correnti;7;Interessi passivi;5;Interessi su Mutui e altri finanziamenti a medio lungo termine;4;Interessi passivi su finanziamenti a medio lungo termine a Imprese;3;Interessi passivi a Cassa Depositi e Prestiti SPA su mutui e altri finanziamenti a medio lungo termine;09/06/2017
668;3;0;1.118,18;11.656,87;CDP SPA; ;Rata Interessi 1Sem. 30-06-2017ADEGUAM.SCUOLA ELEMENT/MATERNA;09/06/2017;2975;0;99999;1;Spese correnti;7;Interessi passivi;5;Interessi su Mutui e altri finanziamenti a medio lungo termine;4;Interessi passivi su finanziamenti a medio lungo termine a Imprese;3;Interessi passivi a Cassa Depositi e Prestiti SPA su mutui e altri finanziamenti a medio lungo termine;09/06/2017
668;4;0;1.613,25;11.656,87;CDP SPA; ;Rata Interessi 1Sem. 30-06-2017LAV.SOMMA URGENZA SC.ELEMENT.;09/06/2017;2975;0;99999;1;Spese correnti;7;Interessi passivi;5;Interessi su Mutui e altri finanziamenti a medio lungo termine;4;Interessi passivi su finanziamenti a medio lungo termine a Imprese;3;Interessi passivi a Cassa Depositi e Prestiti SPA su mutui e altri finanziamenti a medio lungo termine;09/06/2017
668;5;0;2.008,82;11.656,87;CDP SPA; ;Rata Interessi 1Sem. 30-06-2017AGEGUAM.STRUTTURALE SC.ELEMENT;09/06/2017;2975;0;99999;1;Spese correnti;7;Interessi passivi;5;Interessi su Mutui e altri finanziamenti a medio lungo termine;4;Interessi passivi su finanziamenti a medio lungo termine a Imprese;3;Interessi passivi a Cassa Depositi e Prestiti SPA su mutui e altri finanziamenti a medio lungo termine;09/06/2017
668;6;0;6.002,80;11.656,87;CDP SPA; ;Rata Interessi 1 Sem. 30-06-2017RISTRUTTURAZ.SCUOLA ELEMENTARE;09/06/2017;2975;0;99999;1;Spese correnti;7;Interessi passivi;5;Interessi su Mutui e altri finanziamenti a medio lungo termine;4;Interessi passivi su finanziamenti a medio lungo termine a Imprese;3;Interessi passivi a Cassa Depositi e Prestiti SPA su mutui e altri finanziamenti a medio lungo termine;09/06/2017
669;1;0;1.050,30;1.050,30;CDP SPA; ;Rata Interessi 1 Sem. 30-06-2017MANUT.STRAORD.TEATRO DE NARDIS;09/06/2017;4010;1;99999;1;Spese correnti;7;Interessi passivi;5;Interessi su Mutui e altri finanziamenti a medio lungo termine;4;Interessi passivi su finanziamenti a medio lungo termine a Imprese;3;Interessi passivi a Cassa Depositi e Prestiti SPA su mutui e altri finanziamenti a medio lungo termine;09/06/2017
670;1;0;104,65;104,65;CDP SPA; ;Rata Interessi 1 Sem. 30-06-2017FOGNATURA E RETE IDRICA;09/06/2017;5650;0;99999;1;Spese correnti;7;Interessi passivi;5;Interessi su Mutui e altri finanziamenti a medio lungo termine;4;Interessi passivi su finanziamenti a medio lungo termine a Imprese;3;Interessi passivi a Cassa Depositi e Prestiti SPA su mutui e altri finanziamenti a medio lungo termine;09/06/2017
671;1;0;962,92;962,92;CDP SPA; ;Rata Interessi 1 Sem. 30-06-2017ADEGUAMENTO NORME ASILO NIDO;09/06/2017;6290;0;99999;1;Spese correnti;7;Interessi passivi;5;Interessi su Mutui e altri finanziamenti a medio lungo termine;4;Interessi passivi su finanziamenti a medio lungo termine a Imprese;3;Interessi passivi a Cassa Depositi e Prestiti SPA su mutui e altri finanziamenti a medio lungo termine;09/06/2017
672;1;0;618,05;7.042,39;CDP SPA; ;"Rata Interessi 1 Sem. 30-06-2017RIQ.NE FUNZ.LE ""MULINI"" 2^LOTT";09/06/2017;7430;0;99999;1;Spese correnti;7;Interessi passivi;5;Interessi su Mutui e altri finanziamenti a medio lungo termine;4;Interessi passivi su finanziamenti a medio lungo termine a Imprese;3;Interessi passivi a Cassa Depositi e Prestiti SPA su mutui e altri finanziamenti a medio lungo termine;09/06/2017
672;2;0;1.186,66;7.042,39;CDP SPA; ;Rata Interessi 1 Sem. 30-06-2017ACQUISTO MEZZO MECCANICO;09/06/2017;7430;0;99999;1;Spese correnti;7;Interessi passivi;5;Interessi su Mutui e altri finanziamenti a medio lungo termine;4;Interessi passivi su finanziamenti a medio lungo termine a Imprese;3;Interessi passivi a Cassa Depositi e Prestiti SPA su mutui e altri finanziamenti a medio lungo termine;09/06/2017
672;3;0;2.411,61;7.042,39;CDP SPA; ;Rata Interessi 1 Sem. 30-06-2017MANUT.STRAORD.IMPIANTI  ILLUMINA;09/06/2017;7430;0;99999;1;Spese correnti;7;Interessi passivi;5;Interessi su Mutui e altri finanziamenti a medio lungo termine;4;Interessi passivi su finanziamenti a medio lungo termine a Imprese;3;Interessi passivi a Cassa Depositi e Prestiti SPA su mutui e altri finanziamenti a medio lungo termine;09/06/2017
672;4;0;2.826,07;7.042,39;CDP SPA; ;Rata Interessi 1 Sem. 30-06-2017LAV.MIGLIORAM.STRADE COMUNALI;09/06/2017;7430;0;99999;1;Spese correnti;7;Interessi passivi;5;Interessi su Mutui e altri finanziamenti a medio lungo termine;4;Interessi passivi su finanziamenti a medio lungo termine a Imprese;3;Interessi passivi a Cassa Depositi e Prestiti SPA su mutui e altri finanziamenti a medio lungo termine;09/06/2017
673;1;0;1.382,69;1.382,69;CDP SPA; ;Rata Interessi 1 Sem. 30-06-2017COSTRUZIONE OPERE DI URBANIZZ.;09/06/2017;8712;0;99999;1;Spese correnti;7;Interessi passivi;5;Interessi su Mutui e altri finanziamenti a medio lungo termine;4;Interessi passivi su finanziamenti a medio lungo termine a Imprese;3;Interessi passivi a Cassa Depositi e Prestiti SPA su mutui e altri finanziamenti a medio lungo termine;09/06/2017
674;1;0;1.564,59;1.564,59;CDP SPA; ;Rata Interessi 1 Sem. 30-06-2017AMPLIAMENTO IMPIANTO METANO;09/06/2017;9290;0;99999;1;Spese correnti;7;Interessi passivi;5;Interessi su Mutui e altri finanziamenti a medio lungo termine;4;Interessi passivi su finanziamenti a medio lungo termine a Imprese;3;Interessi passivi a Cassa Depositi e Prestiti SPA su mutui e altri finanziamenti a medio lungo termine;09/06/2017
675;1;0;9.011,19;9.011,19;CDP SPA; ;Rata Interessi 1 Sem. 30-06-2017IMPIANTO FOTOVOLTAICO SUI TETTI;09/06/2017;9350;0;99999;1;Spese correnti;7;Interessi passivi;5;Interessi su Mutui e altri finanziamenti a medio lungo termine;4;Interessi passivi su finanziamenti a medio lungo termine a Imprese;3;Interessi passivi a Cassa Depositi e Prestiti SPA su mutui e altri finanziamenti a medio lungo termine;09/06/2017
677;1;0;3.795,54;3.795,54;CDP SPA MEF; ;Rata Interessi 1 Sem. 30-06-2017P.R.U. CENTRO STORICO LR 64/99;09/06/2017;1295;1;99999;1;Spese correnti;7;Interessi passivi;5;Interessi su Mutui e altri finanziamenti a medio lungo termine;4;Interessi passivi su finanziamenti a medio lungo termine a Imprese;4;Interessi passivi a Cassa Depositi e Prestiti - Gestione Tesoro su mutui e altri finanziamenti a medio lungo termine;09/06/2017
678;1;0;1.082,11;1.082,11;CDP SPA MEF; ;Rata Interessi 1 Sem. 30-06-2017RISTRUTTURAZ.EDIF.GIUD.PACE;09/06/2017;1930;1;99999;1;Spese correnti;7;Interessi passivi;5;Interessi su Mutui e altri finanziamenti a medio lungo termine;4;Interessi passivi su finanziamenti a medio lungo termine a Imprese;4;Interessi passivi a Cassa Depositi e Prestiti - Gestione Tesoro su mutui e altri finanziamenti a medio lungo termine;09/06/2017
679;1;0;461,27;1.474,64;CDP SPA MEF; ;Rata Interessi 1 Sem. 30-06-2017RISTRUTTURAZIONE SCUOLA MEDIA;09/06/2017;2975;2;99999;1;Spese correnti;7;Interessi passivi;5;Interessi su Mutui e altri finanziamenti a medio lungo termine;4;Interessi passivi su finanziamenti a medio lungo termine a Imprese;4;Interessi passivi a Cassa Depositi e Prestiti - Gestione Tesoro su mutui e altri finanziamenti a medio lungo termine;09/06/2017
679;2;0;1.013,37;1.474,64;CDP SPA MEF; ;Rata Interessi 1 Sem. 30-06-2017MANUTENZ.STRAORD.SC.ELEMENTARE;09/06/2017;2975;2;99999;1;Spese correnti;7;Interessi passivi;5;Interessi su Mutui e altri finanziamenti a medio lungo termine;4;Interessi passivi su finanziamenti a medio lungo termine a Imprese;4;Interessi passivi a Cassa Depositi e Prestiti - Gestione Tesoro su mutui e altri finanziamenti a medio lungo termine;09/06/2017
680;1;0;811,58;811,58;CDP SPA MEF; ;Rata Interessi 1 Sem. 30-06-2017RISTRUTTURAZ.PARCO RIMEMBRANZE;09/06/2017;5280;1;99999;1;Spese correnti;7;Interessi passivi;5;Interessi su Mutui e altri finanziamenti a medio lungo termine;4;Interessi passivi su finanziamenti a medio lungo termine a Imprese;4;Interessi passivi a Cassa Depositi e Prestiti - Gestione Tesoro su mutui e altri finanziamenti a medio lungo termine;09/06/2017
681;1;0;365,07;1.802,47;CDP SPA MEF; ;Rata Interessi 1 Sem. 30-06-2017AMMODERNAM.ACQUED.FOGN.ARR.URB;09/06/2017;5650;1;99999;1;Spese correnti;7;Interessi passivi;5;Interessi su Mutui e altri finanziamenti a medio lungo termine;4;Interessi passivi su finanziamenti a medio lungo termine a Imprese;4;Interessi passivi a Cassa Depositi e Prestiti - Gestione Tesoro su mutui e altri finanziamenti a medio lungo termine;09/06/2017
681;2;0;1.437,40;1.802,47;CDP SPA MEF; ;Rata Interessi 1 Sem. 30-06-2017IMP.DEPURAZ.ZONA INDUSTRIALE;09/06/2017;5650;1;99999;1;Spese correnti;7;Interessi passivi;5;Interessi su Mutui e altri finanziamenti a medio lungo termine;4;Interessi passivi su finanziamenti a medio lungo termine a Imprese;4;Interessi passivi a Cassa Depositi e Prestiti - Gestione Tesoro su mutui e altri finanziamenti a medio lungo termine;09/06/2017
682;1;0;129,96;556;CDP SPA MEF; ;Rata Interessi 1 Sem. 30-06-2017MANUTENZ.IMP.SPORT.FEUDUCCIO;09/06/2017;6400;2;99999;1;Spese correnti;7;Interessi passivi;5;Interessi su Mutui e altri finanziamenti a medio lungo termine;4;Interessi passivi su finanziamenti a medio lungo termine a Imprese;4;Interessi passivi a Cassa Depositi e Prestiti - Gestione Tesoro su mutui e altri finanziamenti a medio lungo termine;09/06/2017
682;2;0;426,04;556;CDP SPA MEF; ;Rata Interessi 1 Sem. 30-06-2017COMPLET.PALESTRA II LOTTO;09/06/2017;6400;2;99999;1;Spese correnti;7;Interessi passivi;5;Interessi su Mutui e altri finanziamenti a medio lungo termine;4;Interessi passivi su finanziamenti a medio lungo termine a Imprese;4;Interessi passivi a Cassa Depositi e Prestiti - Gestione Tesoro su mutui e altri finanziamenti a medio lungo termine;09/06/2017
683;1;0;1.082,11;3.699,99;CDP SPA MEF; ;Rata Interessi 1 Sem. 30-06-2017SISTEMAZIONE VIALE R.PAOLUCCI;09/06/2017;7430;2;99999;1;Spese correnti;7;Interessi passivi;5;Interessi su Mutui e altri finanziamenti a medio lungo termine;4;Interessi passivi su finanziamenti a medio lungo termine a Imprese;4;Interessi passivi a Cassa Depositi e Prestiti - Gestione Tesoro su mutui e altri finanziamenti a medio lungo termine;09/06/2017
683;2;0;1.298,53;3.699,99;CDP SPA MEF; ;Rata Interessi 1 Sem. 30-06-2017SISTEM.STRAD.ARR.URB.VIA ORTON;09/06/2017;7430;2;99999;1;Spese correnti;7;Interessi passivi;5;Interessi su Mutui e altri finanziamenti a medio lungo termine;4;Interessi passivi su finanziamenti a medio lungo termine a Imprese;4;Interessi passivi a Cassa Depositi e Prestiti - Gestione Tesoro su mutui e altri finanziamenti a medio lungo termine;09/06/2017
683;3;0;1.319,35;3.699,99;CDP SPA MEF; ;Rata Interessi 1 Sem. 30-06-2017MIGLIORAM STRADE RURALI CONVEN;09/06/2017;7430;2;99999;1;Spese correnti;7;Interessi passivi;5;Interessi su Mutui e altri finanziamenti a medio lungo termine;4;Interessi passivi su finanziamenti a medio lungo termine a Imprese;4;Interessi passivi a Cassa Depositi e Prestiti - Gestione Tesoro su mutui e altri finanziamenti a medio lungo termine;09/06/2017
684;1;0;1.015,06;1.015,06;CDP SPA MEF; ;Rata Interessi 1 Sem. 30-06-2017MANUT.STRAORD.SC.MEDIA/PALESTR;09/06/2017;8712;1;99999;1;Spese correnti;7;Interessi passivi;5;Interessi su Mutui e altri finanziamenti a medio lungo termine;4;Interessi passivi su finanziamenti a medio lungo termine a Imprese;4;Interessi passivi a Cassa Depositi e Prestiti - Gestione Tesoro su mutui e altri finanziamenti a medio lungo termine;09/06/2017
686;1;0;2.109,83;2.109,83;ISTITUTO PER IL CREDITO SPORTIVO; ;Rata Interessi 1 Sem. 30-06-2017COMPLET.E ADEG.IMPIANTI SPORTIVI;09/06/2017;6400;1;99999;1;Spese correnti;7;Interessi passivi;5;Interessi su Mutui e altri finanziamenti a medio lungo termine;4;Interessi passivi su finanziamenti a medio lungo termine a Imprese;999;Interessi passivi a altre imprese su finanziamenti a medio lungo termine;09/06/2017
688;1;0;921,1;921,1;DI MARTINO VITTORIO;ZB51B900D1;SALDO Fatt.n. 4/E/2017  del 29/05/2017 INTERVENTI PER RIPARAZIONI CALDAIE E AFFITTO RISCALDAMENTO PALESTRA;10/06/2017;1275;0;216;1;Spese correnti;3;Acquisto di beni e servizi;2;Acquisto di servizi;9;Manutenzione ordinaria e riparazioni;6;Manutenzione ordinaria e riparazioni di macchine per ufficio;10/06/2017
689;1;0;3.000,00;3.000,00;TRAVAGLINI DOMENICO;Z9316E3FB0;ACCONTO Fatt.n. 54/PA  del 19/05/2017 LAVORI URGENTI DI MANUT. ORDINARIA SUGLI IMPIANTI DI PUBBLICA ILLUMINAZIONE;10/06/2017;1275;1;372;1;Spese correnti;3;Acquisto di beni e servizi;2;Acquisto di servizi;9;Manutenzione ordinaria e riparazioni;8;Manutenzione ordinaria e riparazioni di beni immobili;10/06/2017
690;1;0;1.514,00;1.514,00;TRAVAGLINI DOMENICO;Z9316E3FB0;SALDO Fatt.n. 54/PA  del 19/05/2017 LAVORI URGENTI DI MANUT. ORDINARIA SUGLI IMPIANTI DI PUBBLICA ILLUMINAZIONE;10/06/2017;1275;0;373;1;Spese correnti;3;Acquisto di beni e servizi;2;Acquisto di servizi;9;Manutenzione ordinaria e riparazioni;8;Manutenzione ordinaria e riparazioni di beni immobili;10/06/2017
691;1;0;455;455;ATRADIUS CREDIT INSURANCE N.V.;Z291EA55C2;POLIZZA CAUZIONALE NR. BP 0504363;10/06/2017;320;61;102;1;Spese correnti;10;Altre spese correnti;4;Premi di assicurazione;1;Premi di assicurazione contro i danni;3;Premi di assicurazione per responsabilit� civile verso terzi;10/06/2017
692;1;0;12.068,40;12.068,40;CASA DEL SOLE; ;SALDO Fatt.n. 24/01  del 24/04/2017 COMPARTECIPAZIONE SOCIO SANITARIA ANNO 2015 PER UTENTI RESIDENTI NEL TERRITORIO COMUNALE OSPITI A SEN BORRELLI GUARDIAGRELE;17/06/2017;7120;10;110;1;Spese correnti;3;Acquisto di beni e servizi;2;Acquisto di servizi;15;Contratti di servizio pubblico;8;Contratti di servizio di assistenza sociale residenziale e semiresidenziale;17/06/2017
693;1;0;79.300,73;79.300,73;CASA DEL SOLE; ;SALDO Fatt.n. 23/01  del 24/04/2017 COMPARTECIPAZIONE SPESA SOCIO SANITARIA ANNO 2015 PER UTENTI RESIDENTI NEL TERRITORIO COMUNALE OSPITI  LA CASA DEL SOLE;17/06/2017;7120;10;110;1;Spese correnti;3;Acquisto di beni e servizi;2;Acquisto di servizi;15;Contratti di servizio pubblico;8;Contratti di servizio di assistenza sociale residenziale e semiresidenziale;17/06/2017
694;1;0;976,11;976,11;PERSONALE DIVERSO; ;STIPENDI MESE DI GIUGNO 17;20/06/2017;55;10;1;1;Spese correnti;3;Acquisto di beni e servizi;2;Acquisto di servizi;1;Organi e incarichi istituzionali dell'amministrazione;1;Organi istituzionali dell'amministrazione - Indennit�;20/06/2017
748;1;0;30,72;798,72;CAPOTOSTO MARIA ANTONIETTA;ZFA153A2B8;SALDO Fatt.n. FATTPA 2_17  del 13/06/2017 COMPETENZE APRILE MAGGIO 2017;21/06/2017;770;0;141;1;Spese correnti;3;Acquisto di beni e servizi;2;Acquisto di servizi;10;Consulenze;1;Incarichi libero professionali di studi, ricerca e consulenza;21/06/2017
748;2;0;768;798,72;CAPOTOSTO MARIA ANTONIETTA;ZFA153A2B8;ACCONTO Fatt.n. FATTPA 2_17  del 13/06/2017 COMPETENZE APRILE MAGGIO 2017;21/06/2017;770;0;141;1;Spese correnti;3;Acquisto di beni e servizi;2;Acquisto di servizi;10;Consulenze;1;Incarichi libero professionali di studi, ricerca e consulenza;21/06/2017
749;1;0;1.717,76;1.717,76;EDILCAVE S.R.L.;ZDE1593C76;SALDO Fatt.n. 03/21  del 31/05/2017 MISTO FRANTOIATO F.CO CANTIERE;21/06/2017;7330;10;157;1;Spese correnti;3;Acquisto di beni e servizi;1;Acquisto di beni;2;Altri beni di consumo;999;Altri beni e materiali di consumo n.a.c.;21/06/2017
750;1;0;24.000,00;24.000,00;ECO.LAN. SPA;Z1E1D3B134;SALDO Fatt.n. 100409  del 31/05/2017 SERVIZIO IGIENE URBANA - CANONE MENSILE - AFFIDAM. IN HOUSE SERVIZIO GESTIONE CICLO INTEGR. RIF.URB. MAGGIO 2017;21/06/2017;5800;10;19;1;Spese correnti;3;Acquisto di beni e servizi;2;Acquisto di servizi;15;Contratti di servizio pubblico;4;Contratti di servizio per la raccolta rifiuti;21/06/2017
751;1;0;428,22;428,22;OREM SPA;Z131E63E92;SALDO Fatt.n. 864  del 07/06/2017 Canone manut. Gennaio 17 - Giugno 17 Man. 235/2017;21/06/2017;1275;1;80;1;Spese correnti;3;Acquisto di beni e servizi;2;Acquisto di servizi;9;Manutenzione ordinaria e riparazioni;8;Manutenzione ordinaria e riparazioni di beni immobili;21/06/2017
752;1;0;135,77;272,4;ERREBIAN SPA;ZDA1EA4D94;SALDO Fatt.n. V2/537830  del 22/05/2017 FORNIT. CANCELLERIA;21/06/2017;781;0;101;1;Spese correnti;3;Acquisto di beni e servizi;1;Acquisto di beni;2;Altri beni di consumo;1;Carta, cancelleria e stampati;21/06/2017
752;2;0;136,63;272,4;ERREBIAN SPA;ZDA1EA4D94;ACCONTO Fatt.n. V2/537830  del 22/05/2017 FORNIT. CANCELLERIA;21/06/2017;781;0;101;1;Spese correnti;3;Acquisto di beni e servizi;1;Acquisto di beni;2;Altri beni di consumo;1;Carta, cancelleria e stampati;21/06/2017
753;1;0;165,27;165,27;PRIMO PIANO DI STEFANO COPPOLA;Z74173138C;SALDO Fatt.n. 000115/PA  del 31/05/2017 COSTO COPIA DAL 01/03 AL 31/05/2017 FOTOCOP. 7830V_F;21/06/2017;785;0;214;1;Spese correnti;3;Acquisto di beni e servizi;2;Acquisto di servizi;7;Utilizzo di beni di terzi;8;Noleggi di impianti e macchinari;21/06/2017
754;1;0;592,92;592,92;PRIMO PIANO DI STEFANO COPPOLA;ZB617313B0;SALDO Fatt.n. 000118/PA  del 01/06/2017 Canone di noleggio dal 01/06/2017 al 31/08/2017;21/06/2017;550;0;270;1;Spese correnti;3;Acquisto di beni e servizi;2;Acquisto di servizi;7;Utilizzo di beni di terzi;6;Licenze d'uso per software;21/06/2017
755;1;0;146,4;146,4;FEDERALPOL SRL - ISTITUTO DI VIGILANZA;Z5B1962BB5;SALDO Fatt.n. 38/01  del 31/05/2017 SERVIZIO DI TELEALLARME PERIODO MAGGIO 2017 CIG Z5B1962BB5;21/06/2017;9320;0;73;1;Spese correnti;3;Acquisto di beni e servizi;2;Acquisto di servizi;9;Manutenzione ordinaria e riparazioni;4;Manutenzione ordinaria e riparazioni di impianti e macchinari;21/06/2017
756;1;0;20,75;105,37;ENEGAN SPA;Z3F1D9A6E2;SALDO Fatt.n. 118283  del 10/05/2017 FATTURA FORNITURA ENERGIA ELETTRICA.;21/06/2017;320;60;42;1;Spese correnti;3;Acquisto di beni e servizi;2;Acquisto di servizi;5;Utenze e canoni;6;Gas;21/06/2017
756;2;0;20,78;105,37;ENEGAN SPA;Z3F1D9A6E2;SALDO Fatt.n. 92900  del 10/04/2017 FATTURA FORNITURA GAS;21/06/2017;320;60;42;1;Spese correnti;3;Acquisto di beni e servizi;2;Acquisto di servizi;5;Utenze e canoni;6;Gas;21/06/2017
756;3;0;28,38;105,37;ENEGAN SPA;Z3F1D9A6E2;SALDO Fatt.n. 118285  del 10/05/2017 FATTURA FORNITURA ENERGIA ELETTRICA.;21/06/2017;320;60;42;1;Spese correnti;3;Acquisto di beni e servizi;2;Acquisto di servizi;5;Utenze e canoni;6;Gas;21/06/2017
756;4;0;35,46;105,37;ENEGAN SPA;Z3F1D9A6E2;SALDO Fatt.n. 92904  del 10/04/2017 FATTURA;21/06/2017;320;60;42;1;Spese correnti;3;Acquisto di beni e servizi;2;Acquisto di servizi;5;Utenze e canoni;6;Gas;21/06/2017
757;1;0;342,64;1.938,40;ENEGAN SPA;Z8F1D9A6E0;SALDO Fatt.n. 118290  del 10/05/2017 FATTURA FORNITURA ENERGIA ELETTRICA.;21/06/2017;3210;1;49;1;Spese correnti;3;Acquisto di beni e servizi;2;Acquisto di servizi;5;Utenze e canoni;6;Gas;21/06/2017
757;2;0;1.595,76;1.938,40;ENEGAN SPA;Z8F1D9A6E0;SALDO Fatt.n. 92911  del 10/04/2017 FATTURA GAS;21/06/2017;3210;1;49;1;Spese correnti;3;Acquisto di beni e servizi;2;Acquisto di servizi;5;Utenze e canoni;6;Gas;21/06/2017
758;1;0;45,71;45,71;ENEGAN SPA;Z3F1D9A6E2;SALDO Fatt.n. 92905  del 10/04/2017 FATTURA GAS;21/06/2017;4005;13;44;1;Spese correnti;3;Acquisto di beni e servizi;2;Acquisto di servizi;5;Utenze e canoni;6;Gas;21/06/2017
759;1;0;20,78;343,78;ENEGAN SPA;Z3F1D9A6E2;SALDO Fatt.n. 92901  del 10/04/2017 FATTURA GAS;21/06/2017;4006;12;45;1;Spese correnti;3;Acquisto di beni e servizi;2;Acquisto di servizi;5;Utenze e canoni;6;Gas;21/06/2017
759;2;0;21,79;343,78;ENEGAN SPA;Z3F1D9A6E2;SALDO Fatt.n. 118284  del 10/05/2017 FATTURA FORNITURA ENERGIA ELETTRICA.;21/06/2017;4006;12;45;1;Spese correnti;3;Acquisto di beni e servizi;2;Acquisto di servizi;5;Utenze e canoni;6;Gas;21/06/2017
759;3;0;21,86;343,78;ENEGAN SPA;Z3F1D9A6E2;SALDO Fatt.n. 92902  del 10/04/2017 FATTURA FORNITURA GAS;21/06/2017;4006;12;45;1;Spese correnti;3;Acquisto di beni e servizi;2;Acquisto di servizi;5;Utenze e canoni;6;Gas;21/06/2017
759;4;0;73,85;343,78;ENEGAN SPA;Z3F1D9A6E2;SALDO Fatt.n. 92906  del 10/04/2017 FORNITURA GAS;21/06/2017;4006;12;45;1;Spese correnti;3;Acquisto di beni e servizi;2;Acquisto di servizi;5;Utenze e canoni;6;Gas;21/06/2017
759;5;0;90,03;343,78;ENEGAN SPA;Z3F1D9A6E2;SALDO Fatt.n. 118286  del 10/05/2017 FATTURA FORNITURA ENERGIA ELETTRICA.;21/06/2017;4006;12;45;1;Spese correnti;3;Acquisto di beni e servizi;2;Acquisto di servizi;5;Utenze e canoni;6;Gas;21/06/2017
759;6;0;115,47;343,78;ENEGAN SPA;Z3F1D9A6E2;SALDO Fatt.n. 118288  del 10/05/2017 FATTURA FORNITURA ENERGIA ELETTRICA.;21/06/2017;4006;12;45;1;Spese correnti;3;Acquisto di beni e servizi;2;Acquisto di servizi;5;Utenze e canoni;6;Gas;21/06/2017
760;1;0;2,89;28,36;ENEGAN SPA;Z3F1D9A6E2;SALDO Fatt.n. 118282  del 10/05/2017 FATTURA FORNITURA ENERGIA ELETTRICA.;21/06/2017;4007;12;46;1;Spese correnti;3;Acquisto di beni e servizi;2;Acquisto di servizi;5;Utenze e canoni;6;Gas;21/06/2017
760;2;0;25,47;28,36;ENEGAN SPA;Z3F1D9A6E2;SALDO Fatt.n. 92903  del 10/04/2017 FATTURA FORNITURA GAS;21/06/2017;4007;12;46;1;Spese correnti;3;Acquisto di beni e servizi;2;Acquisto di servizi;5;Utenze e canoni;6;Gas;21/06/2017
761;1;0;644;2.679,52;ENEGAN SPA; ;SALDO Fatt.n. 118292  del 10/05/2017 FATTURA;21/06/2017;6370;13;47;1;Spese correnti;3;Acquisto di beni e servizi;2;Acquisto di servizi;5;Utenze e canoni;6;Gas;21/06/2017
761;2;0;2.035,52;2.679,52;ENEGAN SPA; ;SALDO Fatt.n. 92912  del 10/04/2017 FATTURA FORNITURA GAS;21/06/2017;6370;13;47;1;Spese correnti;3;Acquisto di beni e servizi;2;Acquisto di servizi;5;Utenze e canoni;6;Gas;21/06/2017
762;1;0;494,75;1.245,23;ENEGAN SPA;Z8F1D9A6E0;SALDO Fatt.n. 118291  del 10/05/2017 FATTURA FORNITURA ENERGIA ELETTRICA.;21/06/2017;6170;11;50;1;Spese correnti;3;Acquisto di beni e servizi;2;Acquisto di servizi;5;Utenze e canoni;6;Gas;21/06/2017
762;2;0;750,48;1.245,23;ENEGAN SPA;Z8F1D9A6E0;SALDO Fatt.n. 92910  del 10/04/2017 FATTURA FORNITURA GAS;21/06/2017;6170;11;50;1;Spese correnti;3;Acquisto di beni e servizi;2;Acquisto di servizi;5;Utenze e canoni;6;Gas;21/06/2017
763;1;0;153,1;153,1;ENEGAN SPA;Z3B1D9A5CE;SALDO Fatt.n. 306380  del 10/05/2017 FATTURA FORNITURA ENERGIA ELETTRICA.;21/06/2017;4005;10;32;1;Spese correnti;3;Acquisto di beni e servizi;2;Acquisto di servizi;5;Utenze e canoni;4;Energia elettrica;21/06/2017
764;1;0;76,41;76,41;ENEGAN SPA;Z3B1D9A5CE;SALDO Fatt.n. 306377  del 10/05/2017 FORNIT. E.E. APRILE 2017;21/06/2017;6370;10;39;1;Spese correnti;3;Acquisto di beni e servizi;2;Acquisto di servizi;5;Utenze e canoni;4;Energia elettrica;21/06/2017
765;1;0;45,15;45,15;ENEGAN SPA;Z3B1D9A5CE;SALDO Fatt.n. 306373  del 10/05/2017 FORNIT. E.E. APRILE 2017;21/06/2017;4007;10;34;1;Spese correnti;3;Acquisto di beni e servizi;2;Acquisto di servizi;5;Utenze e canoni;4;Energia elettrica;21/06/2017
766;1;0;70,65;222,37;ENEGAN SPA;Z3B1D9A5CE;SALDO Fatt.n. 306376  del 10/05/2017 FORNIT. E.E. APRILE 2017;21/06/2017;6170;10;37;1;Spese correnti;3;Acquisto di beni e servizi;2;Acquisto di servizi;5;Utenze e canoni;4;Energia elettrica;21/06/2017
766;2;0;151,72;222,37;ENEGAN SPA;Z3B1D9A5CE;SALDO Fatt.n. 306379  del 10/05/2017 FATTURA FORNITURA ENERGIA ELETTRICA.;21/06/2017;6170;10;37;1;Spese correnti;3;Acquisto di beni e servizi;2;Acquisto di servizi;5;Utenze e canoni;4;Energia elettrica;21/06/2017
